Workbook

Sheet 1_組合せ最適化の難しさ
C1: 処理速度 | D1: 100 | E1: TFP
B3: 都市数 | C3: 巡回路の総数 | D3: 計算時間（秒） | I3: 1 | J3: =LOG(I3) -> 0
B4: 6 | C4: =FACT(B4-1)/2 -> 60 | D4: =C4*1/($D$1*$I$15) -> 6e-13 | I4: =I3*10 -> 10 | J4: =LOG(I4) -> 1
B5: 8 | C5: =FACT(B5-1)/2 -> 2520 | D5: 2.52e-11 | I5: =I4*10 -> 100 | J5: 2
B6: 10 | C6: 181440 | D6: 1.8144e-09 | I6: 1000 | J6: 3 | K6: K
B7: 15 | C7: 43589145600 | D7: 0.000435891456 | G7: =C7/1.96 -> 22239360000 | H7: =G7/14 -> 1588525714 | I7: 10000 | J7: 4
B8: 20 | C8: 6.08225502e+16 | D8: 608.225502 | I8: 100000 | J8: 5
B9: 25 | C9: 3.102242009e+23 | D9: 3102242009 | I9: 1000000 | J9: 6 | K9: M
B10: 30 | C10: 4.420880997e+30 | D10: 4.420880997e+16 | I10: 10000000 | J10: 7
I11: 100000000 | J11: 8
I12: 1000000000 | J12: 9 | K12: G
I13: 10000000000 | J13: 10
I14: 100000000000 | J14: 11
I15: =I14*10 -> 1000000000000 | J15: 12 | K15: T
I16: =I15*10 -> 10000000000000 | J16: 13
I17: =I16*10 -> 100000000000000 | J17: 14

Sheet 例題2-1_1
B2: 変数 | D2: トマト | E2: 人参 | F2: ほうれん草
D3: 3.639175254 | E3: 0.43298972 | F3: 0.09278350263 | G3: 非負の実数
G5: 原料費
B6: 目的 | C6: 最小化 | D6: 400 | E6: 250 | F6: 1000 | G6: =SUMPRODUCT(D$3:F$3,D6:F6) -> 1656.701034 | K6: =SUMPRODUCT(D$3:F$3,D6:F6)
G8: 総使用量 | I8: 使用可能量
B9: 制約 | C9: 食物繊維 | D9: 10 | E9: 25 | F9: 30 | G9: =SUMPRODUCT(D$3:F$3,D9:F9) -> 50.00000062 | H9: ≧ | I9: 50 | K9: =SUMPRODUCT(D$3:F$3,D9:F9)
C10: ビタミンC | D10: 15 | E10: 5 | F10: 35 | G10: =SUMPRODUCT(D$3:F$3,D10:F10) -> 60 | H10: ≧ | I10: 60 | K10: =SUMPRODUCT(D$3:F$3,D10:F10)
C11: 鉄分 | D11: 2 | E11: 2 | F11: 20 | G11: =SUMPRODUCT(D$3:F$3,D11:F11) -> 10 | H11: ≧ | I11: 10 | K11: =SUMPRODUCT(D$3:F$3,D11:F11)
C12: βカロチン | D12: 5 | E12: 80 | F12: 40 | G12: =SUMPRODUCT(D$3:F$3,D12:F12) -> 56.54639398 | H12: ≧ | I12: 40 | K12: =SUMPRODUCT(D$3:F$3,D12:F12)

Sheet 例題2-1_2
B2: 変数 | D2: トマト | E2: 人参 | F2: ほうれん草
D3: 2 | E3: 0 | F3: 1 | G3: 非負の整数
G5: 原料費
B6: 目的 | C6: 最小化 | D6: 400 | E6: 250 | F6: 1000 | G6: =SUMPRODUCT(D$3:F$3,D6:F6) -> 1800 | K6: =SUMPRODUCT(D$3:F$3,D6:F6)
G8: 総使用量 | I8: 使用可能量
B9: 制約 | C9: 食物繊維 | D9: 10 | E9: 25 | F9: 30 | G9: =SUMPRODUCT(D$3:F$3,D9:F9) -> 50 | H9: ≧ | I9: 50 | K9: =SUMPRODUCT(D$3:F$3,D9:F9)
C10: ビタミンC | D10: 15 | E10: 5 | F10: 35 | G10: =SUMPRODUCT(D$3:F$3,D10:F10) -> 65 | H10: ≧ | I10: 60 | K10: =SUMPRODUCT(D$3:F$3,D10:F10)
C11: 鉄分 | D11: 2 | E11: 2 | F11: 20 | G11: =SUMPRODUCT(D$3:F$3,D11:F11) -> 24 | H11: ≧ | I11: 10 | K11: =SUMPRODUCT(D$3:F$3,D11:F11)
C12: βカロチン | D12: 5 | E12: 80 | F12: 40 | G12: =SUMPRODUCT(D$3:F$3,D12:F12) -> 50 | H12: ≧ | I12: 40 | K12: =SUMPRODUCT(D$3:F$3,D12:F12)

Sheet 例題2-2_感度分析_潜在価格
B2: 変数 | D2: x1 | E2: x2 | F2: x3
D3: 10 | E3: 15 | F3: 0
G5: 利益
B6: 目的 | C6: 最大化 | D6: 6 | E6: 5 | F6: 7 | G6: =SUMPRODUCT(D$3:F$3,D6:F6) -> 135 | K6: =SUMPRODUCT(D$3:F$3,D6:F6)
B9: 制約 | C9: 稼働可能時間 | D9: 3 | E9: 1 | F9: 3 | G9: =SUMPRODUCT(D$3:F$3,D9:F9) -> 45 | H9: ≦ | I9: 45 | K9: =SUMPRODUCT(D$3:F$3,D9:F9)
C10: 稼働可能時間 | D10: 1 | E10: 2 | F10: 2 | G10: =SUMPRODUCT(D$3:F$3,D10:F10) -> 40 | H10: ≦ | I10: 40 | K10: =SUMPRODUCT(D$3:F$3,D10:F10)

Sheet 例題2-2_感度レポート
A1: Microsoft Excel 16.0 感度レポート
A2: ワークシート名: [演習用エクセル.xlsx]感度分析1
A3: レポート作成日: 2024/03/17 21:19:52
A6: 変数セル
D7: 最終 | E7: 限界 | F7: 目的セル | G7: 許容範囲内 | H7: 許容範囲内
B8: セル | C8: 名前 | D8: 値 | E8: コスト | F8: 係数 | G8: 増加 | H8: 減少
B9: $D$3 | C9: A x1 | D9: 10 | E9: 0 | F9: 6 | G9: 9 | H9: 1
B10: $E$3 | C10: A x2 | D10: 15 | E10: 0 | F10: 5 | G10: 7 | H10: 1.333333333
B11: $F$3 | C11: A x3 | D11: 0 | E11: -0.8 | F11: 7 | G11: 0.8 | H11: 1e+30
A13: 制約条件
D14: 最終 | E14: 潜在 | F14: 制約条件 | G14: 許容範囲内 | H14: 許容範囲内
B15: セル | C15: 名前 | D15: 値 | E15: 価格 | F15: 右辺 | G15: 増加 | H15: 減少
B16: $G$9 | C16: 稼働可能時間 利益 | D16: 45 | E16: 1.4 | F16: 45 | G16: 75 | H16: 25
B17: $G$10 | C17: 稼働可能時間 利益 | D17: 40 | E17: 1.8 | F17: 40 | G17: 50 | H17: 25

Sheet 例題2-2_感度分析_潜在価格 (2)
B2: 変数 | D2: x1 | E2: x2 | F2: x3
D3: 40 | E3: 0 | F3: 0
G5: 利益
B6: 目的 | C6: 最大化 | D6: 6 | E6: 5 | F6: 7 | G6: =SUMPRODUCT(D$3:F$3,D6:F6) -> 240 | K6: =SUMPRODUCT(D$3:F$3,D6:F6)
B9: 制約 | C9: 稼働可能時間 | D9: 3 | E9: 1 | F9: 3 | G9: =SUMPRODUCT(D$3:F$3,D9:F9) -> 120 | H9: ≦ | I9: 140 | K9: =SUMPRODUCT(D$3:F$3,D9:F9)
C10: 稼働可能時間 | D10: 1 | E10: 2 | F10: 2 | G10: =SUMPRODUCT(D$3:F$3,D10:F10) -> 40 | H10: ≦ | I10: 40 | K10: =SUMPRODUCT(D$3:F$3,D10:F10)

Sheet 例題2-2_感度分析_潜在価格 (2)_感度レポート
A1: Microsoft Excel 16.0 感度レポート
A2: ワークシート名: [演習用エクセル.xlsm]例題2-2_感度分析_潜在価格 (2)
A3: レポート作成日: 2024/05/09 21:43:32
A6: 変数セル
D7: 最終 | E7: 限界 | F7: 目的セル | G7: 許容範囲内 | H7: 許容範囲内
B8: セル | C8: 名前 | D8: 値 | E8: コスト | F8: 係数 | G8: 増加 | H8: 減少
B9: $D$3 | C9: x1 | D9: 40 | E9: 0 | F9: 6 | G9: 1e+30 | H9: 2.5
B10: $E$3 | C10: x2 | D10: 0 | E10: -7 | F10: 5 | G10: 7 | H10: 1e+30
B11: $F$3 | C11: x3 | D11: 0 | E11: -5 | F11: 7 | G11: 5 | H11: 1e+30
A13: 制約条件
D14: 最終 | E14: 潜在 | F14: 制約条件 | G14: 許容範囲内 | H14: 許容範囲内
B15: セル | C15: 名前 | D15: 値 | E15: 価格 | F15: 右辺 | G15: 増加 | H15: 減少
B16: $G$9 | C16: 稼働可能時間 利益 | D16: 120 | E16: 0 | F16: 140 | G16: 1e+30 | H16: 20
B17: $G$10 | C17: 稼働可能時間 利益 | D17: 40 | E17: 6 | F17: 40 | G17: 6.666666667 | H17: 40

Sheet 例題4-1_勤務シフト
B2: 変数 | D2: x1 | E2: x2 | F2: x3 | G2: x4 | H2: x5 | I2: x6 | J2: x7
D3: 0 | E3: 2 | F3: 6 | G3: 6 | H3: 6 | I3: 3 | J3: 0
K5: 人数
B6: 目的 | C6: 最小化 | D6: 1 | E6: 1 | F6: 1 | G6: 1 | H6: 1 | I6: 1 | J6: 1 | K6: =SUMPRODUCT(D$3:J$3,D6:J6) -> 23 | O6: =SUMPRODUCT(D$3:J$3,D6:J6)
M8: 必要人数
B9: 制約 | C9: 必要人数（月） | D9: 1 | E9: 0 | F9: 0 | G9: 1 | H9: 1 | I9: 1 | J9: 1 | K9: =SUMPRODUCT(D$3:J$3,D9:J9) -> 15 | L9: ≧ | M9: 15 | O9: =SUMPRODUCT(D$3:J$3,D9:J9)
C10: 必要人数（火） | D10: 1 | E10: 1 | F10: 0 | G10: 0 | H10: 1 | I10: 1 | J10: 1 | K10: =SUMPRODUCT(D$3:J$3,D10:J10) -> 11 | L10: ≧ | M10: 11 | O10: =SUMPRODUCT(D$3:J$3,D10:J10)
C11: 必要人数（水） | D11: 1 | E11: 1 | F11: 1 | G11: 0 | H11: 0 | I11: 1 | J11: 1 | K11: 11 | L11: ≧ | M11: 11 | O11: =SUMPRODUCT(D$3:J$3,D11:J11)
C12: 必要人数（木） | D12: 1 | E12: 1 | F12: 1 | G12: 1 | H12: 0 | I12: 0 | J12: 1 | K12: 14 | L12: ≧ | M12: 14 | O12: =SUMPRODUCT(D$3:J$3,D12:J12)
C13: 必要人数（金） | D13: 1 | E13: 1 | F13: 1 | G13: 1 | H13: 1 | I13: 0 | J13: 0 | K13: 20 | L13: ≧ | M13: 17 | O13: =SUMPRODUCT(D$3:J$3,D13:J13)
C14: 必要人数（土） | D14: 0 | E14: 1 | F14: 1 | G14: 1 | H14: 1 | I14: 1 | J14: 0 | K14: 23 | L14: ≧ | M14: 22 | O14: =SUMPRODUCT(D$3:J$3,D14:J14)
C15: 必要人数（日） | D15: 0 | E15: 0 | F15: 1 | G15: 1 | H15: 1 | I15: 1 | J15: 1 | K15: 21 | L15: ≧ | M15: 20 | O15: =SUMPRODUCT(D$3:J$3,D15:J15)

Sheet 例題4-2_プロジェクト選定問題
B2: 変数 | D2: xA | E2: xB | F2: xC | G2: xD | H2: xE | I2: xF | J2: xG | K2: xH | L2: xI | M2: xJ
D3: 0 | E3: 0 | F3: 1 | G3: 0 | H3: 1 | I3: 0 | J3: 0 | K3: 0 | L3: 0 | M3: 1
N5: 利益
B6: 目的 | C6: 最大化 | D6: 400 | E6: 8 | F6: 350 | G6: 5 | H6: 450 | I6: 70 | J6: 20 | K6: 5 | L6: 8 | M6: 200 | N6: =SUMPRODUCT(D$3:M$3,D6:M6) -> 1000 | R6: =SUMPRODUCT(D$3:M$3,D6:M6)
N8: 総使用量 | P8: 必要人数
B9: 制約 | C9: 必要人数（月） | D9: 35 | E9: 3 | F9: 25 | G9: 2 | H9: 45 | I9: 25 | J9: 5 | K9: 2 | L9: 1 | M9: 30 | N9: =SUMPRODUCT(D$3:M$3,D9:M9) -> 100 | O9: ≦ | P9: 100 | R9: =SUMPRODUCT(D$3:M$3,D9:M9)

Sheet 例題4-3_割当問題
B2: 変数 | D2: x1A | E2: x1C | F2: x2B | G2: x2D | H2: x3A | I2: x3B | J2: x4D | K2: x5B | L2: x5D | M2: x6D | N2: x6E | O2: x6G | P2: x7F | Q2: x7G
D3: 0 | E3: 1 | F3: 1 | G3: 0 | H3: 1 | I3: 0 | J3: 1 | K3: 0 | L3: 0 | M3: 0 | N3: 1 | O3: 0 | P3: 1 | Q3: 0
R5: 人数
B6: 目的 | C6: 最大化 | D6: 1 | E6: 1 | F6: 1 | G6: 1 | H6: 1 | I6: 1 | J6: 1 | K6: 1 | L6: 1 | M6: 1 | N6: 1 | O6: 1 | P6: 1 | Q6: 1 | R6: =SUMPRODUCT(D$3:Q$3,D6:Q6) -> 6 | V6: =SUMPRODUCT(D$3:Q$3,D6:Q6)
R8: 総使用量 | T8: 必要人数
B9: 制約 | C9: 社員1上限 | D9: 1 | E9: 1 | F9: 0 | G9: 0 | H9: 0 | I9: 0 | J9: 0 | K9: 0 | L9: 0 | M9: 0 | N9: 0 | O9: 0 | P9: 0 | Q9: 0 | R9: =SUMPRODUCT(D$3:Q$3,D9:Q9) -> 1 | S9: ≦ | T9: 1 | V9: =SUMPRODUCT(D$3:Q$3,D9:Q9)
C10: 社員2上限 | D10: 0 | E10: 0 | F10: 1 | G10: 1 | H10: 0 | I10: 0 | J10: 0 | K10: 0 | L10: 0 | M10: 0 | N10: 0 | O10: 0 | P10: 0 | Q10: 0 | R10: =SUMPRODUCT(D$3:Q$3,D10:Q10) -> 1 | S10: ≦ | T10: 1 | V10: =SUMPRODUCT(D$3:Q$3,D10:Q10)
C11: 社員3上限 | D11: 0 | E11: 0 | F11: 0 | G11: 0 | H11: 1 | I11: 1 | J11: 0 | K11: 0 | L11: 0 | M11: 0 | N11: 0 | O11: 0 | P11: 0 | Q11: 0 | R11: =SUMPRODUCT(D$3:Q$3,D11:Q11) -> 1 | S11: ≦ | T11: 1 | V11: =SUMPRODUCT(D$3:Q$3,D11:Q11)
C12: 社員5上限 | D12: 0 | E12: 0 | F12: 0 | G12: 0 | H12: 0 | I12: 0 | J12: 0 | K12: 1 | L12: 1 | M12: 0 | N12: 0 | O12: 0 | P12: 0 | Q12: 0 | R12: 0 | S12: ≦ | T12: 1 | V12: =SUMPRODUCT(D$3:Q$3,D12:Q12)
C13: 社員6上限 | D13: 0 | E13: 0 | F13: 0 | G13: 0 | H13: 0 | I13: 0 | J13: 0 | K13: 0 | L13: 0 | M13: 1 | N13: 1 | O13: 1 | P13: 0 | Q13: 0 | R13: 1 | S13: ≦ | T13: 1 | V13: =SUMPRODUCT(D$3:Q$3,D13:Q13)
C14: 社員7上限 | D14: 0 | E14: 0 | F14: 0 | G14: 0 | H14: 0 | I14: 0 | J14: 0 | K14: 0 | L14: 0 | M14: 0 | N14: 0 | O14: 0 | P14: 1 | Q14: 1 | R14: 1 | S14: ≦ | T14: 1 | V14: =SUMPRODUCT(D$3:Q$3,D14:Q14)
C15: 業務A上限 | D15: 1 | E15: 0 | F15: 0 | G15: 0 | H15: 1 | I15: 0 | J15: 0 | K15: 0 | L15: 0 | M15: 0 | N15: 0 | O15: 0 | P15: 0 | Q15: 0 | R15: 1 | S15: ≦ | T15: 1 | V15: =SUMPRODUCT(D$3:Q$3,D15:Q15)
C16: 業務B上限 | D16: 0 | E16: 0 | F16: 1 | G16: 0 | H16: 0 | I16: 1 | J16: 0 | K16: 1 | L16: 0 | M16: 0 | N16: 0 | O16: 0 | P16: 0 | Q16: 0 | R16: 1 | S16: ≦ | T16: 1 | V16: =SUMPRODUCT(D$3:Q$3,D16:Q16)
C17: 業務D上限 | D17: 0 | E17: 0 | F17: 0 | G17: 1 | H17: 0 | I17: 0 | J17: 1 | K17: 0 | L17: 1 | M17: 1 | N17: 0 | O17: 0 | P17: 0 | Q17: 0 | R17: 1 | S17: ≦ | T17: 1 | V17: =SUMPRODUCT(D$3:Q$3,D17:Q17)
C18: 業務G上限 | D18: 0 | E18: 0 | F18: 0 | G18: 0 | H18: 0 | I18: 0 | J18: 0 | K18: 0 | L18: 0 | M18: 0 | N18: 0 | O18: 1 | P18: 0 | Q18: 1 | R18: =SUMPRODUCT(D$3:Q$3,D18:Q18) -> 0 | S18: ≦ | T18: 1 | V18: =SUMPRODUCT(D$3:Q$3,D18:Q18)

Sheet 例題4-4_生産計画
B2: 変数 | D2: 製品Q | E2: 製品R
D3: 20 | E3: 30
F5: 純利益
B6: 目的 | C6: 最大化 | D6: 6 | E6: 4 | F6: =SUMPRODUCT(D$3:E$3,D6:E6) -> 240 | J6: =SUMPRODUCT(D$3:F$3,D6:F6)
F8: 総使用量 | H8: 使用可能量
B9: 制約 | C9: 原液A | D9: 2 | E9: 1 | F9: =SUMPRODUCT(D$3:E$3,D9:E9) -> 70 | G9: ≦ | H9: 70 | J9: =SUMPRODUCT(D$3:F$3,D9:F9)
C10: 原液B | D10: 3 | E10: 4 | F10: =SUMPRODUCT(D$3:E$3,D10:E10) -> 180 | G10: ≦ | H10: 180 | J10: =SUMPRODUCT(D$3:F$3,D10:F10)

Sheet 例題4-5_生産計画 (双対)
B2: 変数 | D2: 製品Q | E2: 製品R
D3: 2.4 | E3: 0.4
F5: 純利益
B6: 目的 | C6: 最大化 | D6: 70 | E6: 180 | F6: =SUMPRODUCT(D$3:E$3,D6:E6) -> 240 | J6: =SUMPRODUCT(D$3:F$3,D6:F6)
F8: 総使用量 | H8: 使用可能量
B9: 制約 | C9: 原液A | D9: 2 | E9: 3 | F9: =SUMPRODUCT(D$3:E$3,D9:E9) -> 6 | G9: ≧ | H9: 6 | J9: =SUMPRODUCT(D$3:F$3,D9:F9)
C10: 原液B | D10: 1 | E10: 4 | F10: =SUMPRODUCT(D$3:E$3,D10:E10) -> 4 | G10: ≧ | H10: 4 | J10: =SUMPRODUCT(D$3:F$3,D10:F10)

Sheet 例題5-1_最短路問題_1
B2: 変数 | D2: AB | E2: AC | F2: AD | G2: BC | H2: BF | I2: CB | J2: CD | K2: CE | L2: CF | M2: DC | N2: DE | O2: DF | P2: EC | Q2: EF
D3: 0 | E3: 0 | F3: 1 | G3: 0 | H3: 0 | I3: 0 | J3: 0 | K3: 0 | L3: 1 | M3: 1 | N3: 0 | O3: 0 | P3: 0 | Q3: 0
R5: 長さ
B6: 目的 | C6: 最小化 | D6: 90 | E6: 90 | F6: 50 | G6: 30 | H6: 70 | I6: 30 | J6: 20 | K6: 40 | L6: 50 | M6: 20 | N6: 60 | O6: 90 | P6: 40 | Q6: 30 | R6: =SUMPRODUCT(D$3:Q$3,D6:Q6) -> 120 | V6: =SUMPRODUCT(D$3:Q$3,D6:Q6)
R8: 総使用量 | T8: 使用可能量
B9: 制約 | C9: 節点A | D9: 1 | E9: 1 | F9: 1 | G9: 0 | H9: 0 | I9: 0 | J9: 0 | K9: 0 | L9: 0 | M9: 0 | N9: 0 | O9: 0 | P9: 0 | Q9: 0 | R9: =SUMPRODUCT(D$3:Q$3,D9:Q9) -> 1 | S9: = | T9: 1 | V9: =SUMPRODUCT(D$3:Q$3,D9:Q9)
C10: 節点B | D10: -1 | E10: 0 | F10: 0 | G10: 1 | H10: 1 | I10: -1 | J10: 0 | K10: 0 | L10: 0 | M10: 0 | N10: 0 | O10: 0 | P10: 0 | Q10: 0 | R10: 0 | S10: = | T10: 0 | V10: =SUMPRODUCT(D$3:Q$3,D10:Q10)
C11: 節点C | D11: 0 | E11: -1 | F11: 0 | G11: -1 | H11: 0 | I11: 1 | J11: 1 | K11: 1 | L11: 1 | M11: -1 | N11: 0 | O11: 0 | P11: -1 | Q11: 0 | R11: 0 | S11: = | T11: 0 | V11: =SUMPRODUCT(D$3:Q$3,D11:Q11)
C12: 節点D | D12: 0 | E12: 0 | F12: -1 | G12: 0 | H12: 0 | I12: 0 | J12: -1 | K12: 0 | L12: 0 | M12: 1 | N12: 1 | O12: 1 | P12: 0 | Q12: 0 | R12: 0 | S12: = | T12: 0 | V12: =SUMPRODUCT(D$3:Q$3,D12:Q12)
C13: 節点E | D13: 0 | E13: 0 | F13: 0 | G13: 0 | H13: 0 | I13: 0 | J13: 0 | K13: -1 | L13: 0 | M13: 0 | N13: -1 | O13: 0 | P13: 1 | Q13: 1 | R13: 0 | S13: = | T13: 0 | V13: =SUMPRODUCT(D$3:Q$3,D13:Q13)
C14: 節点F | D14: 0 | E14: 0 | F14: 0 | G14: 0 | H14: -1 | I14: 0 | J14: 0 | K14: 0 | L14: -1 | M14: 0 | N14: 0 | O14: -1 | P14: 0 | Q14: -1 | R14: -1 | S14: = | T14: -1 | V14: =SUMPRODUCT(D$3:Q$3,D14:Q14)

Sheet 例題5-1_最短路問題_2
B2: 変数 | D2: AB | E2: AC | F2: AD | G2: BC | H2: BF | I2: CB | J2: CD | K2: CE | L2: CF | M2: DC | N2: DE | O2: DF | P2: EC | Q2: EF
D3: 0 | E3: 0 | F3: 1 | G3: 0 | H3: 0 | I3: 0 | J3: 0 | K3: 0 | L3: 1 | M3: 1 | N3: 0 | O3: 0 | P3: 0 | Q3: 0
R5: 長さ
B6: 目的 | C6: 最小化 | D6: 90 | E6: 90 | F6: 50 | G6: 30 | H6: 70 | I6: 30 | J6: 20 | K6: 40 | L6: 50 | M6: 20 | N6: 60 | O6: 90 | P6: 40 | Q6: 30 | R6: =SUMPRODUCT(D$3:Q$3,D6:Q6) -> 120 | V6: =SUMPRODUCT(D$3:Q$3,D6:Q6)
R8: 総使用量 | T8: 使用可能量
B9: 制約 | C9: 節点A | D9: 1 | E9: 1 | F9: 1 | G9: 0 | H9: 0 | I9: 0 | J9: 0 | K9: 0 | L9: 0 | M9: 0 | N9: 0 | O9: 0 | P9: 0 | Q9: 0 | R9: =SUMPRODUCT(D$3:Q$3,D9:Q9) -> 1 | S9: = | T9: 1 | V9: =SUMPRODUCT(D$3:Q$3,D9:Q9)
C10: 節点B | D10: -1 | E10: 0 | F10: 0 | G10: 1 | H10: 1 | I10: -1 | J10: 0 | K10: 0 | L10: 0 | M10: 0 | N10: 0 | O10: 0 | P10: 0 | Q10: 0 | R10: 0 | S10: = | T10: 0 | V10: =SUMPRODUCT(D$3:Q$3,D10:Q10)
C11: 節点C | D11: 0 | E11: -1 | F11: 0 | G11: -1 | H11: 0 | I11: 1 | J11: 1 | K11: 1 | L11: 1 | M11: -1 | N11: 0 | O11: 0 | P11: -1 | Q11: 0 | R11: 0 | S11: = | T11: 0 | V11: =SUMPRODUCT(D$3:Q$3,D11:Q11)
C12: 節点D | D12: 0 | E12: 0 | F12: -1 | G12: 0 | H12: 0 | I12: 0 | J12: -1 | K12: 0 | L12: 0 | M12: 1 | N12: 1 | O12: 1 | P12: 0 | Q12: 0 | R12: 0 | S12: = | T12: 0 | V12: =SUMPRODUCT(D$3:Q$3,D12:Q12)
C13: 節点E | D13: 0 | E13: 0 | F13: 0 | G13: 0 | H13: 0 | I13: 0 | J13: 0 | K13: -1 | L13: 0 | M13: 0 | N13: -1 | O13: 0 | P13: 1 | Q13: 1 | R13: 0 | S13: = | T13: 0 | V13: =SUMPRODUCT(D$3:Q$3,D13:Q13)
C14: 節点F | D14: 0 | E14: 0 | F14: 0 | G14: 0 | H14: -1 | I14: 0 | J14: 0 | K14: 0 | L14: -1 | M14: 0 | N14: 0 | O14: -1 | P14: 0 | Q14: -1 | R14: -1 | S14: = | T14: -1 | V14: =SUMPRODUCT(D$3:Q$3,D14:Q14)

Sheet 例題5-2_最短路問題2
D1: A | E1: B | F1: C | G1: D | H1: E | I1: F | J1: G | K1: H | L1: I | M1: J | N1: K | O1: L | P1: M | Q1: N | R1: O | S1: P
B2: 変数 | D2: 9-12 | E2: 9-11 | F2: 11-13 | G2: 12-15 | H2: 12-17 | I2: 13-16 | J2: 15-17 | K2: 16-17 | L2: 9-10 | M2: 10-11 | N2: 11-12 | O2: 12-13 | P2: 13-14 | Q2: 14-15 | R2: 15-16 | S2: 16-17
D3: 0 | E3: 1 | F3: 1 | G3: 0 | H3: 1 | I3: 0 | J3: 0 | K3: 0 | L3: 0 | M3: 0 | N3: 0 | O3: 1 | P3: 0 | Q3: 0 | R3: 0 | S3: 0
T5: 総賃金
B6: 目的 | C6: 最小化 | D6: 3100 | E6: 1400 | F6: 1600 | G6: 2200 | H6: 3800 | I6: 3000 | J6: 2000 | K6: 900 | L6: 0 | M6: 0 | N6: 0 | O6: 0 | P6: 0 | Q6: 0 | R6: 0 | S6: 0 | T6: =SUMPRODUCT(D$3:S$3,D6:S6) -> 6800 | X6: =SUMPRODUCT(D$3:S$3,D6:S6)
T8: 総使用量 | V8: 使用可能量
B9: 制約 | C9: 節点9 | D9: 1 | E9: 1 | F9: 0 | G9: 0 | H9: 0 | I9: 0 | J9: 0 | K9: 0 | L9: -1 | M9: 0 | N9: 0 | O9: 0 | P9: 0 | Q9: 0 | R9: 0 | S9: 0 | T9: =SUMPRODUCT(D$3:S$3,D9:S9) -> 1 | U9: = | V9: 1 | X9: =SUMPRODUCT(D$3:S$3,D9:S9)
C10: 節点10 | D10: 0 | E10: 0 | F10: 0 | G10: 0 | H10: 0 | I10: 0 | J10: 0 | K10: 0 | L10: 1 | M10: -1 | N10: 0 | O10: 0 | P10: 0 | Q10: 0 | R10: 0 | S10: 0 | T10: 0 | U10: = | V10: 0 | X10: =SUMPRODUCT(D$3:S$3,D10:S10)
C11: 節点11 | D11: 0 | E11: -1 | F11: 1 | G11: 0 | H11: 0 | I11: 0 | J11: 0 | K11: 0 | L11: 0 | M11: 1 | N11: -1 | O11: 0 | P11: 0 | Q11: 0 | R11: 0 | S11: 0 | T11: 0 | U11: = | V11: 0 | X11: =SUMPRODUCT(D$3:S$3,D11:S11)
C12: 節点12 | D12: -1 | E12: 0 | F12: 0 | G12: 1 | H12: 1 | I12: 0 | J12: 0 | K12: 0 | L12: 0 | M12: 0 | N12: 1 | O12: -1 | P12: 0 | Q12: 0 | R12: 0 | S12: 0 | T12: 0 | U12: = | V12: 0 | X12: =SUMPRODUCT(D$3:S$3,D12:S12)
C13: 節点13 | D13: 0 | E13: 0 | F13: -1 | G13: 0 | H13: 0 | I13: 1 | J13: 0 | K13: 0 | L13: 0 | M13: 0 | N13: 0 | O13: 1 | P13: -1 | Q13: 0 | R13: 0 | S13: 0 | T13: 0 | U13: = | V13: 0 | X13: =SUMPRODUCT(D$3:S$3,D13:S13)
C14: 節点14 | D14: 0 | E14: 0 | F14: 0 | G14: 0 | H14: 0 | I14: 0 | J14: 0 | K14: 0 | L14: 0 | M14: 0 | N14: 0 | O14: 0 | P14: 1 | Q14: -1 | R14: 0 | S14: 0 | T14: 0 | U14: = | V14: 0 | X14: =SUMPRODUCT(D$3:S$3,D14:S14)
C15: 節点15 | D15: 0 | E15: 0 | F15: 0 | G15: -1 | H15: 0 | I15: 0 | J15: 1 | K15: 0 | L15: 0 | M15: 0 | N15: 0 | O15: 0 | P15: 0 | Q15: 1 | R15: -1 | S15: 0 | T15: 0 | U15: = | V15: 0 | X15: =SUMPRODUCT(D$3:S$3,D15:S15)
C16: 節点16 | D16: 0 | E16: 0 | F16: 0 | G16: 0 | H16: 0 | I16: -1 | J16: 0 | K16: 1 | L16: 0 | M16: 0 | N16: 0 | O16: 0 | P16: 0 | Q16: 0 | R16: 1 | S16: -1 | T16: 0 | U16: = | V16: 0 | X16: =SUMPRODUCT(D$3:S$3,D16:S16)
C17: 節点17 | D17: 0 | E17: 0 | F17: 0 | G17: 0 | H17: -1 | I17: 0 | J17: -1 | K17: 0 | L17: 0 | M17: 0 | N17: 0 | O17: 0 | P17: 0 | Q17: 0 | R17: 0 | S17: 1 | T17: -1 | U17: = | V17: -1 | X17: =SUMPRODUCT(D$3:S$3,D17:S17)

Sheet 例題5-3_最小費用流問題
D1: F1D1 | E1: F1D2 | F1: F2D1 | G1: F2D2 | H1: D1W1 | I1: D1W2 | J1: D2W2 | K1: D2W3
B2: 変数 | D2: 9-12 | E2: 9-11 | F2: 11-13 | G2: 12-15 | H2: 12-17 | I2: 13-16 | J2: 15-17 | K2: 16-17
D3: 15 | E3: 15 | F3: 5 | G3: 15 | H3: 15 | I3: 5 | J3: 5 | K3: 25
L5: 総費用
B6: 目的 | C6: 最小化 | D6: 5 | E6: 2 | F6: 4 | G6: 5 | H6: 3 | I6: 3 | J6: 1 | K6: 2 | L6: =SUMPRODUCT(D$3:K$3,D6:K6) -> 315 | P6: =SUMPRODUCT(D$3:K$3,D6:K6)
L8: 総使用量 | N8: 使用可能量
B9: 制約 | C9: 供給量30 | D9: 1 | E9: 1 | F9: 0 | G9: 0 | H9: 0 | I9: 0 | J9: 0 | K9: 0 | L9: =SUMPRODUCT(D$3:K$3,D9:K9) -> 30 | M9: = | N9: 30 | P9: =SUMPRODUCT(D$3:K$3,D9:K9)
C10: 供給量20 | D10: 0 | E10: 0 | F10: 1 | G10: 1 | H10: 0 | I10: 0 | J10: 0 | K10: 0 | L10: 20 | M10: = | N10: 20 | P10: =SUMPRODUCT(D$3:K$3,D10:K10)
C11: D1 | D11: -1 | E11: 0 | F11: -1 | G11: 0 | H11: 1 | I11: 1 | J11: 0 | K11: 0 | L11: 0 | M11: = | N11: 0 | P11: =SUMPRODUCT(D$3:K$3,D11:K11)
C12: D2 | D12: 0 | E12: -1 | F12: 0 | G12: -1 | H12: 0 | I12: 0 | J12: 1 | K12: 1 | L12: 0 | M12: = | N12: 0 | P12: =SUMPRODUCT(D$3:K$3,D12:K12)
C13: 需要量15 | D13: 0 | E13: 0 | F13: 0 | G13: 0 | H13: -1 | I13: 0 | J13: 0 | K13: 0 | L13: -15 | M13: = | N13: -15 | P13: =SUMPRODUCT(D$3:K$3,D13:K13)
C14: 需要量10 | D14: 0 | E14: 0 | F14: 0 | G14: 0 | H14: 0 | I14: -1 | J14: -1 | K14: 0 | L14: -10 | M14: = | N14: -10 | P14: =SUMPRODUCT(D$3:K$3,D14:K14)
C15: 需要量25 | D15: 0 | E15: 0 | F15: 0 | G15: 0 | H15: 0 | I15: 0 | J15: 0 | K15: -1 | L15: -25 | M15: = | N15: -25 | P15: =SUMPRODUCT(D$3:K$3,D15:K15)
C16: F1D1 | D16: 1 | E16: 0 | F16: 0 | G16: 0 | H16: 0 | I16: 0 | J16: 0 | K16: 0 | L16: 15 | M16: ≦ | N16: 25 | P16: =SUMPRODUCT(D$3:K$3,D16:K16)
C17: F1D2 | D17: 0 | E17: 1 | F17: 0 | G17: 0 | H17: 0 | I17: 0 | J17: 0 | K17: 0 | L17: 15 | M17: ≦ | N17: 15 | P17: =SUMPRODUCT(D$3:K$3,D17:K17)
C18: F2D1 | D18: 0 | E18: 0 | F18: 1 | G18: 0 | H18: 0 | I18: 0 | J18: 0 | K18: 0 | L18: =SUMPRODUCT(D$3:K$3,D18:K18) -> 5 | M18: ≦ | N18: 10 | P18: =SUMPRODUCT(D$3:K$3,D18:K18)
C19: F2D2 | D19: 0 | E19: 0 | F19: 0 | G19: 1 | H19: 0 | I19: 0 | J19: 0 | K19: 0 | L19: 15 | M19: ≦ | N19: 20 | P19: =SUMPRODUCT(D$3:K$3,D19:K19)
C20: D1W1 | D20: 0 | E20: 0 | F20: 0 | G20: 0 | H20: 1 | I20: 0 | J20: 0 | K20: 0 | L20: 15 | M20: ≦ | N20: 15 | P20: =SUMPRODUCT(D$3:K$3,D20:K20)
C21: D1W2 | D21: 0 | E21: 0 | F21: 0 | G21: 0 | H21: 0 | I21: 1 | J21: 0 | K21: 0 | L21: 5 | M21: ≦ | N21: 10 | P21: =SUMPRODUCT(D$3:K$3,D21:K21)
C22: D2W2 | D22: 0 | E22: 0 | F22: 0 | G22: 0 | H22: 0 | I22: 0 | J22: 1 | K22: 0 | L22: 5 | M22: ≦ | N22: 5 | P22: =SUMPRODUCT(D$3:K$3,D22:K22)
C23: D2W3 | D23: 0 | E23: 0 | F23: 0 | G23: 0 | H23: 0 | I23: 0 | J23: 0 | K23: 1 | L23: 25 | M23: ≦ | N23: 30 | P23: =SUMPRODUCT(D$3:K$3,D23:K23)

Sheet 例題5-4_最小費用流問題2
B2: 変数 | D2: A | E2: B | F2: C | G2: D | H2: E | I2: F | J2: G | K2: H | L2: I | M2: J | N2: K
D3: 100 | E3: 0 | F3: 150 | G3: 90 | H3: 140 | I3: 100 | J3: 160 | K3: 40 | L3: 20 | M3: 60 | N3: 0
O5: 費用
B6: 目的 | C6: 最小化 | D6: 0 | E6: 1000 | F6: 0 | G6: 1000 | H6: 0 | I6: 1000 | J6: 0 | K6: 1000 | L6: 300 | M6: 300 | N6: 300 | O6: =SUMPRODUCT(D$3:N$3,D6:N6) -> 254000 | S6: =SUMPRODUCT(D$3:N$3,D6:N6)
O8: 総使用量 | Q8: 使用可能量
B9: 制約 | C9: 供給量780 | D9: 1 | E9: 1 | F9: 1 | G9: 1 | H9: 1 | I9: 1 | J9: 1 | K9: 1 | L9: 0 | M9: 0 | N9: 0 | O9: =SUMPRODUCT(D$3:N$3,D9:N9) -> 780 | P9: = | Q9: 780 | S9: =SUMPRODUCT(D$3:N$3,D9:N9)
C10: 需要量80 | D10: 1 | E10: 1 | F10: 0 | G10: 0 | H10: 0 | I10: 0 | J10: 0 | K10: 0 | L10: -1 | M10: 0 | N10: 0 | O10: 80 | P10: = | Q10: 80 | S10: =SUMPRODUCT(D$3:N$3,D10:N10)
C11: 需要量200 | D11: 0 | E11: 0 | F11: 1 | G11: 1 | H11: 0 | I11: 0 | J11: 0 | K11: 0 | L11: 1 | M11: -1 | N11: 0 | O11: 200 | P11: = | Q11: 200 | S11: =SUMPRODUCT(D$3:N$3,D11:N11)
C12: 需要量300 | D12: 0 | E12: 0 | F12: 0 | G12: 0 | H12: 1 | I12: 1 | J12: 0 | K12: 0 | L12: 0 | M12: 1 | N12: -1 | O12: 300 | P12: = | Q12: 300 | S12: =SUMPRODUCT(D$3:N$3,D12:N12)
C13: 需要量200 | D13: 0 | E13: 0 | F13: 0 | G13: 0 | H13: 0 | I13: 0 | J13: 1 | K13: 1 | L13: 0 | M13: 0 | N13: 1 | O13: 200 | P13: = | Q13: 200 | S13: =SUMPRODUCT(D$3:N$3,D13:N13)
C14: A | D14: 1 | E14: 0 | F14: 0 | G14: 0 | H14: 0 | I14: 0 | J14: 0 | K14: 0 | L14: 0 | M14: 0 | N14: 0 | O14: 100 | P14: ≦ | Q14: 100 | S14: =SUMPRODUCT(D$3:N$3,D14:N14)
C15: B | D15: 0 | E15: 1 | F15: 0 | G15: 0 | H15: 0 | I15: 0 | J15: 0 | K15: 0 | L15: 0 | M15: 0 | N15: 0 | O15: 0 | P15: ≦ | Q15: 100 | S15: =SUMPRODUCT(D$3:N$3,D15:N15)
C16: C | D16: 0 | E16: 0 | F16: 1 | G16: 0 | H16: 0 | I16: 0 | J16: 0 | K16: 0 | L16: 0 | M16: 0 | N16: 0 | O16: 150 | P16: ≦ | Q16: 150 | S16: =SUMPRODUCT(D$3:N$3,D16:N16)
C17: D | D17: 0 | E17: 0 | F17: 0 | G17: 1 | H17: 0 | I17: 0 | J17: 0 | K17: 0 | L17: 0 | M17: 0 | N17: 0 | O17: 90 | P17: ≦ | Q17: 100 | S17: =SUMPRODUCT(D$3:N$3,D17:N17)
C18: E | D18: 0 | E18: 0 | F18: 0 | G18: 0 | H18: 1 | I18: 0 | J18: 0 | K18: 0 | L18: 0 | M18: 0 | N18: 0 | O18: 140 | P18: ≦ | Q18: 140 | S18: =SUMPRODUCT(D$3:N$3,D18:N18)
C19: F | D19: 0 | E19: 0 | F19: 0 | G19: 0 | H19: 0 | I19: 1 | J19: 0 | K19: 0 | L19: 0 | M19: 0 | N19: 0 | O19: 100 | P19: ≦ | Q19: 100 | S19: =SUMPRODUCT(D$3:N$3,D19:N19)
C20: G | D20: 0 | E20: 0 | F20: 0 | G20: 0 | H20: 0 | I20: 0 | J20: 1 | K20: 0 | L20: 0 | M20: 0 | N20: 0 | O20: 160 | P20: ≦ | Q20: 160 | S20: =SUMPRODUCT(D$3:N$3,D20:N20)
C21: H | D21: 0 | E21: 0 | F21: 0 | G21: 0 | H21: 0 | I21: 0 | J21: 0 | K21: 1 | L21: 0 | M21: 0 | N21: 0 | O21: 40 | P21: ≦ | Q21: 100 | S21: =SUMPRODUCT(D$3:N$3,D21:N21)

Sheet 例題7-1_シミュレーション
A1: p | B1: 0.6
A3: n＼i | B3: 0 | C3: 1 | D3: 2 | E3: 3 | F3: 4 | G3: 5 | H3: 6 | I3: 7 | J3: 8 | K3: 9 | L3: 10 | M3: 11 | N3: 12 | O3: 13 | P3: 14 | Q3: 15 | R3: 16 | S3: 17 | T3: 18 | U3: 19 | V3: 20 | X3: n＼i | Y3: 0 | Z3: 1 | AA3: 2 | AB3: 3 | AC3: 4 | AD3: 5 | AE3: 6 | AF3: 7 | AG3: 8 | AH3: 9 | AI3: 10 | AJ3: 11 | AK3: 12 | AL3: 13 | AM3: 14 | AN3: 15 | AO3: 16 | AP3: 17 | AQ3: 18 | AR3: 19 | AS3: 20
A4: 0 | B4: 0 | C4: 0 | D4: 0 | E4: 0 | F4: 0 | G4: 1 | H4: 0 | I4: 0 | J4: 0 | K4: 0 | L4: 0 | M4: 0 | N4: 0 | O4: 0 | P4: 0 | Q4: 0 | R4: 0 | S4: 0 | T4: 0 | U4: 0 | V4: 0 | X4: 0 | Y4: P0(0) | Z4: P0(1) | AA4: P0(2) | AB4: P0(3) | AC4: P0(4) | AD4: P0(5) | AE4: P0(6) | AF4: P0(7) | AG4: P0(8) | AH4: P0(9) | AI4: P0(10) | AJ4: P0(11) | AK4: P0(12) | AL4: P0(13) | AM4: P0(14) | AN4: P0(15) | AO4: P0(16) | AP4: P0(17) | AQ4: P0(18) | AR4: P0(19) | AS4: P0(20)
A5: 1 | B5: =B4+(1-$B$1)*C4 -> 0 | C5: =(1-$B$1)*D4 -> 0 | D5: =$B$1*C4+(1-$B$1)*E4 -> 0 | E5: =$B$1*D4+(1-$B$1)*F4 -> 0 | F5: 0.4 | G5: 0 | H5: 0.6 | I5: 0 | J5: 0 | K5: 0 | L5: 0 | M5: 0 | N5: 0 | O5: 0 | P5: 0 | Q5: 0 | R5: 0 | S5: 0 | T5: 0 | U5: =$B$1*T4 -> 0 | V5: =$B$1*U4+V4 -> 0 | X5: 1 | Y5: P1(0) | Z5: P1(1) | AA5: P1(2) | AB5: P1(3) | AC5: P1(4) | AD5: P1(5) | AE5: P1(6) | AF5: P1(7) | AG5: P1(8) | AH5: P1(9) | AI5: P1(10) | AJ5: P1(11) | AK5: P1(12) | AL5: P1(13) | AM5: P1(14) | AN5: P1(15) | AO5: P1(16) | AP5: P1(17) | AQ5: P1(18) | AR5: P1(19) | AS5: P1(20)
A6: 2 | B6: =B5+(1-$B$1)*C5 -> 0 | C6: =(1-$B$1)*D5 -> 0 | D6: =$B$1*C5+(1-$B$1)*E5 -> 0 | E6: 0.16 | F6: 0 | G6: 0.48 | H6: 0 | I6: 0.36 | J6: 0 | K6: 0 | L6: 0 | M6: 0 | N6: 0 | O6: 0 | P6: 0 | Q6: 0 | R6: 0 | S6: 0 | T6: 0 | U6: =$B$1*T5 -> 0 | V6: =$B$1*U5+V5 -> 0 | X6: 2 | Y6: P2(0) | Z6: P2(1) | AA6: P2(2) | AB6: P2(3) | AC6: P2(4) | AD6: P2(5) | AE6: P2(6) | AF6: P2(7) | AG6: P2(8) | AH6: P2(9) | AI6: P2(10) | AJ6: P2(11) | AK6: P2(12) | AL6: P2(13) | AM6: P2(14) | AN6: P2(15) | AO6: P2(16) | AP6: P2(17) | AQ6: P2(18) | AR6: P2(19) | AS6: P2(20)
A7: 3 | B7: 0 | C7: 0 | D7: 0.064 | E7: 0 | F7: 0.288 | G7: 0 | H7: 0.432 | I7: 0 | J7: 0.216 | K7: 0 | L7: 0 | M7: 0 | N7: 0 | O7: 0 | P7: 0 | Q7: 0 | R7: 0 | S7: 0 | T7: 0 | U7: 0 | V7: 0 | X7: 3 | Y7: P3(0) | Z7: P3(1) | AA7: P3(2) | AB7: P3(3) | AC7: P3(4) | AD7: P3(5) | AE7: P3(6) | AF7: P3(7) | AG7: P3(8) | AH7: P3(9) | AI7: P3(10) | AJ7: P3(11) | AK7: P3(12) | AL7: P3(13) | AM7: P3(14) | AN7: P3(15) | AO7: P3(16) | AP7: P3(17) | AQ7: P3(18) | AR7: P3(19) | AS7: P3(20)
A8: 4 | B8: 0 | C8: 0.0256 | D8: 0 | E8: 0.1536 | F8: 0 | G8: 0.3456 | H8: 0 | I8: 0.3456 | J8: 0 | K8: 0.1296 | L8: 0 | M8: 0 | N8: 0 | O8: 0 | P8: 0 | Q8: 0 | R8: 0 | S8: 0 | T8: 0 | U8: 0 | V8: 0 | X8: 4 | Y8: P4(0) | Z8: P4(1) | AA8: P4(2) | AB8: P4(3) | AC8: P4(4) | AD8: P4(5) | AE8: P4(6) | AF8: P4(7) | AG8: P4(8) | AH8: P4(9) | AI8: P4(10) | AJ8: P4(11) | AK8: P4(12) | AL8: P4(13) | AM8: P4(14) | AN8: P4(15) | AO8: P4(16) | AP8: P4(17) | AQ8: P4(18) | AR8: P4(19) | AS8: P4(20)
A9: 5 | B9: 0.01024 | C9: 0 | D9: 0.0768 | E9: 0 | F9: 0.2304 | G9: 0 | H9: 0.3456 | I9: 0 | J9: 0.2592 | K9: 0 | L9: 0.07776 | M9: 0 | N9: 0 | O9: 0 | P9: 0 | Q9: 0 | R9: 0 | S9: 0 | T9: 0 | U9: 0 | V9: 0 | X9: 5 | Y9: P5(0) | Z9: P5(1) | AA9: P5(2) | AB9: P5(3) | AC9: P5(4) | AD9: P5(5) | AE9: P5(6) | AF9: P5(7) | AG9: P5(8) | AH9: P5(9) | AI9: P5(10) | AJ9: P5(11) | AK9: P5(12) | AL9: P5(13) | AM9: P5(14) | AN9: P5(15) | AO9: P5(16) | AP9: P5(17) | AQ9: P5(18) | AR9: P5(19) | AS9: P5(20)
A10: 6 | B10: 0.01024 | C10: 0.03072 | D10: 0 | E10: 0.13824 | F10: 0 | G10: 0.27648 | H10: 0 | I10: 0.31104 | J10: 0 | K10: 0.186624 | L10: 0 | M10: 0.046656 | N10: 0 | O10: 0 | P10: 0 | Q10: 0 | R10: 0 | S10: 0 | T10: 0 | U10: 0 | V10: 0 | X10: 6 | Y10: P6(0) | Z10: P6(1) | AA10: P6(2) | AB10: P6(3) | AC10: P6(4) | AD10: P6(5) | AE10: P6(6) | AF10: P6(7) | AG10: P6(8) | AH10: P6(9) | AI10: P6(10) | AJ10: P6(11) | AK10: P6(12) | AL10: P6(13) | AM10: P6(14) | AN10: P6(15) | AO10: P6(16) | AP10: P6(17) | AQ10: P6(18) | AR10: P6(19) | AS10: P6(20)
A11: 7 | B11: 0.022528 | C11: 0 | D11: 0.073728 | E11: 0 | F11: 0.193536 | G11: 0 | H11: 0.290304 | I11: 0 | J11: 0.2612736 | K11: 0 | L11: 0.1306368 | M11: 0 | N11: 0.0279936 | O11: 0 | P11: 0 | Q11: 0 | R11: 0 | S11: 0 | T11: 0 | U11: 0 | V11: 0 | X11: 7 | Y11: P7(0) | Z11: P7(1) | AA11: P7(2) | AB11: P7(3) | AC11: P7(4) | AD11: P7(5) | AE11: P7(6) | AF11: P7(7) | AG11: P7(8) | AH11: P7(9) | AI11: P7(10) | AJ11: P7(11) | AK11: P7(12) | AL11: P7(13) | AM11: P7(14) | AN11: P7(15) | AO11: P7(16) | AP11: P7(17) | AQ11: P7(18) | AR11: P7(19) | AS11: P7(20)
A12: 8 | B12: 0.022528 | C12: 0.0294912 | D12: 0 | E12: 0.1216512 | F12: 0 | G12: 0.2322432 | H12: 0 | I12: 0.27869184 | J12: 0 | K12: 0.20901888 | L12: 0 | M12: 0.08957952 | N12: 0 | O12: 0.01679616 | P12: 0 | Q12: 0 | R12: 0 | S12: 0 | T12: 0 | U12: 0 | V12: 0 | X12: 8 | Y12: P8(0) | Z12: P8(1) | AA12: P8(2) | AB12: P8(3) | AC12: P8(4) | AD12: P8(5) | AE12: P8(6) | AF12: P8(7) | AG12: P8(8) | AH12: P8(9) | AI12: P8(10) | AJ12: P8(11) | AK12: P8(12) | AL12: P8(13) | AM12: P8(14) | AN12: P8(15) | AO12: P8(16) | AP12: P8(17) | AQ12: P8(18) | AR12: P8(19) | AS12: P8(20)
A13: 9 | B13: 0.03432448 | C13: 0 | D13: 0.0663552 | E13: 0 | F13: 0.165888 | G13: 0 | H13: 0.250822656 | I13: 0 | J13: 0.250822656 | K13: 0 | L13: 0.161243136 | M13: 0 | N13: 0.060466176 | O13: 0 | P13: 0.010077696 | Q13: 0 | R13: 0 | S13: 0 | T13: 0 | U13: 0 | V13: 0 | X13: 9 | Y13: P9(0) | Z13: P9(1) | AA13: P9(2) | AB13: P9(3) | AC13: P9(4) | AD13: P9(5) | AE13: P9(6) | AF13: P9(7) | AG13: P9(8) | AH13: P9(9) | AI13: P9(10) | AJ13: P9(11) | AK13: P9(12) | AL13: P9(13) | AM13: P9(14) | AN13: P9(15) | AO13: P9(16) | AP13: P9(17) | AQ13: P9(18) | AR13: P9(19) | AS13: P9(20)
A14: 10 | B14: =B13+(1-$B$1)*C13 -> 0.03432448 | C14: 0.02654208 | D14: 0 | E14: 0.10616832 | F14: 0 | G14: 0.1998618624 | H14: 0 | I14: 0.250822656 | J14: 0 | K14: 0.214990848 | L14: 0 | M14: 0.120932352 | N14: 0 | O14: 0.040310784 | P14: 0 | Q14: 0.0060466176 | R14: 0 | S14: 0 | T14: 0 | U14: 0 | V14: =$B$1*U13+V13 -> 0 | X14: 10 | Y14: P10(0) | Z14: P10(1) | AA14: P10(2) | AB14: P10(3) | AC14: P10(4) | AD14: P10(5) | AE14: P10(6) | AF14: P10(7) | AG14: P10(8) | AH14: P10(9) | AI14: P10(10) | AJ14: P10(11) | AK14: P10(12) | AL14: P10(13) | AM14: P10(14) | AN14: P10(15) | AO14: P10(16) | AP14: P10(17) | AQ14: P10(18) | AR14: P10(19) | AS14: P10(20)
A15: 11 | B15: 0.044941312 | C15: 0 | D15: 0.058392576 | E15: 0 | F15: 0.143645737 | G15: 0 | H15: 0.2202461798 | I15: 0 | J15: 0.2364899328 | K15: 0 | L15: 0.1773674496 | M15: 0 | N15: 0.0886837248 | O15: 0 | P15: 0.02660511744 | Q15: 0 | R15: 0.00362797056 | S15: 0 | T15: 0 | U15: 0 | V15: 0
A16: 12 | B16: 0.044941312 | C16: 0.0233570304 | D16: 0 | E16: 0.09249384038 | F16: 0 | G16: 0.1742859141 | H16: 0 | I16: 0.226743681 | J16: 0 | K16: 0.2128409395 | L16: 0 | M16: 0.1418939597 | N16: 0 | O16: 0.06385228186 | P16: 0 | Q16: 0.01741425869 | R16: 0 | S16: 0.002176782336 | T16: 0 | U16: 0 | V16: 0
A17: 13 | B17: 0.05428412416 | C17: 0 | D17: 0.05101175439 | E17: 0 | F17: 0.1252106699 | G17: 0 | H17: 0.1952690209 | I17: 0 | J17: 0.2211825844 | K17: 0 | L17: 0.1844621476 | M17: 0 | N17: 0.1106772886 | O17: 0 | P17: 0.04527707259 | Q17: 0 | R17: 0.01131926815 | S17: 0 | T17: 0.001306069402 | U17: 0 | V17: 0
A18: 14 | B18: 0.05428412416 | C18: 0.02040470176 | D18: 0 | E18: 0.08069132059 | F18: 0 | G18: 0.1532340103 | H18: 0 | I18: 0.2056344463 | J18: 0 | K18: 0.2064944097 | L18: 0 | M18: 0.154948204 | N18: 0 | O18: 0.08451720217 | P18: 0 | Q18: 0.03169395081 | R18: 0 | S18: 0.007313988649 | T18: 0 | U18: 0.000783641641 | V18: 0
A19: 15 | B19: 0.06244600486 | C19: 0 | D19: 0.04451934929 | E19: 0 | F19: 0.1097083965 | G19: 0 | H19: 0.1741941847 | I19: 0 | J19: 0.2059784317 | K19: 0 | L19: 0.1858759274 | M19: 0 | N19: 0.1267758032 | O19: 0 | P19: 0.06338790162 | Q19: 0 | R19: 0.02194196595 | S19: 0 | T19: 0.004701849846 | U19: 0 | V19: 0.0004701849846
A20: 16 | B20: 0.06244600486 | C20: 0.01780773972 | D20: 0 | E20: 0.07059496816 | F20: 0 | G20: 0.1355027118 | H20: 0 | I20: 0.1869078835 | J20: 0 | K20: 0.19793743 | L20: 0 | M20: 0.1622358777 | N20: 0 | O20: 0.1014206426 | P20: 0 | Q20: 0.04680952735 | R20: 0 | S20: 0.01504591951 | T20: =$B$1*S19+(1-$B$1)*U19 -> 0 | U20: 0.002821109907 | V20: 0.0004701849846
A21: 17 | B21: 0.06956910075 | C21: 0 | D21: 0.03892263109 | E21: 0 | F21: 0.0965580656 | G21: 0 | H21: 0.1560647804 | I21: 0 | J21: 0.1913197021 | K21: 0 | L21: 0.1836568091 | M21: 0 | N21: 0.1379097837 | O21: 0 | P21: 0.0795761965 | Q21: 0 | R21: 0.03410408421 | S21: 0 | T21: 0.01015599567 | U21: 0 | V21: 0.002162850929
A22: 18 | B22: 0.06956910075 | C22: 0.01556905244 | D22: 0 | E22: 0.06197680489 | F22: 0 | G22: 0.1203607515 | H22: 0 | I22: 0.1701667491 | J22: 0 | K22: 0.1882545449 | L22: 0 | M22: 0.1653579989 | N22: 0 | O22: 0.1145763488 | P22: 0 | Q22: 0.06138735159 | R22: 0 | S22: 0.0245248488 | T22: 0 | U22: 0.0060935974 | V22: 0.002162850929
A23: 19 | B23: 0.07579672172 | C23: 0 | D23: 0.03413215342 | E23: 0 | F23: 0.08533038355 | G23: 0 | H23: 0.1402831506 | I23: 0 | J23: 0.1774018674 | K23: 0 | L23: 0.1790959265 | M23: 0 | N23: 0.1450453389 | O23: 0 | P23: 0.09330074992 | Q23: 0 | R23: 0.04664235047 | S23: 0 | T23: 0.01715234824 | U23: 0 | V23: 0.005819009369
A24: 20 | B24: 0.07579672172 | C24: 0.01365286137 | D24: 0 | E24: 0.05461144547 | F24: 0 | G24: 0.1073114904 | H24: 0 | I24: 0.1551306373 | J24: 0 | K24: 0.178079491 | L24: 0 | M24: 0.1654756914 | N24: 0 | O24: 0.1243475033 | P24: 0 | Q24: 0.07463739014 | R24: 0 | S24: 0.03484634958 | T24: 0 | U24: 0.01029140894 | V24: 0.005819009369
A25: 21 | B25: 0.08125786627 | C25: 0 | D25: 0.03003629501 | E25: 0 | F25: 0.07569146342 | G25: 0 | H25: 0.1264391491 | I25: 0 | J25: 0.1643101788 | K25: 0 | L25: 0.1730379712 | M25: 0 | N25: 0.1490244162 | O25: 0 | P25: 0.104463458 | Q25: 0 | R25: 0.05872097391 | S25: 0 | T25: 0.02502437332 | U25: 0 | V25: 0.01199385473
A26: 22 | B26: 0.08125786627 | C26: 0.012014518 | D26: 0 | E26: 0.04829836238 | F26: 0 | G26: 0.09599053771 | H26: 0 | I26: 0.141587561 | J26: 0 | K26: 0.1678012958 | L26: 0 | M26: 0.1634325492 | N26: 0 | O26: 0.1312000329 | P26: 0 | Q26: 0.08616646438 | R26: 0 | S26: 0.04524233368 | T26: 0 | U26: 0.01501462399 | V26: 0.01199385473
A27: 23 | B27: 0.08606367347 | C27: 0 | D27: 0.02652805575 | E27: 0 | F27: 0.06737523251 | G27: 0 | H27: 0.114229347 | I27: 0 | J27: 0.1520730549 | K27: 0 | L27: 0.1660537971 | M27: 0 | N27: 0.1505395427 | O27: 0 | P27: 0.1131866055 | Q27: 0 | R27: 0.0697968121 | S27: 0 | T27: 0.0331512498 | U27: 0 | V27: 0.02100262913
A28: 24 | B28: 0.08606367347 | C28: 0.0106112223 | D28: 0 | E28: 0.04286692645 | F28: 0 | G28: 0.08611687831 | H28: 0 | I28: 0.1293668302 | J28: 0 | K28: 0.1576653518 | L28: 0 | M28: 0.1598480953 | N28: 0 | O28: 0.1355983678 | P28: 0 | Q28: 0.09583068814 | R28: 0 | S28: 0.05513858718 | T28: 0 | U28: 0.01989074988 | V28: 0.02100262913
A29: 25 | B29: 0.09030816239 | C29: 0 | D29: 0.02351350396 | E29: 0 | F29: 0.0601669072 | G29: 0 | H29: 0.1034168591 | I29: 0 | J29: 0.1406862388 | K29: 0 | L29: 0.1585384492 | M29: 0 | N29: 0.1501482043 | O29: 0 | P29: 0.1196912959 | Q29: 0 | R29: 0.07955384776 | S29: 0 | T29: 0.04103945226 | U29: 0 | V29: 0.03293707906
A30: 26 | B30: 0.09030816239 | C30: 0.009405401585 | D30: 0 | E30: 0.03817486526 | F30: 0 | G30: 0.07746688794 | H30: 0 | I30: 0.118324611 | J30: 0 | K30: 0.147827123 | L30: 0 | M30: 0.1551823513 | N30: 0 | O30: 0.137965441 | P30: 0 | Q30: 0.1036363167 | R30: 0 | S30: 0.06414808956 | T30: 0 | U30: 0.02462367136 | V30: 0.03293707906
A31: 27 | B31: 0.09407032303 | C31: 0 | D31: 0.02091318705 | E31: 0 | F31: 0.05389167433 | G31: 0 | H31: 0.09380997715 | I31: 0 | J31: 0.1301256158 | K31: 0 | L31: 0.1507692143 | M31: 0 | N31: 0.1482955871 | O31: 0 | P31: 0.1242337913 | Q31: 0 | R31: 0.08784102583 | S31: 0 | T31: 0.04833832228 | U31: 0 | V31: 0.04771128188
A32: 28 | B32: 0.09407032303 | C32: 0.008365274821 | D32: 0 | E32: 0.03410458196 | F32: 0 | G32: 0.06985899546 | H32: 0 | I32: 0.1083362326 | J32: 0 | K32: 0.1383830552 | L32: 0 | M32: 0.1497797634 | N32: 0 | O32: 0.1386708688 | P32: 0 | Q32: 0.1096766851 | R32: 0 | S32: 0.07203994441 | T32: 0 | U32: 0.02900299337 | V32: 0.04771128188
A33: 29 | B33: 0.09741643296 | C33: 0 | D33: 0.01866099768 | E33: 0 | F33: 0.04840634736 | G33: 0 | H33: 0.08524989031 | I33: 0 | J33: 0.1203549616 | K33: 0 | L33: 0.1429417385 | M33: 0 | N33: 0.1453362056 | O33: 0 | P33: 0.1270731953 | Q33: 0 | R33: 0.09462198881 | S33: 0 | T33: 0.05482516399 | U33: 0 | V33: 0.0651130779
A34: 30 | B34: 0.09741643296 | C34: 0.007464399071 | D34: 0 | E34: 0.03055913755 | F34: 0 | G34: 0.06314376454 | H34: 0 | I34: 0.09929191884 | J34: 0 | K34: 0.1293896724 | L34: 0 | M34: 0.1438995253 | N34: 0 | O34: 0.1380310015 | P34: 0 | Q34: 0.1140927127 | R34: 0 | S34: 0.07870325888 | T34: 0 | U34: 0.0328950984 | V34: 0.0651130779
A35: 31 | B35: 0.1004021926 | C35: 0 | D35: 0.01670229446 | E35: 0 | F35: 0.04359298835 | G35: 0 | H35: 0.07760302626 | I35: 0 | J35: 0.1113310203 | K35: 0 | L35: 0.1351936135 | M35: 0 | N35: 0.1415521158 | O35: 0 | P35: 0.128455686 | Q35: 0 | R35: 0.09993693118 | S35: 0 | T35: 0.06037999469 | U35: 0 | V35: 0.08485013693
A36: 32 | B36: 0.1004021926 | C36: 0.006680917785 | D36: 0 | E36: 0.02745857202 | F36: 0 | G36: 0.05719700351 | H36: 0 | I36: 0.09109422386 | J36: 0 | K36: 0.1208760576 | L36: 0 | M36: 0.1377370144 | N36: 0 | O36: 0.1363135439 | P36: 0 | Q36: 0.1170481841 | R36: 0 | S36: =$B$1*R35+(1-$B$1)*T35 -> 0.08411415658 | T36: 0 | U36: 0.03622799681 | V36: 0.08485013693
A37: 33 | B37: 0.1030745597 | C37: 0 | D37: 0.01499197948 | E37: 0 | F37: 0.03935394462 | G37: 0 | H37: 0.07075589165 | I37: 0 | J37: 0.1030069573 | K37: 0 | L37: 0.1276204403 | M37: 0 | N37: 0.1371676262 | O37: 0 | P37: 0.1286073999 | Q37: 0 | R37: 0.1038745731 | S37: 0 | T37: 0.06495969268 | U37: 0 | V37: 0.106586935
A38: 34 | B38: 0.1030745597 | C38: 0.005996791791 | D38: 0 | E38: 0.02473676553 | F38: 0 | G38: 0.05191472343 | H38: 0 | I38: 0.08365631793 | J38: 0 | K38: 0.1128523505 | L38: 0 | M38: 0.1314393147 | N38: 0 | O38: 0.1337435357 | P38: 0 | Q38: 0.1187142692 | R38: 0 | S38: 0.08830862091 | T38: 0 | U38: 0.03897581561 | V38: 0.106586935
A39: 35 | B39: 0.1054732764 | C39: 0 | D39: 0.01349278129 | E39: 0 | F39: 0.03560794869 | G39: 0 | H39: 0.06461136123 | I39: 0 | J39: 0.09533473097 | K39: 0 | L39: 0.1202871362 | M39: 0 | N39: 0.1323610031 | O39: 0 | P39: 0.1277318291 | Q39: 0 | R39: 0.1065520099 | S39: 0 | T39: 0.06857549879 | U39: 0 | V39: 0.1299724244
A40: 36 | B40: 0.1054732764 | C40: 0.005397112515 | D40: 0 | E40: 0.02233884825 | F40: 0 | G40: 0.04720931371 | H40: 0 | I40: 0.07690070912 | J40: 0 | K40: 0.1053156931 | L40: 0 | M40: 0.1251166829 | N40: 0 | O40: 0.1305093335 | P40: 0 | Q40: 0.1192599014 | R40: 0 | S40: 0.09136140544 | T40: 0 | U40: 0.04114529927 | V40: 0.1299724244
A41: 37 | B41: 0.1076321214 | C41: 0 | D41: 0.01217380681 | E41: 0 | F41: 0.03228703443 | G41: 0 | H41: 0.05908587187 | I41: 0 | J41: 0.0882667027 | K41: 0 | L41: 0.113236089 | M41: 0 | N41: 0.1272737432 | O41: 0 | P41: 0.1260095607 | Q41: 0 | R41: 0.108100503 | S41: 0 | T41: 0.07127496297 | U41: 0 | V41: 0.1546596039
A42: 38 | B42: 0.1076321214 | C42: 0.004869522724 | D42: 0 | E42: 0.02021909786 | F42: 0 | G42: 0.04300656941 | H42: 0 | I42: 0.0707582042 | J42: 0 | K42: 0.09825445722 | L42: 0 | M42: 0.1188511507 | N42: 0 | O42: 0.1267680702 | P42: 0 | Q42: 0.1188459376 | R42: 0 | S42: 0.093370287 | T42: 0 | U42: 0.04276497778 | V42: 0.1546596039
A43: 39 | B43: 0.1095799305 | C43: 0 | D43: 0.01100935278 | E43: 0 | F43: 0.02933408648 | G43: 0 | H43: 0.05410722333 | I43: 0 | J43: 0.08175670541 | K43: 0 | L43: 0.1064931346 | M43: 0 | N43: 0.1220179185 | O43: 0 | P43: 0.1235992171 | Q43: 0 | R43: 0.1086556774 | S43: 0 | T43: 0.07312816331 | U43: 0 | V43: 0.1803185906
A44: 40 | B44: 0.1095799305 | C44: 0.004403741111 | D44: 0 | E44: 0.01833924626 | F44: 0 | G44: 0.03924334122 | H44: 0 | I44: 0.06516701616 | J44: 0 | K44: 0.09165127709 | L44: 0 | M44: 0.1127030481 | N44: 0 | O44: 0.1226504379 | P44: 0 | Q44: 0.1176218012 | R44: 0 | S44: 0.09444467174 | T44: 0 | U44: 0.04387689799 | V44: 0.1803185906
A45: 41 | B45: 0.111341427 | C45: 0 | D45: 0.00997794317 | E45: 0 | F45: 0.02670088424 | G45: 0 | H45: 0.04961281119 | I45: 0 | J45: 0.07576072053 | K45: 0 | L45: 0.1000719855 | M45: 0 | N45: 0.1166820041 | O45: 0 | P45: 0.1206389833 | Q45: 0 | R45: 0.1083509494 | S45: 0 | T45: 0.07421756224 | U45: 0 | V45: 0.2066447294
A46: 42 | B46: 0.111341427 | C46: 0.003991177268 | D46: 0 | E46: 0.0166671196 | F46: 0 | G46: 0.03586565502 | H46: 0 | I46: 0.06007197493 | J46: 0 | K46: 0.08548522652 | L46: 0 | M46: 0.1067159929 | N46: 0 | O46: 0.1182647957 | P46: 0 | Q46: 0.1157237697 | R46: 0 | S46: 0.09469759455 | T46: 0 | U46: 0.04453053734 | V46: 0.2066447294
A47: 43 | B47: 0.1129378979 | C47: 0 | D47: 0.0090615542 | E47: 0 | F47: 0.02434653377 | G47: 0 | H47: 0.04554818299 | I47: 0 | J47: 0.07023727557 | K47: 0 | L47: 0.09397753309 | M47: 0 | N47: 0.1113355141 | O47: 0 | P47: 0.1172483853 | Q47: 0 | R47: 0.1073132997 | S47: 0 | T47: 0.07463077167 | U47: 0 | V47: 0.2333630518
A48: 44 | B48: 0.1129378979 | C48: 0.00362462168 | D48: 0 | E48: 0.01517554603 | F48: 0 | G48: 0.03282719346 | H48: 0 | I48: 0.05542382002 | J48: 0 | K48: 0.07973337858 | L48: 0 | M48: 0.1009207255 | N48: 0 | O48: 0.1137006626 | P48: 0 | Q48: 0.1132743511 | R48: 0 | S48: 0.09424028846 | T48: 0 | U48: 0.044778463 | V48: 0.2333630518
A49: 45 | B49: 0.1143877465 | C49: 0 | D49: 0.008244991419 | E49: 0 | F49: 0.022236205 | G49: 0 | H49: 0.04186584408 | I49: 0 | J49: 0.06514764344 | K49: 0 | L49: 0.08820831733 | M49: 0 | N49: 0.1060327003 | O49: 0 | P49: 0.113530138 | Q49: 0 | R49: 0.105660726 | S49: 0 | T49: 0.07445555828 | U49: 0 | V49: 0.2602301296
A50: 46 | B50: 0.1143877465 | C50: 0.003297996568 | D50: 0 | E50: 0.01384147685 | F50: 0 | G50: 0.03008806063 | H50: 0 | I50: 0.05117856382 | J50: 0 | K50: 0.074371913 | L50: 0 | M50: 0.09533807053 | N50: 0 | O50: 0.1090316754 | P50: 0 | Q50: 0.1103823732 | R50: 0 | S50: 0.09317865892 | T50: 0 | U50: 0.04467333497 | V50: 0.2602301296
A51: 47 | B51: 0.1157069452 | C51: 0 | D51: 0.007515388681 | E51: 0 | F51: 0.02034011036 | G51: 0 | H51: 0.03852426191 | I51: 0 | J51: 0.06045590349 | K51: 0 | L51: 0.08275837601 | M51: 0 | N51: 0.1008155125 | O51: 0 | P51: 0.1095719545 | Q51: 0 | R51: 0.1035008875 | S51: 0 | T51: 0.07377652934 | U51: 0 | V51: 0.2870341306
A52: 48 | B52: 0.1157069452 | C52: 0.003006155472 | D52: 0 | E52: 0.01264527735 | F52: 0 | G52: 0.02761377098 | H52: 0 | I52: 0.04729691854 | J52: 0 | K52: 0.0693768925 | L52: 0 | M52: 0.08998123059 | N52: 0 | O52: 0.1043180893 | P52: 0 | Q52: 0.1071435277 | R52: =$B$1*Q51+(1-$B$1)*S51 -> 0 | S52: 0.09161114423 | T52: 0 | U52: 0.0442659176 | V52: 0.2870341306
A53: 49 | B53: 0.1169094073 | C53: 0 | D53: 0.006861804225 | E53: 0 | F53: 0.0186326748 | G53: 0 | H53: 0.03548703001 | I53: 0 | J53: 0.05612890813 | K53: 0 | L53: 0.07761862774 | M53: 0 | N53: 0.09571597407 | O53: 0 | P53: 0.1054482646 | Q53: 0 | R53: 0.1009305743 | S53: 0 | T53: 0.07267305358 | U53: 0 | V53: 0.3135936812
A54: 50 | B54: 0.1169094073 | C54: 0.00274472169 | D54: 0 | E54: 0.01157015246 | F54: 0 | G54: 0.02537441689 | H54: 0 | I54: 0.04374378125 | J54: 0 | K54: 0.06472479597 | L54: 0 | M54: 0.08485756627 | N54: 0 | O54: 0.0996088903 | P54: 0 | Q54: 0.1036411885 | R54: 0 | S54: 0.08962756601 | T54: 0 | U54: 0.04360383215 | V54: 0.3135936812
A55: 51 | B55: 0.118007296 | C55: 0 | D55: 0.006274893997 | E55: 0 | F55: 0.01709185823 | G55: 0 | H55: 0.03272216263 | I55: 0 | J55: 0.05213618714 | K55: 0 | L55: 0.07277790409 | M55: 0 | N55: 0.09075809588 | O55: 0 | P55: 0.1012218096 | Q55: 0 | R55: 0.09803573951 | S55: 0 | T55: 0.07121807247 | U55: 0 | V55: 0.3397559804
A56: 52 | B56: 0.118007296 | C56: 0.002509957599 | D56: 0 | E56: 0.01060167969 | F56: 0 | G56: 0.02334397999 | H56: 0 | I56: 0.04048777244 | J56: 0 | K56: 0.06039287392 | L56: 0 | M56: 0.07996998081 | N56: 0 | O56: 0.09494358136 | P56: 0 | Q56: 0.09994738155 | R56: 0 | S56: 0.08730867269 | T56: 0 | U56: 0.04273084348 | V56: 0.3397559804
A57: 53 | B57: 0.1190112791 | C57: 0 | D57: 0.005746646435 | E57: 0 | F57: 0.01569859981 | G57: 0 | H57: 0.03020149697 | I57: 0 | J57: 0.04844981303 | K57: 0 | L57: 0.06822371667 | M57: 0 | N57: 0.08595942103 | O57: 0 | P57: 0.09694510144 | Q57: 0 | R57: 0.09489189801 | S57: 0 | T57: 0.06947754101 | U57: 0 | V57: 0.3653944865
A58: 54 | B58: 0.1190112791 | C58: 0.002298658574 | D58: 0 | E58: 0.009727427785 | F58: 0 | G58: 0.02149975867 | H58: 0 | I58: 0.03750082339 | J58: 0 | K58: 0.05635937449 | L58: 0 | M58: 0.07531799842 | N58: 0 | O58: 0.09035369319 | P58: 0 | Q58: 0.09612382007 | R58: 0 | S58: 0.08472615521 | T58: 0 | U58: 0.0416865246 | V58: 0.3653944865
A59: 55 | B59: 0.1199307425 | C59: 0 | D59: 0.005270166258 | E59: 0 | F59: 0.01443636014 | G59: 0 | H59: 0.02790018456 | I59: 0 | J59: 0.04504424383 | K59: 0 | L59: 0.06394282406 | M59: 0 | N59: 0.08133227633 | O59: 0 | P59: 0.09266174394 | Q59: 0 | R59: 0.09156475412 | S59: 0 | T59: 0.06751030297 | U59: 0 | V59: 0.3904064013
A60: 56 | B60: 0.1199307425 | C60: 0.002108066503 | D60: 0 | E60: 0.008936643811 | F60: 0 | G60: 0.01982188991 | H60: 0 | I60: 0.03475780827 | J60: 0 | K60: 0.05260367592 | L60: 0 | M60: 0.07089860497 | N60: 0 | O60: 0.08586406337 | P60: 0 | Q60: 0.09222294801 | R60: 0 | S60: 0.08194297366 | T60: 0 | U60: 0.04050618178 | V60: 0.3904064013
A61: 57 | B61: 0.1207739691 | C61: 0 | D61: 0.004839497426 | E61: 0 | F61: 0.01329074225 | G61: 0 | H61: 0.02579625725 | I61: 0 | J61: 0.04189615533 | K61: 0 | L61: 0.05992164754 | M61: 0 | N61: 0.07688478833 | O61: 0 | P61: 0.08840761723 | Q61: 0 | R61: 0.08811095827 | S61: 0 | T61: 0.06536825691 | U61: 0 | V61: 0.4147101104
A62: 58 | B62: 0.1207739691 | C62: 0.001935798971 | D62: 0 | E62: 0.008219995356 | F62: 0 | G62: 0.01829294825 | H62: 0 | I62: 0.03223621648 | J62: 0 | K62: 0.04910635221 | L62: 0 | M62: 0.06670690385 | N62: 0 | O62: 0.08149391989 | P62: 0 | Q62: 0.08828895365 | R62: 0 | S62: 0.07901387773 | T62: 0 | U62: 0.03922095415 | V62: 0.4147101104
A63: 59 | B63: 0.1215482887 | C63: 0 | D63: 0.004449477525 | E63: 0 | F63: 0.01224917651 | G63: 0 | H63: 0.02387025554 | I63: 0 | J63: 0.03898427078 | K63: 0 | L63: 0.05614657287 | M63: 0 | N63: 0.07262171027 | O63: 0 | P63: 0.08421193339 | Q63: 0 | R63: 0.08457892328 | S63: 0 | T63: 0.06309670829 | U63: 0 | V63: 0.4382426829
A64: 60 | B64: 0.1215482887 | C64: 0.00177979101 | D64: 0 | E64: 0.00756935712 | F64: 0 | G64: 0.01689760813 | H64: 0 | I64: 0.02991586164 | J64: 0 | K64: 0.04584919161 | L64: 0 | M64: 0.06273662783 | N64: 0 | O64: 0.07725779952 | P64: 0 | Q64: 0.08435872935 | R64: 0 | S64: 0.07598603728 | T64: 0 | U64: 0.03785802498 | V64: 0.4382426829
A65: 61 | B65: 0.1222602051 | C65: 0 | D65: 0.004095617454 | E65: 0 | F65: 0.01130065752 | G65: 0 | H65: 0.02210490953 | I65: 0 | J65: 0.03628919363 | K65: 0 | L65: 0.0526041661 | M65: 0 | N65: 0.0685450965 | O65: 0 | P65: 0.08009817145 | Q65: 0 | R65: 0.08100965252 | S65: 0 | T65: 0.06073483236 | U65: 0 | V65: 0.4609574978
A66: 62 | B66: 0.1222602051 | C66: 0.001638246982 | D66: 0 | E66: 0.006977633481 | F66: 0 | G66: 0.01562235833 | H66: 0 | I66: 0.02777862317 | J66: 0 | K66: 0.04281518262 | L66: 0 | M66: 0.05898053826 | N66: 0 | O66: 0.07316632648 | P66: 0 | Q66: 0.08046276388 | R66: 0 | S66: 0.07289972446 | T66: 0 | U66: 0.03644089942 | V66: 0.4609574978
A67: 63 | B67: 0.1229155039 | C67: 0 | D67: 0.003774001582 | E67: 0 | F67: 0.01043552342 | G67: 0 | H67: 0.02048486426 | I67: 0 | J67: 0.03379324695 | K67: 0 | L67: 0.04928132487 | M67: 0 | N67: 0.06465485355 | O67: 0 | P67: 0.07608490144 | Q67: 0 | R67: 0.07743754811 | S67: 0 | T67: 0.05831619444 | U67: 0 | V67: 0.4828220375
A68: 64 | B68: 0.1229155039 | C68: 0.001509600633 | D68: 0 | E68: 0.006438610317 | F68: 0 | G68: 0.01445525976 | H68: 0 | I68: 0.02580821734 | J68: 0 | K68: 0.03998847812 | L68: 0 | M68: 0.05543073634 | N68: 0 | O68: 0.06922687271 | P68: 0 | Q68: =$B$1*P67+(1-$B$1)*R67 -> 0.07662596011 | R68: 0 | S68: 0.06978900664 | T68: 0 | U68: 0.03498971666 | V68: 0.4828220375
A69: 65 | B69: 0.1235193441 | C69: 0 | D69: 0.003481204506 | E69: 0 | F69: 0.009645270093 | G69: 0 | H69: 0.01899644279 | I69: 0 | J69: 0.03148032165 | K69: 0 | L69: 0.04616538141 | M69: 0 | N69: 0.06094919089 | O69: 0 | P69: 0.07218650767 | Q69: 0 | R69: 0.07389117872 | S69: 0 | T69: 0.05586929065 | U69: 0 | V69: 0.5038158675
A70: 66 | B70: 0.1235193441 | C70: =(1-$B$1)*D69 -> 0.001392481802 | D70: =$B$1*C69+(1-$B$1)*E69 -> 0 | E70: 0.005946830741 | F70: 0 | G70: 0.01338573917 | H70: 0 | I70: 0.02398999433 | J70: 0 | K70: 0.03735434555 | L70: 0 | M70: 0.0520789052 | N70: 0 | O70: 0.0654441176 | P70: 0 | Q70: 0.07286837609 | R70: 0 | S70: 0.06668242349 | T70: 0 | U70: =$B$1*T69 -> 0.03352157439 | V70: 0.5038158675
A71: 67 | B71: 0.1240763369 | C71: 0 | D71: 0.003214221378 | E71: 0 | F71: 0.008922394113 | G71: 0 | H71: 0.01762744124 | I71: 0 | J71: 0.02933573482 | K71: 0 | L71: 0.04324416941 | M71: 0 | N71: 0.05742499016 | O71: 0 | P71: 0.068413821 | Q71: 0 | R71: 0.07039399505 | S71: 0 | T71: 0.05341808385 | U71: 0 | V71: 0.5239288121
A72: 68 | B72: 0.1240763369 | C72: 0.001285688551 | D72: 0 | E72: 0.005497490472 | F72: 0 | G72: 0.01240441296 | H72: 0 | I72: 0.02231075867 | J72: 0 | K72: 0.03489910866 | L72: 0 | M72: 0.04891649771 | N72: 0 | O72: 0.06182052249 | P72: 0 | Q72: 0.06920589062 | R72: 0 | S72: 0.06360363057 | T72: 0 | U72: 0.03205085031 | V72: 0.5239288121
A73: 69 | B73: 0.1245906123 | C73: 0 | D73: 0.002970409319 | E73: 0 | F73: 0.008260259468 | G73: 0 | H73: 0.01636695125 | I73: 0 | J73: 0.02734609867 | K73: 0 | L73: 0.04050606428 | M73: 0 | N73: 0.05407810762 | O73: 0 | P73: 0.06477466974 | Q73: 0 | R73: 0.0669649866 | S73: 0 | T73: 0.05098251847 | U73: 0 | V73: 0.5431593223
A74: 70 | B74: 0.1245906123 | C74: 0.001188163728 | D74: 0 | E74: 0.005086349379 | F74: 0 | G74: 0.01150293618 | H74: 0 | I74: 0.02075861021 | J74: 0 | K74: 0.03261008491 | L74: 0 | M74: 0.04593488162 | N74: 0 | O74: 0.05835673247 | P74: 0 | Q74: 0.06565079649 | R74: 0 | S74: 0.06057199935 | T74: 0 | U74: 0.03058951108 | V74: 0.5431593223
A75: 71 | B75: 0.1250658778 | C75: 0 | D75: 0.002747437988 | E75: 0 | F75: 0.007652984099 | G75: 0 | H75: 0.01520520579 | I75: 0 | J75: 0.02549920009 | K75: 0 | L75: 0.03794000359 | M75: 0 | N75: 0.05090362196 | O75: 0 | P75: 0.06127435808 | Q75: 0 | R75: 0.06361927763 | S75: 0 | T75: 0.04857900404 | U75: 0 | V75: 0.561513029
A76: 72 | B76: 0.1250658778 | C76: 0.001098975195 | D76: 0 | E76: 0.004709656432 | F76: 0 | G76: 0.01067387278 | H76: 0 | I76: 0.01932280351 | J76: 0 | K76: 0.03047552149 | L76: 0 | M76: 0.04312545094 | N76: 0 | O76: 0.05505191641 | P76: 0 | Q76: 0.0622123259 | R76: 0 | S76: 0.05760316819 | T76: 0 | U76: 0.02914740242 | V76: 0.561513029
A77: 73 | B77: 0.1255054678 | C77: 0 | D77: 0.00254324769 | E77: 0 | F77: 0.00709534297 | G77: 0 | H77: 0.01413344507 | I77: 0 | J77: 0.0237838907 | K77: 0 | L77: 0.03553549327 | M77: 0 | N77: 0.04789603713 | O77: 0 | P77: 0.0579160802 | Q77: 0 | R77: 0.06036866282 | S77: 0 | T77: 0.04622086189 | U77: 0 | V77: 0.5790014704
A78: 74 | B78: =B77+(1-$B$1)*C77 -> 0.1255054678 | C78: 0.001017299076 | D78: 0 | E78: 0.004364085802 | F78: 0 | G78: 0.00991058381 | H78: 0 | I78: 0.01799362332 | J78: 0 | K78: 0.02848453173 | L78: 0 | M78: 0.04047971081 | N78: 0 | O78: 0.05190405436 | P78: 0 | Q78: 0.05889711325 | R78: 0 | S78: 0.05470954244 | T78: 0 | U78: 0.02773251713 | V78: =$B$1*U77+V77 -> 0.5790014704
A79: 75 | B79: 0.1259123875 | C79: 0 | D79: 0.002356013766 | E79: 0 | F79: 0.006582685005 | G79: 0 | H79: 0.01314379962 | I79: 0 | J79: 0.02218998669 | K79: 0 | L79: 0.03328260336 | M79: 0 | N79: 0.04504944823 | O79: 0 | P79: 0.05470127791 | Q79: 0 | R79: 0.05722208493 | S79: 0 | T79: 0.04391873232 | U79: 0 | V79: 0.5956409807
A80: 76 | B80: 0.1259123875 | C80: 0.0009424055066 | D80: 0 | E80: 0.004046682262 | F80: 0 | G80: 0.00920713085 | H80: 0 | I80: 0.01676227444 | J80: 0 | K80: 0.02662703336 | L80: 0 | M80: 0.03798934131 | N80: 0 | O80: 0.0489101801 | P80: 0 | Q80: 0.05570960072 | R80: 0 | S80: 0.05190074388 | T80: 0 | U80: 0.02635123939 | V80: 0.5956409807
A81: 77 | B81: 0.1262893497 | C81: 0 | D81: 0.002184116209 | E81: 0 | F81: 0.006110861697 | G81: 0 | H81: 0.01222918829 | I81: 0 | J81: 0.02070817801 | K81: 0 | L81: 0.03117195654 | M81: 0 | N81: 0.04235767683 | O81: 0 | P81: 0.05162994835 | Q81: 0 | R81: 0.05418605799 | S81: 0 | T81: 0.04168094209 | U81: 0 | V81: 0.6114517243
A82: 78 | B82: 0.1262893497 | C82: 0.0008736464835 | D82: 0 | E82: 0.003754814404 | F82: 0 | G82: 0.008558192333 | H82: 0 | I82: 0.01562078418 | J82: 0 | K82: 0.02489368942 | L82: 0 | M82: 0.03564624465 | N82: 0 | O82: 0.04606658544 | P82: 0 | Q82: 0.0526523922 | R82: 0 | S82: 0.04918401163 | T82: 0 | U82: 0.02500856525 | V82: 0.6114517243
A83: 79 | B83: 0.1266388083 | C83: 0 | D83: 0.002026113652 | E83: 0 | F83: 0.005676165576 | G83: 0 | H83: 0.01138322907 | I83: 0 | J83: 0.01932994627 | K83: 0 | L83: 0.02919471151 | M83: 0 | N83: 0.03981438097 | O83: 0 | P83: 0.04870090814 | Q83: 0 | R83: 0.05126503997 | S83: 0 | T83: 0.03951383308 | U83: 0 | V83: 0.6264568635
A84: 80 | B84: 0.1266388083 | C84: 0.0008104454607 | D84: 0 | E84: 0.003486134421 | F84: 0 | G84: 0.007958990974 | H84: 0 | I84: 0.01456191595 | J84: 0 | K84: 0.02327585237 | L84: 0 | M84: 0.0334425793 | N84: 0 | O84: 0.04336899184 | P84: =$B$1*O83+(1-$B$1)*Q83 -> 0 | Q84: 0.04972656088 | R84: 0 | S84: 0.04656455721 | T84: 0 | U84: 0.02370829985 | V84: 0.6264568635
A85: 81 | B85: 0.1269629865 | C85: 0 | D85: 0.001880721045 | E85: 0 | F85: 0.005275277042 | G85: 0 | H85: 0.01060016097 | I85: 0 | J85: 0.01804749052 | K85: 0 | L85: 0.02734254314 | M85: 0 | N85: 0.03741314431 | O85: 0 | P85: 0.04591201945 | Q85: 0 | R85: 0.04846175941 | S85: 0 | T85: 0.03742205427 | U85: 0 | V85: 0.6406818434
A86: 82 | B86: 0.1269629865 | C86: 0.000752288418 | D86: 0 | E86: 0.003238543444 | F86: 0 | G86: 0.007405230611 | H86: 0 | I86: 0.01357909279 | J86: 0 | K86: 0.02176551157 | L86: 0 | M86: 0.03137078361 | N86: 0 | O86: 0.04081269437 | P86: 0 | Q86: 0.04693191544 | R86: 0 | S86: 0.04404587735 | T86: 0 | U86: 0.02245323256 | V86: 0.6406818434
A87: 83 | B87: 0.1272639018 | C87: 0 | D87: 0.001746790428 | E87: 0 | F87: 0.004905218311 | G87: 0 | H87: 0.009874775482 | I87: 0 | J87: 0.0168536603 | K87: 0 | L87: 0.02560762038 | M87: 0 | N87: 0.03514754791 | O87: 0 | P87: 0.0432603828 | Q87: 0 | R87: 0.0457775002 | S87: 0 | T87: 0.03540881944 | U87: 0 | V87: 0.6541537829
A88: 84 | B88: 0.1272639018 | C88: 0.0006987161713 | D88: 0 | E88: 0.003010161581 | F88: 0 | G88: 0.006893041179 | H88: 0 | I88: 0.01266632941 | J88: 0 | K88: 0.02035524433 | L88: 0 | M88: 0.0294235914 | N88: 0 | O88: 0.03839268187 | P88: 0 | Q88: 0.04426722976 | R88: 0 | S88: 0.0416300279 | T88: 0 | U88: 0.02124529166 | V88: 0.6541537829
A89: 85 | B89: 0.1275433883 | C89: 0 | D89: 0.001623294335 | E89: 0 | F89: 0.00456331342 | G89: 0 | H89: 0.009202356471 | I89: 0 | J89: 0.01574189538 | K89: 0 | L89: 0.02398258316 | M89: 0 | N89: 0.03301122758 | O89: 0 | P89: 0.04074250102 | Q89: 0 | R89: 0.04321234901 | S89: 0 | T89: 0.0334761334 | U89: 0 | V89: 0.6669009579
A90: 86 | B90: 0.1275433883 | C90: 0.0006493177341 | D90: 0 | E90: 0.002799301969 | F90: 0 | G90: 0.006418930641 | H90: 0 | I90: 0.01181817203 | J90: 0 | K90: 0.01903817049 | L90: 0 | M90: 0.02759404093 | N90: 0 | O90: 0.03610373696 | P90: 0 | Q90: 0.04173044022 | R90: 0 | S90: 0.03931786277 | T90: 0 | U90: 0.02008568004 | V90: 0.6669009579
A91: 87 | B91: 0.1278031154 | C91: 0 | D91: 0.001509311428 | E91: 0 | F91: 0.004247153438 | G91: 0 | H91: 0.008578627198 | I91: 0 | J91: 0.01470617142 | K91: 0 | L91: 0.02246051867 | M91: 0 | N91: 0.03099791934 | O91: 0 | P91: 0.03835441826 | Q91: 0 | R91: 0.04076540924 | S91: 0 | T91: 0.03162498968 | U91: 0 | V91: 0.6789523659
A92: 88 | B92: 0.1278031154 | C92: 0.0006037245713 | D92: 0 | E92: 0.002604448232 | F92: 0 | G92: 0.005979742942 | H92: 0 | I92: 0.01102964489 | J92: 0 | K92: 0.01780791032 | L92: 0 | M92: 0.02587547894 | N92: 0 | O92: 0.03394051891 | P92: 0 | Q92: 0.03931881465 | R92: 0 | S92: 0.03710924142 | T92: 0 | U92: 0.01897499381 | V92: 0.6789523659
A93: 89 | B93: 0.1280446052 | C93: 0 | D93: 0.001404014036 | E93: 0 | F93: 0.003954566116 | G93: 0 | H93: 0.007999703719 | I93: 0 | J93: 0.01374095106 | K93: 0 | L93: 0.02103493776 | M93: 0 | N93: 0.02910149493 | O93: 0 | P93: 0.03609183721 | Q93: 0 | R93: 0.03843498536 | S93: 0 | T93: 0.02985554237 | U93: 0 | V93: 0.6903373622
A94: 90 | B94: 0.1280446052 | C94: 0.0005616056142 | D94: 0 | E94: 0.002424234868 | F94: 0 | G94: 0.005572621157 | H94: 0 | I94: 0.01029620265 | J94: 0 | K94: 0.01665854574 | L94: 0 | M94: 0.02426156063 | N94: 0 | O94: 0.03189763184 | P94: 0 | Q94: 0.03702909647 | R94: 0 | S94: 0.03500320816 | T94: 0 | U94: 0.01791332542 | V94: 0.6903373622
A95: 91 | B95: 0.1282692475 | C95: 0 | D95: 0.001306657316 | E95: 0 | F95: 0.003683589384 | G95: 0 | H95: 0.007462053756 | I95: 0 | J95: 0.01284113989 | K95: 0 | L95: 0.0196997517 | M95: 0 | N95: 0.02731598911 | O95: 0 | P95: 0.03395021769 | Q95: 0 | R95: 0.03621874115 | S95: 0 | T95: 0.02816725507 | U95: 0 | V95: 0.7010853575
A96: 92 | B96: 0.1282692475 | C96: 0.0005226629263 | D96: 0 | E96: 0.002257430143 | F96: 0 | G96: 0.005194975133 | H96: 0 | I96: 0.009613688209 | J96: 0 | K96: 0.01558458461 | L96: 0 | M96: 0.02274624666 | N96: 0 | O96: 0.02996968054 | P96: 0 | Q96: 0.03485762707 | R96: 0 | S96: 0.03299814671 | T96: 0 | U96: 0.01690035304 | V96: 0.7010853575
A97: 93 | B97: 0.1284783126 | C97: 0 | D97: 0.001216569813 | E97: 0 | F97: 0.003432448139 | G97: 0 | H97: 0.006962460363 | I97: 0 | J97: 0.01200204677 | K97: 0 | L97: 0.01844924943 | M97: 0 | N97: 0.02563562022 | O97: 0 | P97: 0.03192485916 | Q97: 0 | R97: 0.03411383493 | S97: 0 | T97: 0.02655902925 | U97: 0 | V97: 0.7112255693
A98: 94 | B98: 0.1284783126 | C98: 0.0004866279252 | D98: 0 | E98: 0.002102921143 | F98: 0 | G98: 0.004844453029 | H98: 0 | I98: 0.008978294926 | J98: 0 | K98: 0.01458092784 | L98: 0 | M98: 0.02132379775 | N98: 0 | O98: 0.02815131579 | P98: 0 | Q98: 0.03280044947 | R98: 0 | S98: 0.03109191266 | T98: 0 | U98: 0.01593541755 | V98: 0.7112255693
A99: 95 | B99: 0.1286729638 | C99: 0 | D99: 0.001133145212 | E99: 0 | F99: 0.003199533897 | G99: 0 | H99: 0.006497989788 | I99: 0 | J99: 0.01121934809 | K99: 0 | L99: 0.0172780758 | M99: 0 | N99: 0.02405480496 | O99: 0 | P99: 0.03001096926 | Q99: 0 | R99: 0.03211703474 | S99: 0 | T99: 0.02502931461 | U99: 0 | V99: 0.7207868198
A100: 96 | B100: 0.1286729638 | C100: 0.000453258085 | D100: 0 | E100: 0.001959700686 | F100: 0 | G100: 0.004518916253 | H100: 0 | I100: 0.008386533108 | J100: 0 | K100: 0.01364283917 | L100: 0 | M100: 0.01998876746 | N100: 0 | O100: =$B$1*N99+(1-$B$1)*P99 -> 0.02643727068 | P100: 0 | Q100: 0.03085339545 | R100: 0 | S100: 0.02928194669 | T100: 0 | U100: 0.01501758877 | V100: 0.7207868198
A101: 97 | B101: 0.128854267 | C101: 0 | D101: 0.001055835126 | E101: 0 | F101: 0.002983386913 | G101: 0 | H101: 0.006065962995 | I101: 0 | J101: 0.01048905553 | K101: 0 | L101: 0.01618121049 | M101: 0 | N101: 0.02256816875 | O101: 0 | P101: 0.02820372059 | Q101: 0 | R101: 0.03022481595 | S101: 0 | T101: 0.02357620352 | U101: 0 | V101: 0.7297973731
A102: 98 | B102: 0.128854267 | C102: 0.0004223340502 | D102: 0 | E102: 0.001826855841 | F102: 0 | G102: 0.004216417346 | H102: 0 | I102: 0.007835200011 | J102: 0 | K102: 0.01276591752 | L102: 0 | M102: 0.01873599379 | N102: 0 | O102: 0.02482238949 | P102: 0 | Q102: 0.02901215873 | R102: 0 | S102: 0.02756537098 | T102: 0 | U102: 0.01414572211 | V102: 0.7297973731
A103: 99 | B103: 0.1290232007 | C103: 0 | D103: 0.0009841427664 | E103: 0 | F103: 0.002782680443 | G103: 0 | H103: 0.005663930412 | I103: 0 | J103: 0.009807487013 | K103: 0 | L103: 0.01515394803 | M103: 0 | N103: 0.02117055207 | O103: 0 | P103: 0.02649829719 | Q103: 0 | R103: 0.02843344363 | S103: 0 | T103: 0.02219751143 | U103: 0 | V103: 0.7382848064
A104: 100 | B104: 0.1290232007 | C104: 0.0003936571066 | D104: 0 | E104: 0.001703557837 | F104: 0 | G104: 0.003935180431 | H104: 0 | I104: 0.007321353053 | J104: 0 | K104: 0.01194607142 | L104: 0 | M104: 0.01756058965 | N104: 0 | O104: 0.02330165012 | P104: 0 | Q104: 0.02727235576 | R104: 0 | S104: 0.02593907075 | T104: 0 | U104: 0.01331850686 | V104: 0.7382848064
A105: 101 | B105: 0.1291806635 | C105: 0 | D105: 0.0009176173987 | E105: 0 | F105: 0.002596206874 | G105: 0 | H105: 0.005289649479 | I105: 0 | J105: 0.009171240399 | K105: 0 | L105: 0.01419187871 | M105: 0 | N105: 0.01985701383 | O105: 0 | P105: 0.02488993238 | Q105: 0 | R105: 0.02673904176 | S105: 0 | T105: 0.02089084519 | U105: 0 | V105: 0.7462759105
A106: 102 | B106: 0.1291806635 | C106: 0.0003670469595 | D106: 0 | E106: 0.001589053189 | F106: 0 | G106: 0.003673583916 | H106: 0 | I106: 0.006842285847 | J106: 0 | K106: 0.01117949572 | L106: 0 | M106: 0.01645793276 | N106: 0 | O106: 0.02187018125 | P106: 0 | Q106: 0.02562957613 | R106: 0 | S106: 0.02439976313 | T106: 0 | U106: 0.01253450712 | V106: 0.7462759105
A107: 103 | B107: 0.1293274823 | C107: 0 | D107: 0.0008558494513 | E107: 0 | F107: 0.00242286548 | G107: 0 | H107: 0.004941064689 | I107: 0 | J107: 0.008577169798 | K107: 0 | L107: 0.01329087054 | M107: 0 | N107: 0.01862283216 | O107: 0 | P107: 0.0233739392 | Q107: 0 | R107: 0.02513765093 | S107: 0 | T107: 0.01965366073 | U107: 0 | V107: 0.7537966147
A108: 104 | B108: 0.1293274823 | C108: 0.0003423397805 | D108: 0 | E108: 0.001482655863 | F108: 0 | G108: 0.003430145163 | H108: 0 | I108: 0.006395506732 | J108: 0 | K108: 0.01046265009 | L108: 0 | M108: 0.01542365519 | N108: 0 | O108: 0.02052327497 | P108: 0 | Q108: 0.02407942389 | R108: 0 | S108: 0.02294405485 | T108: 0 | U108: 0.01179219644 | V108: 0.7537966147
A109: 105 | B109: 0.1294644182 | C109: 0 | D109: 0.0007984662134 | E109: 0 | F109: 0.002261651583 | G109: 0 | H109: 0.004616289791 | I109: 0 | J109: 0.008022364077 | K109: 0 | L109: 0.01244705213 | M109: 0 | N109: 0.0174635031 | O109: 0 | P109: 0.02194573454 | Q109: 0 | R109: 0.02362527628 | S109: 0 | T109: 0.01848331148 | U109: 0 | V109: 0.7608719326
A110: 106 | B110: 0.1294644182 | C110: 0.0003193864854 | D110: 0 | E110: 0.001383740361 | F110: 0 | G110: 0.003203506866 | H110: 0 | I110: 0.005978719505 | J110: 0 | K110: 0.009792239298 | L110: 0 | M110: 0.01445363252 | N110: 0 | O110: 0.01925639568 | P110: 0 | Q110: 0.02261755124 | R110: 0 | S110: 0.02156849036 | T110: 0 | U110: 0.01108998689 | V110: 0.7608719326
A111: 107 | B111: 0.1295921728 | C111: 0 | D111: 0.0007451280357 | E111: 0 | F111: 0.002111646963 | G111: 0 | H111: 0.004313591922 | I111: 0 | J111: 0.007504127423 | K111: 0 | L111: 0.01165679659 | M111: 0 | N111: 0.01637473778 | O111: 0 | P111: 0.0206008579 | Q111: 0 | R111: 0.02219792688 | S111: 0 | T111: 0.01737708897 | U111: 0 | V111: 0.7675259247
A112: 108 | B112: 0.1295921728 | C112: 0.0002980512143 | D112: 0 | E112: 0.001291735607 | F112: 0 | G112: 0.002992424947 | H112: 0 | I112: 0.005589806122 | J112: 0 | K112: 0.009165195088 | L112: 0 | M112: 0.01354397306 | N112: 0 | O112: 0.01806518583 | P112: 0 | Q112: 0.02123968549 | R112: 0 | S112: 0.02026959172 | T112: 0 | U112: 0.01042625338 | V112: 0.7675259247
A113: 109 | B113: 0.1297113933 | C113: 0 | D113: 0.0006955249713 | E113: 0 | F113: 0.001972011343 | G113: 0 | H113: 0.004031377417 | I113: 0 | J113: 0.007019961709 | K113: 0 | L113: 0.01091670628 | M113: 0 | N113: 0.01535245817 | O113: 0 | P113: 0.0193349857 | Q113: 0 | R113: 0.02085164798 | S113: 0 | T113: 0.01633225638 | U113: 0 | V113: 0.7737816768
A114: 110 | B114: 0.1297113933 | C114: 0.0002782099885 | D114: 0 | E114: 0.00120611952 | F114: 0 | G114: 0.002795757772 | H114: 0 | I114: 0.005226811134 | J114: 0 | K114: 0.008578659537 | L114: 0 | M114: 0.01269100704 | N114: 0 | O114: 0.01694546918 | P114: 0 | Q114: 0.01994165061 | R114: 0 | S114: 0.01904389134 | T114: 0 | U114: 0.009799353831 | V114: 0.7737816768
A115: 111 | B115: 0.1298226773 | C115: 0 | D115: 0.000649373801 | E115: 0 | F115: 0.001841974821 | G115: 0 | H115: 0.003768179117 | I115: 0 | J115: 0.006567550495 | K115: 0 | L115: 0.01022359854 | M115: 0 | N115: 0.01439279189 | O115: 0 | P115: 0.01814394175 | Q115: 0 | R115: 0.0195825469 | S115: 0 | T115: 0.01534607634 | U115: 0 | V115: 0.7796612891
A116: 112 | B116: 0.1298226773 | C116: 0.0002597495204 | D116: 0 | E116: 0.001126414209 | F116: 0 | G116: 0.002612456539 | H116: 0 | I116: 0.004887927668 | J116: 0 | K116: 0.008029969711 | L116: 0 | M116: 0.01189127588 | N116: =$B$1*M115+(1-$B$1)*O115 -> 0 | O116: 0.01589325184 | P116: 0 | Q116: 0.01871938381 | R116: 0 | S116: 0.01788795868 | T116: 0 | U116: 0.009207645803 | V116: 0.7796612891
A117: 113 | B117: 0.1299265771 | C117: 0 | D117: 0.0006064153958 | E117: 0 | F117: 0.001720831141 | G117: 0 | H117: 0.003522644991 | I117: 0 | J117: 0.006144744485 | K117: 0 | L117: 0.009574492178 | M117: 0 | N117: 0.01349206626 | O117: 0 | P117: 0.01702370463 | Q117: 0 | R117: 0.01838681376 | S117: 0 | T117: 0.01441583353 | U117: 0 | V117: 0.7851858766
A118: 114 | B118: 0.1299265771 | C118: 0.0002425661583 | D118: 0 | E118: 0.001052181694 | F118: 0 | G118: 0.002441556681 | H118: 0 | I118: 0.004571484789 | J118: 0 | K118: 0.007516643563 | L118: 0 | M118: 0.01114152181 | N118: 0 | O118: 0.01490472161 | P118: 0 | Q118: 0.01756894828 | R118: 0 | S118: 0.01679842167 | T118: 0 | U118: 0.008649500117 | V118: 0.7851858766
A119: 115 | B119: 0.1300236035 | C119: 0 | D119: 0.0005664123726 | E119: 0 | F119: 0.001607931689 | G119: 0 | H119: 0.003293527924 | I119: 0 | J119: 0.005749548298 | K119: 0 | L119: 0.008966594862 | M119: 0 | N119: 0.01264680173 | O119: 0 | P119: 0.01597041228 | Q119: 0 | R119: 0.01726073764 | S119: 0 | T119: 0.01353885305 | U119: 0 | V119: 0.7903755766
A120: 116 | B120: 0.1300236035 | C120: 0.000226564949 | D120: 0 | E120: 0.000983020099 | F120: 0 | G120: 0.002282170183 | H120: 0 | I120: 0.004275936074 | J120: 0 | K120: 0.007036366924 | L120: 0 | M120: 0.01043867761 | N120: 0 | O120: 0.01397624595 | P120: 0 | Q120: 0.01648654242 | R120: 0 | S120: 0.0157719838 | T120: 0 | U120: 0.008123311828 | V120: 0.7903755766
A121: 117 | B121: 0.1301142295 | C121: 0 | D121: 0.000529147009 | E121: 0 | F121: 0.001502680133 | G121: 0 | H121: 0.003079676539 | I121: 0 | J121: 0.005380108414 | K121: 0 | L121: 0.008397291198 | M121: 0 | N121: 0.01185370495 | O121: 0 | P121: 0.01498036454 | Q121: 0 | R121: 0.01620071897 | S121: 0 | T121: 0.01271251501 | U121: 0 | V121: 0.7952495637
A122: 118 | B122: 0.1301142295 | C122: 0.0002116588036 | D122: 0 | E122: 0.0009185602584 | F122: 0 | G122: 0.002133478695 | H122: 0 | I122: 0.003999849289 | J122: 0 | K122: 0.006586981528 | L122: 0 | M122: 0.009779856697 | N122: 0 | O122: 0.01310436878 | P122: 0 | Q122: 0.01546850631 | R122: 0 | S122: 0.01480543739 | T122: 0 | U122: 0.007627509007 | V122: 0.7952495637
A123: 119 | B123: 0.130198893 | C123: 0 | D123: 0.0004944193855 | E123: 0 | F123: 0.001404527633 | G123: 0 | H123: 0.002880026933 | I123: 0 | J123: 0.005034702184 | K123: 0 | L123: 0.007864131595 | M123: 0 | N123: 0.01110966153 | O123: 0 | P123: 0.01405002379 | Q123: 0 | R123: 0.01520327874 | S123: 0 | T123: 0.01193426604 | U123: 0 | V123: 0.7998260691
A124: 120 | B124: 0.130198893 | C124: 0.0001977677542 | D124: 0 | E124: 0.0008584626846 | F124: 0 | G124: 0.001994727353 | H124: 0 | I124: 0.003741897033 | J124: 0 | K124: 0.006166473949 | L124: 0 | M124: 0.00916234357 | N124: 0 | O124: 0.01228580644 | P124: 0 | Q124: 0.01451132577 | R124: 0 | S124: 0.01389567366 | T124: 0 | U124: 0.007160559621 | V124: 0.7998260691
A125: 121 | B125: 0.1302780001 | C125: 0 | D125: 0.0004620457264 | E125: 0 | F125: 0.001312968552 | G125: 0 | H125: 0.002693595225 | I125: 0 | J125: 0.0047117278 | K125: 0 | L125: 0.007364821797 | M125: 0 | N125: 0.01041172872 | O125: 0 | P125: 0.01317601417 | Q125: 0 | R125: 0.01426506493 | S125: 0 | T125: 0.01120162804 | U125: 0 | V125: 0.8041224049
A126: 122 | B126: 0.1302780001 | C126: 0.0001848182905 | D126: 0 | E126: 0.0008024148566 | F126: 0 | G126: 0.001865219221 | H126: 0 | I126: 0.003500848255 | J126: 0 | K126: 0.005772965399 | L126: 0 | M126: 0.008583584565 | N126: 0 | O126: 0.0115174429 | P126: 0 | Q126: 0.01361163447 | R126: 0 | S126: 0.01303969017 | T126: 0 | U126: 0.006720976826 | V126: 0.8041224049
A127: 123 | B127: 0.1303519275 | C127: 0 | D127: 0.000431856917 | E127: 0 | F127: 0.001227536602 | G127: 0 | H127: 0.002519470835 | I127: 0 | J127: 0.004409695112 | K127: 0 | L127: 0.006897213065 | M127: 0 | N127: 0.009757127898 | O127: 0 | P127: 0.01235511953 | Q127: 0 | R127: 0.01338285675 | S127: 0 | T127: 0.01051220484 | U127: 0 | V127: 0.808154991
A128: 124 | B128: 0.1303519275 | C128: 0.0001727427668 | D128: 0 | E128: 0.0007501287912 | F128: 0 | G128: 0.001744310295 | H128: 0 | I128: 0.003275560546 | J128: 0 | K128: 0.005404702293 | L128: 0 | M128: 0.008041178998 | N128: 0 | O128: 0.01079632455 | P128: 0 | Q128: 0.01276621442 | R128: 0 | S128: 0.01223459599 | T128: 0 | U128: 0.006307322901 | V128: 0.808154991
A129: 125 | B129: 0.1304210246 | C129: 0 | D129: 0.0004036971765 | E129: 0 | F129: 0.001147801393 | G129: 0 | H129: 0.002356810396 | I129: 0 | J129: 0.004127217245 | K129: 0 | L129: 0.006459292975 | M129: 0 | N129: 0.009143237219 | O129: 0 | P129: 0.0115842805 | Q129: 0 | R129: 0.01255356705 | S129: 0 | T129: 0.009863686752 | U129: 0 | V129: 0.8119393847
A130: 126 | B130: 0.1304210246 | C130: 0.0001614788706 | D130: 0 | E130: 0.0007013388631 | F130: 0 | G130: 0.001631404994 | H130: 0 | I130: 0.003064973135 | J130: 0 | K130: 0.005060047537 | L130: 0 | M130: 0.007532870673 | N130: 0 | O130: 0.01011965453 | P130: 0 | Q130: 0.01197199512 | R130: 0 | S130: 0.01147761493 | T130: 0 | U130: 0.005918212051 | V130: 0.8119393847
A131: 127 | B131: 0.1304856161 | C131: 0 | D131: 0.0003774228676 | E131: 0 | F131: 0.001073365315 | G131: 0 | H131: 0.00220483225 | I131: 0 | J131: 0.003863002896 | K131: 0 | L131: 0.006049176791 | M131: 0 | N131: 0.008567584216 | O131: 0 | P131: 0.01086059077 | Q131: 0 | R131: 0.01177424304 | S131: 0 | T131: 0.009253853778 | U131: 0 | V131: 0.815490312
A132: 128 | B132: 0.1304856161 | C132: 0.000150969147 | D132: 0 | E132: 0.0006557998467 | F132: 0 | G132: 0.001525952089 | H132: 0 | I132: 0.002868100509 | J132: 0 | K132: 0.004737472454 | L132: 0 | M132: =$B$1*L131+(1-$B$1)*N131 -> 0.007056539761 | N132: 0 | O132: 0.009484786836 | P132: 0 | Q132: 0.01122605168 | R132: 0 | S132: 0.01076608734 | T132: 0 | U132: 0.005552312267 | V132: 0.815490312
A133: 129 | B133: 0.1305460038 | C133: 0 | D133: 0.0003529014269 | E133: 0 | F133: 0.001003860744 | G133: 0 | H133: 0.002062811457 | I133: 0 | J133: 0.003615849287 | K133: 0 | L133: 0.005665099377 | M133: 0 | N133: 0.008027838591 | O133: 0 | P133: 0.01018129277 | Q133: 0 | R133: 0.01104206594 | S133: 0 | T133: 0.008680577308 | U133: 0 | V133: 0.8188216993
A134: 130 | B134: 0.1305460038 | C134: =(1-$B$1)*D133 -> 0.0001411605708 | D134: =$B$1*C133+(1-$B$1)*E133 -> 0 | E134: 0.0006132851537 | F134: 0 | G134: 0.001427441029 | H134: 0 | I134: 0.002684026589 | J134: 0 | K134: 0.004435549323 | L134: 0 | M134: 0.006610195063 | N134: 0 | O134: 0.008889220263 | P134: 0 | Q134: 0.01052560204 | R134: 0 | S134: 0.01009747049 | T134: 0 | U134: =$B$1*T133 -> 0.005208346385 | V134: 0.8188216993
A135: 131 | B135: 0.130602468 | C135: 0 | D135: 0.0003300104039 | E135: 0 | F135: 0.0009389475038 | G135: 0 | H135: 0.001930075253 | I135: 0 | J135: 0.003384635683 | K135: 0 | L135: 0.005305407619 | M135: 0 | N135: 0.007521805143 | O135: 0 | P135: 0.009543772973 | Q135: 0 | R135: 0.01035434942 | S135: 0 | T135: 0.008141820846 | U135: 0 | V135: 0.8219467072
A136: 132 | B136: 0.130602468 | C136: 0.0001320041616 | D136: 0 | E136: 0.0005735852439 | F136: 0 | G136: 0.001335398604 | H136: 0 | I136: 0.002511899425 | J136: 0 | K136: 0.004152944457 | L136: 0 | M136: 0.006191966628 | N136: 0 | O136: 0.008330592275 | P136: 0 | Q136: 0.009868003551 | R136: 0 | S136: 0.009469337989 | T136: 0 | U136: 0.004885092508 | V136: 0.8219467072
A137: 133 | B137: 0.1306552697 | C137: 0 | D137: 0.0003086365945 | E137: 0 | F137: 0.0008783105878 | G137: 0 | H137: 0.001805998932 | I137: 0 | J137: 0.003168317438 | K137: 0 | L137: 0.004968553326 | M137: 0 | N137: 0.007047416887 | O137: 0 | P137: 0.008945556786 | Q137: 0 | R137: 0.009708537327 | S137: 0 | T137: 0.007635639797 | U137: 0 | V137: 0.8248777627
A138: 134 | B138: 0.1306552697 | C138: 0.0001234546378 | D138: 0 | E138: 0.0005365061918 | F138: 0 | G138: 0.001249385925 | H138: 0 | I138: 0.002350926334 | J138: 0 | K138: 0.003888411793 | L138: 0 | M138: 0.00580009875 | N138: 0 | O138: 0.007806672846 | P138: 0 | Q138: 0.009250749002 | R138: 0 | S138: 0.008879378315 | T138: 0 | U138: 0.004581383878 | V138: 0.8248777627
A139: 135 | B139: 0.1307046515 | C139: 0 | D139: 0.0002886752594 | E139: 0 | F139: 0.0008216580853 | G139: 0 | H139: 0.001690002089 | I139: 0 | J139: 0.002965920518 | K139: 0 | L139: 0.004653086576 | M139: 0 | N139: 0.006602728389 | O139: 0 | P139: 0.008384303309 | Q139: 0 | R139: 0.009102200727 | S139: 0 | T139: 0.00716018054 | U139: 0 | V139: 0.827626593
A140: 136 | B140: 0.1307046515 | C140: 0.0001154701038 | D140: 0 | E140: 0.0005018683897 | F140: 0 | G140: 0.001168995687 | H140: 0 | I140: 0.002200369461 | J140: 0 | K140: 0.003640786941 | L140: 0 | M140: 0.005432943301 | N140: 0 | O140: 0.007315358357 | P140: 0 | Q140: 0.008671462276 | R140: 0 | S140: 0.008325392652 | T140: 0 | U140: 0.004296108324 | V140: 0.827626593
A141: 137 | B141: 0.1307508396 | C141: 0 | D141: 0.0002700294182 | E141: 0 | F141: 0.0007687193086 | G141: 0 | H141: 0.001581545196 | I141: 0 | J141: 0.002776536453 | K141: 0 | L141: 0.004357649485 | M141: 0 | N141: 0.006185909323 | O141: 0 | P141: 0.007857799924 | Q141: 0 | R141: 0.008533034427 | S141: 0 | T141: 0.006713678921 | U141: 0 | V141: 0.830204258
A142: 138 | B142: =B141+(1-$B$1)*C141 -> 0.1307508396 | C142: 0.0001080117673 | D142: 0 | E142: 0.0004695053743 | F142: 0 | G142: 0.001093849664 | H142: 0 | I142: 0.002059541699 | J142: 0 | K142: 0.003408981666 | L142: 0 | M142: 0.00508895342 | N142: 0 | O142: 0.006854665564 | P142: 0 | Q142: 0.008127893725 | R142: 0 | S142: 0.007805292224 | T142: 0 | U142: 0.004028207353 | V142: =$B$1*U141+V141 -> 0.830204258
A143: 139 | B143: 0.1307940443 | C143: 0 | D143: 0.0002526092101 | E143: 0 | F143: 0.00071924309 | G143: 0 | H143: 0.001480126478 | I143: 0 | J143: 0.002599317686 | K143: 0 | L143: 0.004080970367 | M143: 0 | N143: 0.005795238278 | O143: 0 | P143: 0.007363956828 | Q143: 0 | R143: 0.007998853125 | S143: 0 | T143: 0.006294458276 | U143: 0 | V143: 0.8326211824
A144: 140 | B144: 0.1307940443 | C144: 0.000101043684 | D144: 0 | E144: 0.0004392627621 | F144: 0 | G144: 0.001023596445 | H144: 0 | I144: 0.001927802961 | J144: 0 | K144: 0.003191978758 | L144: 0 | M144: 0.004766677532 | N144: 0 | O144: 0.006422725698 | P144: 0 | Q144: 0.007617915347 | R144: 0 | S144: 0.007317095185 | T144: 0 | U144: 0.003776674965 | V144: 0.8326211824
A145: 141 | B145: 0.1308344617 | C145: 0 | D145: 0.0002363313152 | E145: 0 | F145: 0.0006729962353 | G145: 0 | H145: 0.001385279051 | I145: 0 | J145: 0.00243347328 | K145: 0 | L145: 0.003821858268 | M145: 0 | N145: 0.005429096798 | O145: 0 | P145: 0.006900801558 | Q145: 0 | R145: 0.007497587282 | S145: 0 | T145: 0.005900927097 | U145: 0 | V145: 0.8348871874
A146: 142 | B146: 0.1308344617 | C146: 9.45325261e-05 | D146: 0 | E146: 0.0004109972833 | F146: 0 | G146: 0.0009579093617 | H146: 0 | I146: 0.001804556743 | J146: 0 | K146: 0.002988827275 | L146: 0 | M146: 0.00446475368 | N146: 0 | O146: 0.006017778702 | P146: 0 | Q146: 0.007139515847 | R146: 0 | S146: 0.006858923208 | T146: 0 | U146: 0.003540556258 | V146: 0.8348871874
A147: 143 | B147: 0.1308722748 | C147: 0 | D147: 0.000221118429 | E147: 0 | F147: 0.0006297621147 | G147: 0 | H147: 0.001296568314 | I147: 0 | J147: 0.002278264956 | K147: 0 | L147: 0.003579197837 | M147: 0 | N147: 0.005085963689 | O147: 0 | P147: 0.00646647356 | Q147: 0 | R147: 0.007027278792 | S147: 0 | T147: 0.005531576428 | U147: 0 | V147: 0.8370115211
A148: 144 | B148: 0.1308722748 | C148: 8.844737159e-05 | D148: 0 | E148: 0.0003845759032 | F148: 0 | G148: 0.0008964845945 | H148: 0 | I148: 0.001689246971 | J148: 0 | K148: 0.002798638108 | L148: =$B$1*K147+(1-$B$1)*M147 -> 0 | M148: 0.004181904178 | N148: 0 | O148: 0.005638167637 | P148: 0 | Q148: 0.006690795653 | R148: 0 | S148: 0.006428997846 | T148: 0 | U148: 0.003318945857 | V148: 0.8370115211
A149: 145 | B149: 0.1309076537 | C149: 0 | D149: 0.0002068987842 | E149: 0 | F149: 0.0005893393797 | G149: 0 | H149: 0.001213589545 | I149: 0 | J149: 0.002133003426 | K149: 0 | L149: 0.003351944536 | M149: 0 | N149: 0.004764409561 | O149: 0 | P149: 0.006059218843 | Q149: 0 | R149: 0.00658607653 | S149: 0 | T149: 0.005184977051 | U149: 0 | V149: 0.8390028886
A150: 146 | B150: 0.1309076537 | C150: 8.27595137e-05 | D150: 0 | E150: 0.0003598750224 | F150: 0 | G150: 0.0008390394458 | H150: 0 | I150: 0.001581355097 | J150: 0 | K150: 0.00262057987 | L150: 0 | M150: 0.003916930546 | N150: 0 | O150: 0.005282333274 | P150: 0 | Q150: 0.006269961918 | R150: 0 | S150: 0.006025636738 | T150: 0 | U150: 0.00311098623 | V150: 0.8390028886
A151: 147 | B151: 0.1309407575 | C151: 0 | D151: 0.0001936057172 | E151: 0 | F151: 0.0005515407918 | G151: 0 | H151: 0.001135965706 | I151: 0 | J151: 0.001997045006 | K151: 0 | L151: 0.00313912014 | M151: 0 | N151: 0.004463091637 | O151: 0 | P151: 0.005677384732 | Q151: 0 | R151: 0.006172231846 | S151: 0 | T151: 0.004859776535 | U151: 0 | V151: 0.8408694804
A152: 148 | B152: 0.1309407575 | C152: 7.744228688e-05 | D152: 0 | E152: 0.000336779747 | F152: 0 | G152: 0.0007853107576 | H152: 0 | I152: 0.001480397426 | J152: 0 | K152: 0.00245387506 | L152: 0 | M152: 0.003668708739 | N152: 0 | O152: 0.004948808875 | P152: 0 | Q152: 0.005875323578 | R152: 0 | S152: 0.005647249722 | T152: 0 | U152: 0.002915865921 | V152: 0.8408694804
A153: 149 | B153: 0.1309717344 | C153: 0 | D153: 0.0001811772709 | E153: 0 | F153: 0.0005161921513 | G153: 0 | H153: 0.001063345425 | I153: 0 | J153: 0.00186978848 | K153: 0 | L153: 0.002939808532 | M153: 0 | N153: 0.004180748794 | O153: 0 | P153: 0.005319414756 | Q153: 0 | R153: 0.005784094035 | S153: 0 | T153: 0.004554696202 | U153: 0 | V153: 0.8426189999
A154: 150 | B154: 0.1309717344 | C154: 7.247090838e-05 | D154: 0 | E154: 0.0003151832231 | F154: 0 | G154: 0.0007350534608 | H154: 0 | I154: 0.001385922647 | J154: 0 | K154: 0.002297796501 | L154: 0 | M154: 0.003436184636 | N154: 0 | O154: 0.004636215179 | P154: 0 | Q154: 0.005505286468 | R154: 0 | S154: 0.005292334902 | T154: 0 | U154: 0.002732817721 | V154: 0.8426189999
A155: 151 | B155: 0.1310007228 | C155: 0 | D155: 0.0001695558343 | E155: 0 | F155: 0.0004831313182 | G155: 0 | H155: 0.0009954011353 | I155: 0 | J155: 0.001750672188 | K155: 0 | L155: 0.002753151755 | M155: 0 | N155: 0.003916196853 | O155: 0 | P155: 0.004983843694 | Q155: 0 | R155: 0.005420105841 | S155: 0 | T155: 0.004268528029 | U155: 0 | V155: 0.8442586906
A156: 152 | B156: 0.1310007228 | C156: 6.78223337e-05 | D156: 0 | E156: 0.0002949860278 | F156: 0 | G156: 0.000688039245 | H156: 0 | I156: 0.001297509557 | J156: 0 | K156: 0.002151664015 | L156: 0 | M156: 0.003218369794 | N156: 0 | O156: 0.00434325559 | P156: 0 | Q156: 0.005158348553 | R156: 0 | S156: 0.004959474717 | T156: 0 | U156: 0.002561116818 | V156: 0.8442586906
A157: 153 | B157: 0.1310278517 | C157: 0 | D157: 0.0001586878114 | E157: 0 | F157: 0.0004522073147 | G157: 0 | H157: 0.0009318273696 | I157: 0 | J157: 0.00163917134 | K157: 0 | L157: 0.002578346327 | M157: 0 | N157: 0.003668324112 | O157: 0 | P157: 0.004669292775 | Q157: 0 | R157: 0.005078799018 | S157: 0 | T157: 0.004000131557 | U157: 0 | V157: 0.8457953607
A158: 154 | B158: 0.1310278517 | C158: 6.347512454e-05 | D158: 0 | E158: 0.0002760956127 | F158: 0 | G158: 0.0006440553367 | H158: 0 | I158: 0.001214764958 | J158: 0 | K158: 0.002014841335 | L158: 0 | M158: 0.003014337441 | N158: 0 | O158: 0.004068711577 | P158: 0 | Q158: 0.004833095272 | R158: 0 | S158: 0.004647332034 | T158: 0 | U158: 0.002400078934 | V158: 0.8457953607
A159: 155 | B159: 0.1310532418 | C159: 0 | D159: 0.0001485233198 | E159: 0 | F159: 0.0004232795023 | G159: 0 | H159: 0.0008723391851 | I159: 0 | J159: 0.001534795508 | K159: 0 | L159: 0.002414639777 | M159: 0 | N159: 0.003436087096 | O159: 0 | P159: 0.004374465055 | Q159: 0 | R159: 0.004758789977 | S159: 0 | T159: 0.003748430794 | U159: 0 | V159: 0.847235408
A160: 156 | B160: 0.1310532418 | C160: 5.940932792e-05 | D160: 0 | E160: 0.0002584257928 | F160: 0 | G160: 0.0006029033754 | H160: 0 | I160: 0.001137321714 | J160: 0 | K160: 0.001886733216 | L160: 0 | M160: 0.002823218705 | N160: 0 | O160: 0.00381143828 | P160: 0 | Q160: 0.004528195024 | R160: 0 | S160: 0.004354646304 | T160: 0 | U160: 0.002249058476 | V160: 0.847235408
A161: 157 | B161: 0.1310770055 | C161: 0 | D161: 0.0001390159139 | E161: 0 | F161: 0.0003962168258 | G161: 0 | H161: 0.000816670711 | I161: 0 | J161: 0.001437086315 | K161: 0 | L161: 0.002261327411 | M161: 0 | N161: 0.003218506535 | O161: 0 | P161: 0.004098140977 | Q161: 0 | R161: 0.004458775536 | S161: 0 | T161: 0.003512411173 | U161: 0 | V161: 0.8485848431
A162: 158 | B162: 0.1310770055 | C162: 5.560636555e-05 | D162: 0 | E162: 0.0002418962787 | F162: 0 | G162: 0.0005643983799 | H162: 0 | I162: 0.001064836953 | J162: 0 | K162: 0.001766782754 | L162: 0 | M162: 0.002644199061 | N162: 0 | O162: 0.003570360312 | P162: 0 | Q162: 0.004242394801 | R162: 0 | S162: 0.004080229791 | T162: 0 | U162: 0.002107446704 | V162: 0.8485848431
A163: 159 | B163: 0.131099248 | C163: 0 | D163: 0.0001301223308 | E163: 0 | F163: 0.0003708971192 | G163: 0 | H163: 0.000764573809 | I163: 0 | J163: 0.001345615273 | K163: 0 | L163: 0.002117749276 | M163: 0 | N163: 0.003014663561 | O163: 0 | P163: 0.003839174107 | Q163: 0 | R163: 0.004177528797 | S163: 0 | T163: 0.003291116556 | U163: 0 | V163: 0.8498493111
A164: 160 | B164: 0.131099248 | C164: 5.204893232e-05 | D164: 0 | E164: 0.0002264322461 | F164: 0 | G164: 0.0005283677951 | H164: 0 | I164: 0.0009969903946 | J164: 0 | K164: =$B$1*J163+(1-$B$1)*L163 -> 0.001654468874 | L164: 0 | M164: 0.00247651499 | N164: 0 | O164: 0.00334446778 | P164: 0 | Q164: 0.003974515983 | R164: 0 | S164: 0.0038229639 | T164: 0 | U164: 0.001974669934 | V164: 0.8498493111
A165: 161 | B165: 0.1311200676 | C165: 0 | D165: 0.0001218022578 | E165: 0 | F165: 0.0003472064657 | G165: 0 | H165: 0.0007158168349 | I165: 0 | J165: 0.001259981787 | K165: 0 | L165: 0.001983287321 | M165: 0 | N165: 0.002823696106 | O165: 0 | P165: 0.003596487061 | Q165: 0 | R165: 0.00391389515 | S165: 0 | T165: 0.003083646314 | U165: 0 | V165: 0.8510341131
A166: 162 | B166: 0.1311200676 | C166: 4.872090314e-05 | D166: 0 | E166: 0.000211963941 | F166: 0 | G166: 0.0004946506134 | H166: 0 | I166: 0.0009334828155 | J166: 0 | K166: 0.001549304 | L166: 0 | M166: 0.002319450835 | N166: 0 | O166: 0.003132812488 | P166: 0 | Q166: 0.003723450297 | R166: 0 | S166: 0.003581795615 | T166: 0 | U166: 0.001850187788 | V166: 0.8510341131
A167: 163 | B167: 0.131139556 | C167: 0 | D167: 0.0001140181183 | E167: 0 | F167: 0.00032503861 | G167: 0 | H167: 0.0006701834943 | I167: 0 | J167: 0.001179811289 | K167: 0 | L167: 0.001857362734 | M167: 0 | N167: 0.002644795496 | O167: 0 | P167: 0.003369067611 | Q167: 0 | R167: 0.003666788424 | S167: 0 | T167: 0.002889152485 | U167: 0 | V167: 0.8521442258
A168: 164 | B168: 0.131139556 | C168: 4.560724731e-05 | D168: 0 | E168: 0.000198426315 | F168: 0 | G168: 0.0004630965637 | H168: 0 | I168: 0.0008740346123 | J168: 0 | K168: 0.001450831867 | L168: 0 | M168: 0.002172335839 | N168: 0 | O168: 0.002934504342 | P168: 0 | Q168: 0.003488155937 | R168: 0 | S168: 0.003355734048 | T168: 0 | U168: 0.001733491491 | V168: 0.8521442258
A169: 165 | B169: 0.1311577989 | C169: 0 | D169: 0.0001067348744 | E169: 0 | F169: 0.0003042944144 | G169: 0 | H169: 0.0006274717831 | I169: 0 | J169: 0.001104753514 | K169: 0 | L169: 0.001739433456 | M169: 0 | N169: 0.00247720324 | O169: 0 | P169: 0.00315596498 | Q169: 0 | R169: 0.003435187181 | S169: 0 | T169: 0.002706837025 | U169: 0 | V169: 0.8531843207
A170: 166 | B170: 0.1311577989 | C170: 4.269394975e-05 | D170: 0 | E170: 0.0001857586904 | F170: 0 | G170: 0.0004335653619 | H170: 0 | I170: 0.0008183844756 | J170: 0 | K170: 0.001358625491 | L170: 0 | M170: 0.00203454137 | N170: 0 | O170: 0.002748707936 | P170: 0 | Q170: 0.00326765386 | R170: 0 | S170: 0.003143847119 | T170: 0 | U170: 0.001624102215 | V170: 0.8531843207
A171: 167 | B171: 0.1311748765 | C171: 0 | D171: 9.991984601e-05 | E171: 0 | F171: 0.000284881359 | G171: 0 | H171: 0.0005874930074 | I171: 0 | J171: 0.001034480882 | K171: 0 | L171: 0.001628991842 | M171: 0 | N171: 0.002320207996 | O171: 0 | P171: 0.002956286306 | Q171: 0 | R171: 0.003218131164 | S171: 0 | T171: 0.002535949157 | U171: 0 | V171: 0.854158782
A172: 168 | B172: 0.1311748765 | C172: 3.99679384e-05 | D172: 0 | E172: 0.0001739044512 | F172: 0 | G172: 0.0004059260184 | H172: 0 | I172: 0.0007662881571 | J172: 0 | K172: 0.001272285266 | L172: 0 | M172: 0.001905478304 | N172: 0 | O172: 0.00257463932 | P172: 0 | Q172: 0.003061024249 | R172: 0 | S172: 0.002945258361 | T172: 0 | U172: 0.001521569494 | V172: 0.854158782
A173: 169 | B173: 0.1311908636 | C173: 0 | D173: 9.354254352e-05 | E173: 0 | F173: 0.0002667130781 | G173: 0 | H173: 0.0005500708739 | I173: 0 | J173: 0.0009686870007 | K173: 0 | L173: 0.001525562481 | M173: 0 | N173: 0.00217314271 | O173: 0 | P173: 0.002769193292 | Q173: 0 | R173: 0.003014717894 | S173: 0 | T173: 0.002375782815 | U173: 0 | V173: 0.8550717237
A174: 170 | B174: 0.1311908636 | C174: 3.741701741e-05 | D174: 0 | E174: 0.0001628107573 | F174: 0 | G174: 0.0003800561964 | H174: 0 | I174: 0.0007175173246 | J174: 0 | K174: 0.001191437193 | L174: 0 | M174: 0.001784594573 | N174: 0 | O174: 0.002411562943 | P174: 0 | Q174: 0.002867403133 | R174: 0 | S174: 0.002759143862 | T174: 0 | U174: 0.001425469689 | V174: 0.8550717237
A175: 171 | B175: 0.1312058304 | C175: 0 | D175: 8.757451338e-05 | E175: 0 | F175: 0.000249708933 | G175: 0 | H175: 0.0005150406477 | I175: 0 | J175: 0.0009070852719 | K175: 0 | L175: 0.001428700145 | M175: 0 | N175: 0.002035381921 | O175: 0 | P175: 0.002593899019 | Q175: 0 | R175: 0.002824099424 | S175: 0 | T175: 0.002225674193 | U175: 0 | V175: 0.8559270055
A176: 172 | B176: 0.1312058304 | C176: 3.502980535e-05 | D176: 0 | E176: 0.0001524282812 | F176: 0 | G176: 0.0003558416188 | H176: 0 | I176: 0.0006718584974 | J176: 0 | K176: 0.001115731221 | L176: 0 | M176: 0.001671372855 | N176: 0 | O176: 0.00225878876 | P176: 0 | Q176: 0.002685979181 | R176: 0 | S176: 0.002584729332 | T176: 0 | U176: 0.001335404516 | V176: 0.8559270055
A177: 173 | B177: 0.1312198424 | C177: 0 | D177: 8.19891957e-05 | E177: 0 | F177: 0.0002337936163 | G177: 0 | H177: 0.0004822483703 | I177: 0 | J177: 0.0008494075869 | K177: 0 | L177: 0.001337987875 | M177: 0 | N177: 0.001906339217 | O177: 0 | P177: 0.002429664928 | Q177: 0 | R177: 0.002645479241 | S177: 0 | T177: 0.002084999405 | U177: 0 | V177: 0.8567282482
A178: 174 | B178: 0.1312198424 | C178: 3.279567828e-05 | D178: 0 | E178: 0.0001427109639 | F178: 0 | G178: 0.0003331755179 | H178: 0 | I178: 0.0006291120569 | J178: 0 | K178: 0.001044839702 | L178: 0 | M178: 0.001565328412 | N178: 0 | O178: 0.002115669502 | P178: 0 | Q178: 0.002515990654 | R178: 0 | S178: 0.002421287307 | T178: 0 | U178: 0.001250999643 | V178: 0.8567282482
A179: 175 | B179: 0.1312329606 | C179: 0 | D179: 7.676179254e-05 | E179: 0 | F179: 0.0002188967855 | G179: 0 | H179: 0.0004515501335 | I179: 0 | J179: 0.0007954031149 | K179: 0 | L179: 0.001253035186 | M179: 0 | N179: 0.001785464848 | O179: 0 | P179: 0.002275797962 | Q179: 0 | R179: 0.002478109315 | S179: 0 | T179: 0.001953172241 | U179: 0 | V179: 0.857478848
A180: 176 | B180: 0.1312329606 | C180: 3.070471701e-05 | D180: 0 | E180: 0.0001336157897 | F180: 0 | G180: 0.0003119581247 | H180: 0 | I180: 0.0005890913261 | J180: =$B$1*I179+(1-$B$1)*K179 -> 0 | K180: 0.0009784559433 | L180: 0 | M180: 0.001466007051 | N180: 0 | O180: 0.001981598094 | P180: 0 | Q180: 0.002356722503 | R180: 0 | S180: 0.002268134486 | T180: 0 | U180: 0.001171903345 | V180: 0.857478848
A181: 177 | B181: 0.1312452425 | C181: 0 | D181: 7.18691461e-05 | E181: 0 | F181: 0.0002049527237 | G181: 0 | H181: 0.0004228114052 | I181: 0 | J181: 0.000744837173 | K181: 0 | L181: 0.001173476386 | M181: 0 | N181: 0.001672243468 | O181: 0 | P181: 0.002131647858 | Q181: 0 | R181: 0.002321287296 | S181: 0 | T181: 0.001829642029 | U181: 0 | V181: 0.85818199
A182: 178 | B182: 0.1312452425 | C182: 2.874765844e-05 | D182: 0 | E182: 0.0001251025771 | F182: 0 | G182: 0.0002920961963 | H182: 0 | I182: 0.0005516217123 | J182: 0 | K182: 0.0009162928583 | L182: 0 | M182: 0.001372983219 | N182: 0 | O182: 0.001856005224 | P182: 0 | Q182: 0.002207503633 | R182: 0 | S182: 0.002124629189 | T182: 0 | U182: 0.001097785218 | V182: 0.85818199
A183: 179 | B183: 0.1312567416 | C183: 0 | D183: 6.728962592e-05 | E183: 0 | F183: 0.0001919000248 | G183: 0 | H183: 0.0003959064027 | I183: 0 | J183: 0.0006974901707 | K183: 0 | L183: 0.001098969003 | M183: 0 | N183: 0.001566192021 | O183: 0 | P183: 0.001996604587 | Q183: 0 | R183: 0.002174353856 | S183: 0 | T183: 0.001713891601 | U183: 0 | V183: 0.8588406611
A184: 180 | B184: 0.1312567416 | C184: 2.691585037e-05 | D184: 0 | E184: 0.0001171337855 | F184: 0 | G184: 0.000273502576 | H184: 0 | I184: 0.0005165399099 | J184: 0 | K184: 0.0008580817034 | L184: 0 | M184: 0.00128585821 | N184: 0 | O184: 0.001738357047 | P184: 0 | Q184: 0.002067704295 | R184: 0 | S184: 0.001990168954 | T184: 0 | U184: 0.00102833496 | V184: 0.8588406611
A185: 181 | B185: 0.1312675079 | C185: 0 | D185: 6.300302441e-05 | E185: 0 | F185: 0.0001796813017 | G185: 0 | H185: 0.0003707175096 | I185: 0 | J185: 0.0006531566273 | K185: 0 | L185: 0.001029192306 | M185: 0 | N185: 0.001466857745 | O185: 0 | P185: 0.001870095946 | Q185: 0 | R185: 0.002036690158 | S185: 0 | T185: 0.001605435356 | U185: 0 | V185: 0.8594576621
A186: 182 | B186: 0.1312675079 | C186: 2.520120976e-05 | D186: 0 | E186: 0.0001096743353 | F186: 0 | G186: 0.0002560957848 | H186: 0 | I186: 0.0004836931567 | J186: 0 | K186: 0.0008035708988 | L186: 0 | M186: 0.001204258482 | N186: 0 | O186: 0.001628153025 | P186: 0 | Q186: 0.001936733631 | R186: 0 | S186: 0.001864188237 | T186: 0 | U186: 0.0009632612138 | V186: 0.8594576621
A187: 183 | B187: 0.1312775884 | C187: 0 | D187: 5.899045999e-05 | E187: 0 | F187: 0.0001682429151 | G187: 0 | H187: 0.0003471347336 | I187: 0 | J187: 0.0006116442535 | K187: 0 | L187: 0.0009638459319 | M187: 0 | N187: 0.001373816299 | O187: 0 | P187: 0.001751585268 | Q187: 0 | R187: 0.001907715474 | S187: 0 | T187: 0.001503817428 | U187: 0 | V187: 0.8600356188
A188: 184 | B188: 0.1312775884 | C188: 2.359618399e-05 | D188: 0 | E188: 0.000102691442 | F188: 0 | G188: 0.0002397996425 | H188: 0 | I188: 0.0004529385415 | J188: 0 | K188: 0.0007525249249 | L188: 0 | M188: 0.001127834079 | N188: 0 | O188: 0.001524923887 | P188: 0 | Q188: 0.00181403735 | R188: 0 | S188: 0.001746156255 | T188: 0 | U188: 0.0009022904568 | V188: 0.8600356188
A189: 185 | B189: 0.1312870269 | C189: 0 | D189: 5.523428721e-05 | E189: 0 | F189: 0.0001575347222 | G189: 0 | H189: 0.0003250552021 | I189: 0 | J189: 0.0005727730949 | K189: 0 | L189: 0.0009026485864 | M189: 0 | N189: 0.001286670002 | O189: 0 | P189: 0.001640569272 | Q189: 0 | R189: 0.001786884912 | S189: 0 | T189: 0.001408609936 | U189: 0 | V189: 0.8605769931
A190: 186 | B190: 0.1312870269 | C190: 2.209371489e-05 | D190: 0 | E190: 9.615446122e-05 | F190: 0 | G190: 0.0002245429142 | H190: 0 | I190: 0.0004241423592 | J190: 0 | K190: 0.0007047232915 | L190: 0 | M190: 0.001056257153 | N190: 0 | O190: 0.00142822971 | P190: 0 | Q190: 0.001699095528 | R190: 0 | S190: 0.001635574922 | T190: 0 | U190: 0.0008451659616 | V190: 0.8605769931
A191: 187 | B191: 0.1312958644 | C191: 0 | D191: 5.171801342e-05 | E191: 0 | F191: 0.0001475098424 | G191: 0 | H191: 0.0003043826922 | I191: 0 | J191: 0.0005363747321 | K191: 0 | L191: 0.0008453368359 | M191: 0 | N191: 0.001205046176 | O191: 0 | P191: 0.001536576037 | Q191: 0 | R191: 0.001673687286 | S191: 0 | T191: 0.001319411338 | U191: 0 | V191: 0.8610840927
A192: 188 | B192: 0.1312958644 | C192: 2.068720537e-05 | D192: 0 | E192: 9.003474501e-05 | F192: 0 | G192: 0.0002102589823 | H192: 0 | I192: 0.0003971795082 | J192: 0 | K192: 0.0006599595737 | L192: 0 | M192: 0.0009892205718 | N192: 0 | O192: 0.00133765812 | P192: 0 | Q192: 0.001591420537 | R192: 0 | S192: 0.001531976906 | T192: 0 | U192: 0.0007916468026 | V192: 0.8610840927
A193: 189 | B193: 0.1313041392 | C193: 0 | D193: 4.842622122e-05 | E193: 0 | F193: 0.0001381244399 | G193: 0 | H193: 0.0002850271927 | I193: 0 | J193: 0.0005022915344 | K193: 0 | L193: 0.0007916639729 | M193: 0 | N193: 0.001128595591 | O193: 0 | P193: 0.001439163087 | Q193: 0 | R193: 0.001567643084 | S193: 0 | T193: 0.001235844865 | U193: 0 | V193: 0.8615590808
A194: 190 | B194: 0.1313041392 | C194: 1.937048849e-05 | D194: 0 | E194: 8.430550871e-05 | F194: 0 | G194: 0.000196885541 | H194: 0 | I194: 0.0003719329293 | J194: 0 | K194: 0.0006180405098 | L194: 0 | M194: 0.0009264366202 | N194: 0 | O194: 0.001252822589 | P194: 0 | Q194: 0.001490555086 | R194: 0 | S194: 0.001434923797 | T194: 0 | U194: 0.0007415069189 | V194: 0.8615590808
A195: 191 | B195: 0.1313118874 | C195: 0 | D195: 4.534449658e-05 | E195: 0 | F195: 0.0001293375216 | G195: 0 | H195: 0.0002669044964 | I195: 0 | J195: 0.0004703759615 | K195: 0 | L195: 0.0007413989539 | M195: 0 | N195: 0.001056991008 | O195: 0 | P195: 0.001347915588 | Q195: 0 | R195: 0.00146830257 | S195: 0 | T195: 0.001157557046 | U195: 0 | V195: 0.8620039849
A196: 192 | B196: 0.1313118874 | C196: 1.813779863e-05 | D196: 0 | E196: 7.89417066e-05 | F196: 0 | G196: 0.0001843643115 | H196: 0 | I196: =$B$1*H195+(1-$B$1)*J195 -> 0.0003482930824 | J196: 0 | K196: 0.0005787851585 | L196: 0 | M196: 0.0008676357755 | N196: 0 | O196: 0.00117336084 | P196: 0 | Q196: 0.001396070381 | R196: 0 | S196: 0.00134400436 | T196: 0 | U196: 0.0006945342273 | V196: 0.8620039849
A197: 193 | B197: 0.1313191426 | C197: 0 | D197: 4.245936182e-05 | E197: 0 | F197: 0.0001211107486 | G197: 0 | H197: 0.0002499358199 | I197: 0 | J197: 0.0004404899128 | K197: 0 | L197: 0.0006943254053 | M197: 0 | N197: 0.0009899258013 | O197: 0 | P197: 0.001262444656 | Q197: 0 | R197: 0.001375243973 | S197: 0 | T197: 0.001084216307 | U197: 0 | V197: 0.8624207054
A198: 194 | B198: 0.1313191426 | C198: =(1-$B$1)*D197 -> 1.698374473e-05 | D198: =$B$1*C197+(1-$B$1)*E197 -> 0 | E198: 7.391991652e-05 | F198: 0 | G198: 0.0001726407771 | H198: 0 | I198: 0.0003261574571 | J198: 0 | K198: 0.0005420241098 | L198: 0 | M198: 0.0008125655637 | N198: 0 | O198: 0.001098933343 | P198: 0 | Q198: 0.001307564383 | R198: 0 | S198: 0.001258832906 | T198: 0 | U198: =$B$1*T197 -> 0.0006505297843 | V198: 0.8624207054
A199: 195 | B199: 0.1313259361 | C199: 0 | D199: 3.975821344e-05 | E199: 0 | F199: 0.0001134082607 | G199: 0 | H199: 0.0002340474491 | I199: 0 | J199: 0.0004125041182 | K199: 0 | L199: 0.0006502406914 | M199: 0 | N199: 0.0009271126755 | O199: 0 | P199: 0.001182385759 | Q199: 0 | R199: 0.001288071792 | S199: 0 | T199: 0.001015511658 | U199: 0 | V199: 0.8628110233
A200: 196 | B200: 0.1313259361 | C200: 1.590328538e-05 | D200: 0 | E200: 6.921823237e-05 | F200: 0 | G200: 0.0001616639361 | H200: 0 | I200: 0.0003054301167 | J200: 0 | K200: 0.0005075987475 | L200: 0 | M200: 0.000760989485 | N200: 0 | O200: 0.001029221909 | P200: 0 | Q200: 0.001224660172 | R200: 0 | S200: 0.001179047738 | T200: 0 | U200: 0.0006093069945 | V200: 0.8628110233
A201: 197 | B201: =B200+(1-$B$1)*C200 -> 0.1313322974 | C201: 0 | D201: 3.722926417e-05 | E201: 0 | F201: 0.0001061965139 | G201: 0 | H201: 0.0002191704083 | I201: 0 | J201: 0.000386297569 | K201: 0 | L201: 0.0006089550425 | M201: 0 | N201: 0.0008682824546 | O201: 0 | P201: 0.001107397214 | Q201: 0 | R201: 0.001206415199 | S201: 0 | T201: 0.0009511514408 | U201: 0 | V201: =$B$1*U200+V200 -> 0.8631766075
... 103 more rows

Sheet 例題7-3_モンテカルロ法
A1: 確率p | B1: 0.6
A2: 初期枚数a | B2: 5
A4: シミュレーション | D4: 結果
A5: 回数 | B5: チップ枚数 | D5: =IF(B306=0,1,0) -> 0 | K5: =IF(B306=0,1,0)
A6: 0 | B6: =B2 -> 5 | D6: 1:自分が破産 | K6: =B2
A7: 1 | B7: =IF(B6=0,0,IF(B6=20,20,IF(RAND()<$B$1,B6+1,B6-1))) -> 4 | D7: 0:相手が破産または賭け継続中 | K7: =IF(B6=0,0,IF(B6=20,20,IF(RAND()<$B$1,B6+1,B6-1)))
A8: 2 | B8: =IF(B7=0,0,IF(B7=20,20,IF(RAND()<$B$1,B7+1,B7-1))) -> 5 | K8: =IF(B7=0,0,IF(B7=20,20,IF(RAND()<$B$1,B7+1,B7-1)))
A9: 3 | B9: 6 | K9: =IF(B8=0,0,IF(B8=20,20,IF(RAND()<$B$1,B8+1,B8-1)))
A10: 4 | B10: 7 | K10: =IF(B9=0,0,IF(B9=20,20,IF(RAND()<$B$1,B9+1,B9-1)))
A11: 5 | B11: 6 | K11: =IF(B10=0,0,IF(B10=20,20,IF(RAND()<$B$1,B10+1,B10-1)))
A12: 6 | B12: 7 | K12: =IF(B11=0,0,IF(B11=20,20,IF(RAND()<$B$1,B11+1,B11-1)))
A13: 7 | B13: 8 | K13: =IF(B12=0,0,IF(B12=20,20,IF(RAND()<$B$1,B12+1,B12-1)))
A14: 8 | B14: 9 | K14: =IF(B13=0,0,IF(B13=20,20,IF(RAND()<$B$1,B13+1,B13-1)))
A15: 9 | B15: 10 | K15: =IF(B14=0,0,IF(B14=20,20,IF(RAND()<$B$1,B14+1,B14-1)))
A16: 10 | B16: 9 | K16: =IF(B15=0,0,IF(B15=20,20,IF(RAND()<$B$1,B15+1,B15-1)))
A17: 11 | B17: 10 | K17: =IF(B16=0,0,IF(B16=20,20,IF(RAND()<$B$1,B16+1,B16-1)))
A18: 12 | B18: 9 | K18: =IF(B17=0,0,IF(B17=20,20,IF(RAND()<$B$1,B17+1,B17-1)))
A19: 13 | B19: 8 | K19: =IF(B18=0,0,IF(B18=20,20,IF(RAND()<$B$1,B18+1,B18-1)))
A20: 14 | B20: 9
A21: 15 | B21: 10
A22: 16 | B22: 11
A23: 17 | B23: 12
A24: 18 | B24: =IF(B23=0,0,IF(B23=20,20,IF(RAND()<$B$1,B23+1,B23-1))) -> 13
A25: 19 | B25: 12
A26: 20 | B26: 11
A27: 21 | B27: 10
A28: 22 | B28: 11
A29: 23 | B29: 10
A30: 24 | B30: 11
A31: 25 | B31: 12
A32: 26 | B32: 13
A33: 27 | B33: 14
A34: 28 | B34: 13
A35: 29 | B35: 12
A36: 30 | B36: 13
A37: 31 | B37: 14
A38: 32 | B38: 13
A39: 33 | B39: 12
A40: 34 | B40: 13
A41: 35 | B41: 12
A42: 36 | B42: 13
A43: 37 | B43: 14
A44: 38 | B44: 15
A45: 39 | B45: 16
A46: 40 | B46: 15
A47: 41 | B47: 14
A48: 42 | B48: 13
A49: 43 | B49: 14
A50: 44 | B50: 13
A51: 45 | B51: 12
A52: 46 | B52: 11
A53: 47 | B53: 12
A54: 48 | B54: 13
A55: 49 | B55: 14
A56: 50 | B56: 15
A57: 51 | B57: 16
A58: 52 | B58: 15
A59: 53 | B59: 16
A60: 54 | B60: 15
A61: 55 | B61: 14
A62: 56 | B62: 15
A63: 57 | B63: 14
A64: 58 | B64: 13
A65: 59 | B65: 12
A66: 60 | B66: 13
A67: 61 | B67: 14
A68: 62 | B68: 13
A69: 63 | B69: 14
A70: 64 | B70: 13
A71: 65 | B71: 14
A72: 66 | B72: 13
A73: 67 | B73: 12
A74: 68 | B74: 11
A75: 69 | B75: 10
A76: 70 | B76: 9
A77: 71 | B77: 10
A78: 72 | B78: 11
A79: 73 | B79: 12
A80: 74 | B80: 13
A81: 75 | B81: 14
A82: 76 | B82: 15
A83: 77 | B83: 14
A84: 78 | B84: 13
A85: 79 | B85: 12
A86: 80 | B86: 13
A87: 81 | B87: 12
A88: 82 | B88: =IF(B87=0,0,IF(B87=20,20,IF(RAND()<$B$1,B87+1,B87-1))) -> 13
A89: 83 | B89: 12
A90: 84 | B90: 13
A91: 85 | B91: 12
A92: 86 | B92: 11
A93: 87 | B93: 10
A94: 88 | B94: 11
A95: 89 | B95: 12
A96: 90 | B96: 11
A97: 91 | B97: 10
A98: 92 | B98: 11
A99: 93 | B99: 10
A100: 94 | B100: 11
A101: 95 | B101: 12
A102: 96 | B102: 13
A103: 97 | B103: 12
A104: 98 | B104: 13
A105: 99 | B105: 12
A106: 100 | B106: 11
A107: 101 | B107: 10
A108: 102 | B108: 11
A109: 103 | B109: 12
A110: 104 | B110: 13
A111: 105 | B111: 12
A112: 106 | B112: 13
A113: 107 | B113: 14
A114: 108 | B114: 15
A115: 109 | B115: 14
A116: 110 | B116: 15
A117: 111 | B117: 16
A118: 112 | B118: 15
A119: 113 | B119: 16
A120: 114 | B120: 15
A121: 115 | B121: 14
A122: 116 | B122: 13
A123: 117 | B123: 14
A124: 118 | B124: 13
A125: 119 | B125: 14
A126: 120 | B126: 13
A127: 121 | B127: 14
A128: 122 | B128: 13
A129: 123 | B129: 12
A130: 124 | B130: 13
A131: 125 | B131: 12
A132: 126 | B132: 13
A133: 127 | B133: 12
A134: 128 | B134: 13
A135: 129 | B135: 12
A136: 130 | B136: 13
A137: 131 | B137: 14
A138: 132 | B138: 15
A139: 133 | B139: 16
A140: 134 | B140: 17
A141: 135 | B141: 18
A142: 136 | B142: 19
A143: 137 | B143: 20
A144: 138 | B144: 20
A145: 139 | B145: 20
A146: 140 | B146: 20
A147: 141 | B147: 20
A148: 142 | B148: 20
A149: 143 | B149: 20
A150: 144 | B150: 20
A151: 145 | B151: 20
A152: 146 | B152: =IF(B151=0,0,IF(B151=20,20,IF(RAND()<$B$1,B151+1,B151-1))) -> 20
A153: 147 | B153: 20
A154: 148 | B154: 20
A155: 149 | B155: 20
A156: 150 | B156: 20
A157: 151 | B157: 20
A158: 152 | B158: 20
A159: 153 | B159: 20
A160: 154 | B160: 20
A161: 155 | B161: 20
A162: 156 | B162: 20
A163: 157 | B163: 20
A164: 158 | B164: 20
A165: 159 | B165: 20
A166: 160 | B166: 20
A167: 161 | B167: 20
A168: 162 | B168: 20
A169: 163 | B169: 20
A170: 164 | B170: 20
A171: 165 | B171: 20
A172: 166 | B172: 20
A173: 167 | B173: 20
A174: 168 | B174: 20
A175: 169 | B175: 20
A176: 170 | B176: 20
A177: 171 | B177: 20
A178: 172 | B178: 20
A179: 173 | B179: 20
A180: 174 | B180: 20
A181: 175 | B181: 20
A182: 176 | B182: 20
A183: 177 | B183: 20
A184: 178 | B184: 20
A185: 179 | B185: 20
A186: 180 | B186: 20
A187: 181 | B187: 20
A188: 182 | B188: 20
A189: 183 | B189: 20
A190: 184 | B190: 20
A191: 185 | B191: 20
A192: 186 | B192: 20
A193: 187 | B193: 20
A194: 188 | B194: 20
A195: 189 | B195: 20
A196: 190 | B196: 20
A197: 191 | B197: 20
A198: 192 | B198: 20
A199: 193 | B199: 20
A200: 194 | B200: 20
A201: 195 | B201: 20
... 105 more rows

Sheet 例題7-4_信頼区間の計算
A1: 確率p | B1: 0.6
A2: 初期枚数a | B2: 5 | N2: LoopNum | O2: =COUNT(K:K) -> 100
A4: シミュレーション | D4: 結果 | N4: 破産の確率
A5: 回数 | B5: チップ枚数 | D5: =IF(B306=0,1,0) -> 0 | E5: =IF(B306=0,1,0) | K5: 反復結果 | L5: 結果(1/0) | N5: 平均 | O5: =AVERAGE(L6:L105) -> 0.18 | R5: =AVERAGE(L6:L105)
A6: 0 | B6: =B2 -> 5 | D6: 1:自分が破産 | K6: 1 | L6: 1 | N6: 標準偏差 | O6: =_xlfn.STDEV.S(L6:L105) -> 0.3861229197 | R6: =STDEV.S(L6:L105)
A7: 1 | B7: =IF(B6=0,0,IF(B6=20,20,IF(RAND()<$B$1,B6+1,B6-1))) -> 6 | D7: 0:相手が破産または賭け継続中 | K7: 2 | L7: 0 | N7: 95%信頼区間 下限値 | O7: =O5-2*O6/SQRT(O2) -> 0.1027754161 | R7: =O5-2*O6/SQRT(O2)
A8: 2 | B8: =IF(B7=0,0,IF(B7=20,20,IF(RAND()<$B$1,B7+1,B7-1))) -> 5 | K8: 3 | L8: 0 | N8: 95%信頼区間 上限値 | O8: =O5+2*O6/SQRT(O2) -> 0.2572245839 | R8: =O5+2*O6/SQRT(O2)
A9: 3 | B9: 6 | K9: 4 | L9: 0
A10: 4 | B10: 7 | K10: 5 | L10: 0
A11: 5 | B11: 8 | K11: 6 | L11: 0
A12: 6 | B12: 9 | K12: 7 | L12: 0
A13: 7 | B13: 10 | K13: 8 | L13: 0
A14: 8 | B14: 11 | K14: 9 | L14: 1
A15: 9 | B15: 12 | K15: 10 | L15: 0
A16: 10 | B16: 11 | K16: 11 | L16: 0
A17: 11 | B17: 12 | K17: 12 | L17: 0
A18: 12 | B18: 13 | K18: 13 | L18: 0
A19: 13 | B19: 14 | K19: 14 | L19: 0
A20: 14 | B20: 15 | K20: 15 | L20: 0
A21: 15 | B21: 16 | K21: 16 | L21: 0
A22: 16 | B22: 15 | K22: 17 | L22: 0
A23: 17 | B23: 14 | K23: 18 | L23: 1
A24: 18 | B24: 15 | K24: 19 | L24: 0
A25: 19 | B25: 14 | K25: 20 | L25: 0
A26: 20 | B26: 13 | K26: 21 | L26: 0
A27: 21 | B27: 14 | K27: 22 | L27: 0
A28: 22 | B28: 13 | K28: 23 | L28: 1
A29: 23 | B29: 14 | K29: 24 | L29: 0
A30: 24 | B30: 15 | K30: 25 | L30: 0
A31: 25 | B31: 16 | K31: 26 | L31: 0
A32: 26 | B32: 15 | K32: 27 | L32: 0
A33: 27 | B33: 16 | K33: 28 | L33: 0
A34: 28 | B34: 15 | K34: 29 | L34: 0
A35: 29 | B35: 14 | K35: 30 | L35: 0
A36: 30 | B36: 15 | K36: 31 | L36: 0
A37: 31 | B37: 16 | K37: 32 | L37: 0
A38: 32 | B38: 15 | K38: 33 | L38: 0
A39: 33 | B39: 14 | K39: 34 | L39: 0
A40: 34 | B40: 15 | K40: 35 | L40: 0
A41: 35 | B41: 16 | K41: 36 | L41: 0
A42: 36 | B42: 15 | K42: 37 | L42: 0
A43: 37 | B43: 16 | K43: 38 | L43: 0
A44: 38 | B44: 17 | K44: 39 | L44: 0
A45: 39 | B45: 18 | K45: 40 | L45: 0
A46: 40 | B46: 17 | K46: 41 | L46: 1
A47: 41 | B47: 16 | K47: 42 | L47: 0
A48: 42 | B48: 15 | K48: 43 | L48: 0
A49: 43 | B49: 16 | K49: 44 | L49: 0
A50: 44 | B50: 17 | K50: 45 | L50: 1
A51: 45 | B51: 18 | K51: 46 | L51: 0
A52: 46 | B52: 19 | K52: 47 | L52: 1
A53: 47 | B53: 20 | K53: 48 | L53: 0
A54: 48 | B54: 20 | K54: 49 | L54: 0
A55: 49 | B55: 20 | K55: 50 | L55: 0
A56: 50 | B56: 20 | K56: 51 | L56: 1
A57: 51 | B57: 20 | K57: 52 | L57: 0
A58: 52 | B58: 20 | K58: 53 | L58: 0
A59: 53 | B59: 20 | K59: 54 | L59: 0
A60: 54 | B60: 20 | K60: 55 | L60: 0
A61: 55 | B61: 20 | K61: 56 | L61: 1
A62: 56 | B62: 20 | K62: 57 | L62: 0
A63: 57 | B63: 20 | K63: 58 | L63: 0
A64: 58 | B64: 20 | K64: 59 | L64: 1
A65: 59 | B65: 20 | K65: 60 | L65: 0
A66: 60 | B66: 20 | K66: 61 | L66: 0
A67: 61 | B67: 20 | K67: 62 | L67: 0
A68: 62 | B68: 20 | K68: 63 | L68: 1
A69: 63 | B69: 20 | K69: 64 | L69: 1
A70: 64 | B70: 20 | K70: 65 | L70: 0
A71: 65 | B71: 20 | K71: 66 | L71: 0
A72: 66 | B72: =IF(B71=0,0,IF(B71=20,20,IF(RAND()<$B$1,B71+1,B71-1))) -> 20 | K72: 67 | L72: 0
A73: 67 | B73: 20 | K73: 68 | L73: 0
A74: 68 | B74: 20 | K74: 69 | L74: 1
A75: 69 | B75: 20 | K75: 70 | L75: 0
A76: 70 | B76: 20 | K76: 71 | L76: 0
A77: 71 | B77: 20 | K77: 72 | L77: 0
A78: 72 | B78: 20 | K78: 73 | L78: 1
A79: 73 | B79: 20 | K79: 74 | L79: 0
A80: 74 | B80: 20 | K80: 75 | L80: 0
A81: 75 | B81: 20 | K81: 76 | L81: 0
A82: 76 | B82: 20 | K82: 77 | L82: 0
A83: 77 | B83: 20 | K83: 78 | L83: 0
A84: 78 | B84: 20 | K84: 79 | L84: 0
A85: 79 | B85: 20 | K85: 80 | L85: 0
A86: 80 | B86: 20 | K86: 81 | L86: 0
A87: 81 | B87: 20 | K87: 82 | L87: 1
A88: 82 | B88: 20 | K88: 83 | L88: 0
A89: 83 | B89: 20 | K89: 84 | L89: 0
A90: 84 | B90: 20 | K90: 85 | L90: 0
A91: 85 | B91: 20 | K91: 86 | L91: 0
A92: 86 | B92: 20 | K92: 87 | L92: 0
A93: 87 | B93: 20 | K93: 88 | L93: 0
A94: 88 | B94: 20 | K94: 89 | L94: 0
A95: 89 | B95: 20 | K95: 90 | L95: 0
A96: 90 | B96: 20 | K96: 91 | L96: 1
A97: 91 | B97: 20 | K97: 92 | L97: 0
A98: 92 | B98: 20 | K98: 93 | L98: 0
A99: 93 | B99: 20 | K99: 94 | L99: 1
A100: 94 | B100: 20 | K100: 95 | L100: 0
A101: 95 | B101: 20 | K101: 96 | L101: 0
A102: 96 | B102: 20 | K102: 97 | L102: 1
A103: 97 | B103: 20 | K103: 98 | L103: 0
A104: 98 | B104: 20 | K104: 99 | L104: 0
A105: 99 | B105: 20 | K105: 100 | L105: 0
A106: 100 | B106: 20
A107: 101 | B107: 20
A108: 102 | B108: 20
A109: 103 | B109: 20
A110: 104 | B110: 20
A111: 105 | B111: 20
A112: 106 | B112: 20
A113: 107 | B113: 20
A114: 108 | B114: 20
A115: 109 | B115: 20
A116: 110 | B116: 20
A117: 111 | B117: 20
A118: 112 | B118: 20
A119: 113 | B119: 20
A120: 114 | B120: 20
A121: 115 | B121: 20
A122: 116 | B122: 20
A123: 117 | B123: 20
A124: 118 | B124: 20
A125: 119 | B125: 20
A126: 120 | B126: 20
A127: 121 | B127: 20
A128: 122 | B128: 20
A129: 123 | B129: 20
A130: 124 | B130: 20
A131: 125 | B131: 20
A132: 126 | B132: 20
A133: 127 | B133: 20
A134: 128 | B134: 20
A135: 129 | B135: 20
A136: 130 | B136: =IF(B135=0,0,IF(B135=20,20,IF(RAND()<$B$1,B135+1,B135-1))) -> 20
A137: 131 | B137: 20
A138: 132 | B138: 20
A139: 133 | B139: 20
A140: 134 | B140: 20
A141: 135 | B141: 20
A142: 136 | B142: 20
A143: 137 | B143: 20
A144: 138 | B144: 20
A145: 139 | B145: 20
A146: 140 | B146: 20
A147: 141 | B147: 20
A148: 142 | B148: 20
A149: 143 | B149: 20
A150: 144 | B150: 20
A151: 145 | B151: 20
A152: 146 | B152: 20
A153: 147 | B153: 20
A154: 148 | B154: 20
A155: 149 | B155: 20
A156: 150 | B156: 20
A157: 151 | B157: 20
A158: 152 | B158: 20
A159: 153 | B159: 20
A160: 154 | B160: 20
A161: 155 | B161: 20
A162: 156 | B162: 20
A163: 157 | B163: 20
A164: 158 | B164: 20
A165: 159 | B165: 20
A166: 160 | B166: 20
A167: 161 | B167: 20
A168: 162 | B168: 20
A169: 163 | B169: 20
A170: 164 | B170: 20
A171: 165 | B171: 20
A172: 166 | B172: 20
A173: 167 | B173: 20
A174: 168 | B174: 20
A175: 169 | B175: 20
A176: 170 | B176: 20
A177: 171 | B177: 20
A178: 172 | B178: 20
A179: 173 | B179: 20
A180: 174 | B180: 20
A181: 175 | B181: 20
A182: 176 | B182: 20
A183: 177 | B183: 20
A184: 178 | B184: 20
A185: 179 | B185: 20
A186: 180 | B186: 20
A187: 181 | B187: 20
A188: 182 | B188: 20
A189: 183 | B189: 20
A190: 184 | B190: 20
A191: 185 | B191: 20
A192: 186 | B192: 20
A193: 187 | B193: 20
A194: 188 | B194: 20
A195: 189 | B195: 20
A196: 190 | B196: 20
A197: 191 | B197: 20
A198: 192 | B198: 20
A199: 193 | B199: 20
A200: 194 | B200: =IF(B199=0,0,IF(B199=20,20,IF(RAND()<$B$1,B199+1,B199-1))) -> 20
A201: 195 | B201: 20
... 105 more rows

Sheet 9_ランダム到着
B1: λ | C1: 2
B2: t | C2: 1-e^(-λt)
B3: 0 | C3: =1-EXP(-$C$1*B3) -> 0
B4: 0.1 | C4: =1-EXP(-$C$1*B4) -> 0.1812692469
B5: 0.2 | C5: 0.329679954
B6: 0.3 | C6: 0.4511883639
B7: 0.4 | C7: 0.5506710359
B8: 0.5 | C8: 0.6321205588
B9: 0.6 | C9: 0.6988057881
B10: 0.7 | C10: 0.7534030361
B11: 0.8 | C11: 0.798103482
B12: 0.9 | C12: 0.8347011118
B13: 1 | C13: 0.8646647168
B14: 1.1 | C14: 0.8891968416
B15: 1.2 | C15: 0.9092820467
B16: 1.3 | C16: 0.9257264218
B17: 1.4 | C17: 0.9391899374
B18: 1.5 | C18: 0.9502129316
B19: 1.6 | C19: 0.959237796
B20: 1.7 | C20: 0.96662673
B21: 1.8 | C21: 0.9726762776
B22: 1.9 | C22: 0.9776292281
B23: 2 | C23: 0.9816843611
B24: 2.1 | C24: 0.9850044232
B25: 2.2 | C25: 0.9877226601
B26: 2.3 | C26: 0.9899481643
B27: 2.4 | C27: 0.991770253
B28: 2.5 | C28: 0.993262053
B29: 2.6 | C29: 0.9944834356
B30: 2.7 | C30: 0.9954834191
B31: 2.8 | C31: 0.9963021363
B32: 2.9 | C32: 0.9969724453
B33: 3 | C33: 0.9975212478

Sheet 例題9-2_単一窓口待ち行列
A1: 到着率λ | B1: 0.2 | C1: 人/分
A2: サービス率μ | B2: 0.25 | C2: 人/分 | J2: LoopNum | K2: =COUNT(J:J) -> 100 | L2: =COUNT(J:J)
A3: 窓口の数 | B3: 1 | C3: 台
K4: 平均待ち時間 | L4: 待たない場合
A5: シミュレーション結果 | J5: 平均 | K5: =AVERAGE(K11:K110) -> 8.050001346 | L5: =AVERAGE(L11:L110) -> 0.2006888889 | M5: =AVERAGE(K11:K110)
A6: 平均待ち時間 | B6: =AVERAGE(G61:G510) -> 8.68561877 | C6: 分 | D6: =AVERAGE(G61:G510) | J6: 標準偏差 | K6: =_xlfn.STDEV.S(K11:K110) -> 2.794986197 | L6: =_xlfn.STDEV.S(L11:L110) -> 0.03455046137 | M6: =STDEV.S(K11:K110)
A7: 待たない割合 | B7: =COUNTIF(G61:G510,0)/COUNT(G61:G510) -> 0.1622222222 | D7: =COUNTIF(G61:G510,0)/COUNT(G61:G510) | J7: 信頼区間下限値 | K7: =K5-2*K6/SQRT(K2) -> 7.491004106 | L7: =L5-2*L6/SQRT(K2) -> 0.1937787966 | M7: =K5-2*K6/SQRT(K2)
J8: 信頼区間上限値 | K8: =K5+2*K6/SQRT(K2) -> 8.608998585 | L8: =L5+2*L6/SQRT(K2) -> 0.2075989812 | M8: =K5+2*K6/SQRT(K2)
J9: 信頼区間上限値 | K9: =K5+2*K6/SQRT(K2) -> 8.608998585 | L9: =L5+2*L6/SQRT(K2) -> 0.2075989812 | M9: =K5+2*K6/SQRT(K2)
A10: 客番号 | B10: 到着間隔 | C10: 到着時間 | D10: サービス開始時刻 | E10: サービス時間 | F10: サービス完了時刻 | G10: 待ち時間 | J10: 反復結果
A11: 1 | C11: 0 | D11: 0 | E11: =1/$B$2 -> 4 | F11: =D11+E11 -> 4 | G11: =D11-C11 -> 0 | J11: 1 | K11: 7.889909814 | L11: 0.1911111111
A12: 2 | B12: =-1/$B$1*LN(1-RAND()) -> 5.518632508 | C12: =C11+B12 -> 5.518632508 | D12: =MAX(C12,F11) -> 5.518632508 | E12: =1/$B$2 -> 4 | F12: =D12+E12 -> 9.518632508 | G12: =D12-C12 -> 0 | J12: 2 | K12: 11.11905358 | L12: 0.1844444444
A13: 3 | B13: =-1/$B$1*LN(1-RAND()) -> 3.156147905 | C13: =C12+B13 -> 8.674780413 | D13: =MAX(C13,F12) -> 9.518632508 | E13: =1/$B$2 -> 4 | F13: =D13+E13 -> 13.51863251 | G13: =D13-C13 -> 0.8438520951 | J13: 3 | K13: 5.667603877 | L13: 0.24
A14: 4 | B14: 2.487078046 | C14: 11.16185846 | D14: 13.51863251 | E14: 4 | F14: 17.51863251 | G14: 2.356774049 | J14: 4 | K14: 5.116075676 | L14: 0.2111111111
A15: 5 | B15: 2.199656265 | C15: 13.36151472 | D15: 17.51863251 | E15: 4 | F15: 21.51863251 | G15: 4.157117785 | J15: 5 | K15: 14.87335186 | L15: 0.1755555556
A16: 6 | B16: 3.404041551 | C16: 16.76555627 | D16: 21.51863251 | E16: 4 | F16: 25.51863251 | G16: 4.753076234 | J16: 6 | K16: 5.96304335 | L16: 0.2044444444
A17: 7 | B17: 11.13370362 | C17: 27.8992599 | D17: 27.8992599 | E17: 4 | F17: 31.8992599 | G17: 0 | J17: 7 | K17: 5.877729421 | L17: 0.1533333333
A18: 8 | B18: 12.29384017 | C18: 40.19310007 | D18: 40.19310007 | E18: 4 | F18: 44.19310007 | G18: 0 | J18: 8 | K18: 9.45143626 | L18: 0.1933333333
A19: 9 | B19: 6.920272488 | C19: 47.11337256 | D19: 47.11337256 | E19: 4 | F19: 51.11337256 | G19: 0 | J19: 9 | K19: 4.962932467 | L19: 0.1866666667
A20: 10 | B20: 1.088533266 | C20: 48.20190582 | D20: 51.11337256 | E20: 4 | F20: 55.11337256 | G20: 2.911466734 | J20: 10 | K20: 10.24232587 | L20: 0.1911111111
A21: 11 | B21: 1.292352238 | C21: 49.49425806 | D21: 55.11337256 | E21: 4 | F21: 59.11337256 | G21: 5.619114496 | J21: 11 | K21: 6.335007503 | L21: 0.1533333333
A22: 12 | B22: 8.846207486 | C22: 58.34046555 | D22: 59.11337256 | E22: 4 | F22: 63.11337256 | G22: 0.7729070103 | J22: 12 | K22: 7.627455934 | L22: 0.1888888889
A23: 13 | B23: 5.490061183 | C23: 63.83052673 | D23: 63.83052673 | E23: 4 | F23: 67.83052673 | G23: 0 | J23: 13 | K23: 6.641445313 | L23: 0.1733333333
A24: 14 | B24: 1.541092616 | C24: 65.37161935 | D24: 67.83052673 | E24: 4 | F24: 71.83052673 | G24: 2.458907384 | J24: 14 | K24: 5.274756212 | L24: 0.1533333333
A25: 15 | B25: 2.677971782 | C25: 68.04959113 | D25: 71.83052673 | E25: 4 | F25: 75.83052673 | G25: 3.780935602 | J25: 15 | K25: 5.819552014 | L25: 0.1377777778
A26: 16 | B26: 0.09711037287 | C26: 68.1467015 | D26: 75.83052673 | E26: 4 | F26: 79.83052673 | G26: 7.683825229 | J26: 16 | K26: 9.204561998 | L26: 0.2044444444
A27: 17 | B27: 16.81483554 | C27: 84.96153704 | D27: 84.96153704 | E27: 4 | F27: 88.96153704 | G27: 0 | J27: 17 | K27: 5.186298661 | L27: 0.2133333333
A28: 18 | B28: 0.1380554381 | C28: 85.09959248 | D28: 88.96153704 | E28: 4 | F28: 92.96153704 | G28: 3.861944562 | J28: 18 | K28: 7.926297824 | L28: 0.1844444444
A29: 19 | B29: 0.4550952706 | C29: 85.55468775 | D29: 92.96153704 | E29: 4 | F29: 96.96153704 | G29: 7.406849291 | J29: 19 | K29: 12.03263611 | L29: 0.1755555556
A30: 20 | B30: 3.122623513 | C30: 88.67731127 | D30: 96.96153704 | E30: 4 | F30: 100.961537 | G30: 8.284225778 | J30: 20 | K30: 12.96719853 | L30: 0.2422222222
A31: 21 | B31: 3.791010148 | C31: 92.46832141 | D31: 100.961537 | E31: 4 | F31: 104.961537 | G31: 8.493215631 | J31: 21 | K31: 4.890304887 | L31: 0.1644444444
A32: 22 | B32: 16.67519488 | C32: 109.1435163 | D32: 109.1435163 | E32: 4 | F32: 113.1435163 | G32: 0 | J32: 22 | K32: 6.398132251 | L32: 0.1911111111
A33: 23 | B33: 3.26641499 | C33: 112.4099313 | D33: 113.1435163 | E33: 4 | F33: 117.1435163 | G33: 0.7335850102 | J33: 23 | K33: 6.330503335 | L33: 0.2488888889
A34: 24 | B34: 0.1415961626 | C34: 112.5515274 | D34: 117.1435163 | E34: 4 | F34: 121.1435163 | G34: 4.591988848 | J34: 24 | K34: 5.722168089 | L34: 0.2844444444
A35: 25 | B35: 3.27697488 | C35: 115.8285023 | D35: 121.1435163 | E35: 4 | F35: 125.1435163 | G35: 5.315013968 | J35: 25 | K35: 10.30013889 | L35: 0.2133333333
A36: 26 | B36: 0.890377525 | C36: 116.7188799 | D36: 125.1435163 | E36: 4 | F36: 129.1435163 | G36: 8.424636443 | J36: 26 | K36: 7.047039737 | L36: 0.2533333333
A37: 27 | B37: 1.847880067 | C37: 118.5667599 | D37: 129.1435163 | E37: 4 | F37: 133.1435163 | G37: 10.57675638 | J37: 27 | K37: 13.17960356 | L37: 0.2111111111
A38: 28 | B38: 2.241528973 | C38: 120.8082889 | D38: 133.1435163 | E38: 4 | F38: 137.1435163 | G38: 12.3352274 | J38: 28 | K38: 7.548885933 | L38: 0.2022222222
A39: 29 | B39: 3.154453363 | C39: 123.9627423 | D39: 137.1435163 | E39: 4 | F39: 141.1435163 | G39: 13.18077404 | J39: 29 | K39: 5.263217072 | L39: 0.1933333333
A40: 30 | B40: 0.6640607269 | C40: 124.626803 | D40: 141.1435163 | E40: 4 | F40: 145.1435163 | G40: 16.51671331 | J40: 30 | K40: 7.322166377 | L40: 0.2222222222
A41: 31 | B41: 0.04368677357 | C41: 124.6704898 | D41: 145.1435163 | E41: 4 | F41: 149.1435163 | G41: 20.47302654 | J41: 31 | K41: 6.390565758 | L41: 0.1622222222
A42: 32 | B42: 17.19179581 | C42: 141.8622856 | D42: 149.1435163 | E42: 4 | F42: 153.1435163 | G42: 7.281230725 | J42: 32 | K42: 5.596433068 | L42: 0.1888888889
A43: 33 | B43: 9.493236116 | C43: 151.3555217 | D43: 153.1435163 | E43: 4 | F43: 157.1435163 | G43: 1.787994609 | J43: 33 | K43: 7.292203739 | L43: 0.1755555556
A44: 34 | B44: 6.118945058 | C44: 157.4744667 | D44: 157.4744667 | E44: 4 | F44: 161.4744667 | G44: 0 | J44: 34 | K44: 5.237234947 | L44: 0.2155555556
A45: 35 | B45: 3.37464176 | C45: 160.8491085 | D45: 161.4744667 | E45: 4 | F45: 165.4744667 | G45: 0.6253582397 | J45: 35 | K45: 6.977965866 | L45: 0.2
A46: 36 | B46: 0.7626807928 | C46: 161.6117893 | D46: 165.4744667 | E46: 4 | F46: 169.4744667 | G46: 3.862677447 | J46: 36 | K46: 5.770416146 | L46: 0.2155555556
A47: 37 | B47: 1.472875066 | C47: 163.0846644 | D47: 169.4744667 | E47: 4 | F47: 173.4744667 | G47: 6.389802381 | J47: 37 | K47: 8.799814413 | L47: 0.1977777778
A48: 38 | B48: 3.18842293 | C48: 166.2730873 | D48: 173.4744667 | E48: 4 | F48: 177.4744667 | G48: 7.201379451 | J48: 38 | K48: 15.61102282 | L48: 0.1888888889
A49: 39 | B49: 1.942058707 | C49: 168.215146 | D49: 177.4744667 | E49: 4 | F49: 181.4744667 | G49: 9.259320744 | J49: 39 | K49: 13.40975168 | L49: 0.1933333333
A50: 40 | B50: 1.753841485 | C50: 169.9689875 | D50: 181.4744667 | E50: 4 | F50: 185.4744667 | G50: 11.50547926 | J50: 40 | K50: 5.71923852 | L50: 0.2066666667
A51: 41 | B51: 0.8387391864 | C51: 170.8077267 | D51: 185.4744667 | E51: 4 | F51: 189.4744667 | G51: 14.66674007 | J51: 41 | K51: 10.97165681 | L51: 0.1711111111
A52: 42 | B52: 3.4917628 | C52: 174.2994895 | D52: 189.4744667 | E52: 4 | F52: 193.4744667 | G52: 15.17497727 | J52: 42 | K52: 11.20098828 | L52: 0.2288888889
A53: 43 | B53: 6.550298232 | C53: 180.8497877 | D53: 193.4744667 | E53: 4 | F53: 197.4744667 | G53: 12.62467904 | J53: 43 | K53: 7.06377265 | L53: 0.2088888889
A54: 44 | B54: 4.387340826 | C54: 185.2371285 | D54: 197.4744667 | E54: 4 | F54: 201.4744667 | G54: 12.23733821 | J54: 44 | K54: 6.183955173 | L54: 0.2022222222
A55: 45 | B55: 0.8603965385 | C55: 186.0975251 | D55: 201.4744667 | E55: 4 | F55: 205.4744667 | G55: 15.37694167 | J55: 45 | K55: 8.093179176 | L55: 0.2377777778
A56: 46 | B56: 5.244748017 | C56: 191.3422731 | D56: 205.4744667 | E56: 4 | F56: 209.4744667 | G56: 14.13219366 | J56: 46 | K56: 7.452939916 | L56: 0.2533333333
A57: 47 | B57: 2.291326521 | C57: 193.6335996 | D57: 209.4744667 | E57: 4 | F57: 213.4744667 | G57: 15.84086714 | J57: 47 | K57: 7.680838231 | L57: 0.2333333333
A58: 48 | B58: 3.219865372 | C58: 196.853465 | D58: 213.4744667 | E58: 4 | F58: 217.4744667 | G58: 16.62100176 | J58: 48 | K58: 7.54942981 | L58: 0.2555555556
A59: 49 | B59: 10.35563843 | C59: 207.2091034 | D59: 217.4744667 | E59: 4 | F59: 221.4744667 | G59: 10.26536334 | J59: 49 | K59: 12.50355644 | L59: 0.2288888889
A60: 50 | B60: 18.52933519 | C60: 225.7384386 | D60: 225.7384386 | E60: 4 | F60: 229.7384386 | G60: 0 | J60: 50 | K60: 9.919770121 | L60: 0.1555555556
A61: 51 | B61: 10.25980749 | C61: 235.9982461 | D61: 235.9982461 | E61: 4 | F61: 239.9982461 | G61: 0 | J61: 51 | K61: 8.056515013 | L61: 0.2177777778
A62: 52 | B62: 7.156157784 | C62: 243.1544039 | D62: 243.1544039 | E62: 4 | F62: 247.1544039 | G62: 0 | J62: 52 | K62: 8.755547261 | L62: 0.1955555556
A63: 53 | B63: 9.740371451 | C63: 252.8947753 | D63: 252.8947753 | E63: 4 | F63: 256.8947753 | G63: 0 | J63: 53 | K63: 5.532092913 | L63: 0.2622222222
A64: 54 | B64: 13.01795144 | C64: 265.9127268 | D64: 265.9127268 | E64: 4 | F64: 269.9127268 | G64: 0 | J64: 54 | K64: 6.496547842 | L64: 0.2044444444
A65: 55 | B65: 1.321345297 | C65: 267.2340721 | D65: 269.9127268 | E65: 4 | F65: 273.9127268 | G65: 2.678654703 | J65: 55 | K65: 9.038044641 | L65: 0.1844444444
A66: 56 | B66: 8.39145283 | C66: 275.6255249 | D66: 275.6255249 | E66: 4 | F66: 279.6255249 | G66: 0 | J66: 56 | K66: 6.698182397 | L66: 0.1688888889
A67: 57 | B67: 1.53325575 | C67: 277.1587806 | D67: 279.6255249 | E67: 4 | F67: 283.6255249 | G67: 2.46674425 | J67: 57 | K67: 6.421851462 | L67: 0.1933333333
A68: 58 | B68: 4.340417028 | C68: 281.4991977 | D68: 283.6255249 | E68: 4 | F68: 287.6255249 | G68: 2.126327222 | J68: 58 | K68: 5.776196701 | L68: 0.1355555556
A69: 59 | B69: 1.368738773 | C69: 282.8679364 | D69: 287.6255249 | E69: 4 | F69: 291.6255249 | G69: 4.757588449 | J69: 59 | K69: 12.24930564 | L69: 0.2244444444
A70: 60 | B70: 0.6225884441 | C70: 283.4905249 | D70: 291.6255249 | E70: 4 | F70: 295.6255249 | G70: 8.135000005 | J70: 60 | K70: 9.597213134 | L70: 0.1711111111
A71: 61 | B71: 8.9157462 | C71: 292.4062711 | D71: 295.6255249 | E71: 4 | F71: 299.6255249 | G71: 3.219253804 | J71: 61 | K71: 13.59362295 | L71: 0.1622222222
A72: 62 | B72: 1.956710193 | C72: 294.3629813 | D72: 299.6255249 | E72: 4 | F72: 303.6255249 | G72: 5.262543611 | J72: 62 | K72: 5.418854004 | L72: 0.1866666667
A73: 63 | B73: 1.380257918 | C73: 295.7432392 | D73: 303.6255249 | E73: 4 | F73: 307.6255249 | G73: 7.882285693 | J73: 63 | K73: 15.57279464 | L73: 0.1755555556
A74: 64 | B74: 0.8540289852 | C74: 296.5972682 | D74: 307.6255249 | E74: 4 | F74: 311.6255249 | G74: 11.02825671 | J74: 64 | K74: 5.362212652 | L74: 0.1888888889
A75: 65 | B75: 1.960210655 | C75: 298.5574788 | D75: 311.6255249 | E75: 4 | F75: 315.6255249 | G75: 13.06804605 | J75: 65 | K75: 6.241826348 | L75: 0.1888888889
A76: 66 | B76: 10.39507123 | C76: 308.9525501 | D76: 315.6255249 | E76: 4 | F76: 319.6255249 | G76: 6.672974823 | J76: 66 | K76: 6.19385096 | L76: 0.2044444444
A77: 67 | B77: =-1/$B$1*LN(1-RAND()) -> 0.7434908472 | C77: =C76+B77 -> 309.6960409 | D77: =MAX(C77,F76) -> 319.6255249 | E77: =1/$B$2 -> 4 | F77: =D77+E77 -> 323.6255249 | G77: =D77-C77 -> 9.929483976 | J77: 67 | K77: 11.25651446 | L77: 0.2377777778
A78: 68 | B78: 0.3063566267 | C78: 310.0023975 | D78: 323.6255249 | E78: 4 | F78: 327.6255249 | G78: 13.62312735 | J78: 68 | K78: 5.443764401 | L78: 0.1866666667
A79: 69 | B79: 0.8592235899 | C79: 310.8616211 | D79: 327.6255249 | E79: 4 | F79: 331.6255249 | G79: 16.76390376 | J79: 69 | K79: 7.25406723 | L79: 0.2044444444
A80: 70 | B80: 5.686927141 | C80: 316.5485483 | D80: 331.6255249 | E80: 4 | F80: 335.6255249 | G80: 15.07697662 | J80: 70 | K80: 8.413448385 | L80: 0.1644444444
A81: 71 | B81: 1.679250005 | C81: 318.2277983 | D81: 335.6255249 | E81: 4 | F81: 339.6255249 | G81: 17.39772661 | J81: 71 | K81: 7.371474994 | L81: 0.1666666667
A82: 72 | B82: 1.910846777 | C82: 320.138645 | D82: 339.6255249 | E82: 4 | F82: 343.6255249 | G82: 19.48687984 | J82: 72 | K82: 5.141870351 | L82: 0.2133333333
A83: 73 | B83: 0.1058724691 | C83: 320.2445175 | D83: 343.6255249 | E83: 4 | F83: 347.6255249 | G83: 23.38100737 | J83: 73 | K83: 8.646632406 | L83: 0.1822222222
A84: 74 | B84: 2.215225773 | C84: 322.4597433 | D84: 347.6255249 | E84: 4 | F84: 351.6255249 | G84: 25.16578159 | J84: 74 | K84: 8.63847826 | L84: 0.2377777778
A85: 75 | B85: 3.064831938 | C85: 325.5245752 | D85: 351.6255249 | E85: 4 | F85: 355.6255249 | G85: 26.10094966 | J85: 75 | K85: 15.13297106 | L85: 0.2288888889
A86: 76 | B86: 5.112981232 | C86: 330.6375565 | D86: 355.6255249 | E86: 4 | F86: 359.6255249 | G86: 24.98796842 | J86: 76 | K86: 5.111172207 | L86: 0.2733333333
A87: 77 | B87: 8.263740945 | C87: 338.9012974 | D87: 359.6255249 | E87: 4 | F87: 363.6255249 | G87: 20.72422748 | J87: 77 | K87: 12.58445519 | L87: 0.16
A88: 78 | B88: 16.00649838 | C88: 354.9077958 | D88: 363.6255249 | E88: 4 | F88: 367.6255249 | G88: 8.717729101 | J88: 78 | K88: 8.127634499 | L88: 0.22
A89: 79 | B89: 13.53129887 | C89: 368.4390947 | D89: 368.4390947 | E89: 4 | F89: 372.4390947 | G89: 0 | J89: 79 | K89: 5.419413175 | L89: 0.1711111111
A90: 80 | B90: 2.019851767 | C90: 370.4589464 | D90: 372.4390947 | E90: 4 | F90: 376.4390947 | G90: 1.980148233 | J90: 80 | K90: 8.15100947 | L90: 0.1111111111
A91: 81 | B91: 11.15748918 | C91: 381.6164356 | D91: 381.6164356 | E91: 4 | F91: 385.6164356 | G91: 0 | J91: 81 | K91: 4.083784091 | L91: 0.1933333333
A92: 82 | B92: 2.410909725 | C92: 384.0273453 | D92: 385.6164356 | E92: 4 | F92: 389.6164356 | G92: 1.589090275 | J92: 82 | K92: 5.975291618 | L92: 0.2733333333
A93: 83 | B93: 8.282812195 | C93: 392.3101575 | D93: 392.3101575 | E93: 4 | F93: 396.3101575 | G93: 0 | J93: 83 | K93: 8.7649547 | L93: 0.2733333333
A94: 84 | B94: 7.668165985 | C94: 399.9783235 | D94: 399.9783235 | E94: 4 | F94: 403.9783235 | G94: 0 | J94: 84 | K94: 9.879672857 | L94: 0.1755555556
A95: 85 | B95: 0.4714213811 | C95: 400.4497449 | D95: 403.9783235 | E95: 4 | F95: 407.9783235 | G95: 3.528578619 | J95: 85 | K95: 10.06488177 | L95: 0.1777777778
A96: 86 | B96: 7.789041729 | C96: 408.2387866 | D96: 408.2387866 | E96: 4 | F96: 412.2387866 | G96: 0 | J96: 86 | K96: 5.631163073 | L96: 0.2711111111
A97: 87 | B97: 2.5649167 | C97: 410.8037033 | D97: 412.2387866 | E97: 4 | F97: 416.2387866 | G97: 1.4350833 | J97: 87 | K97: 6.947248525 | L97: 0.2422222222
A98: 88 | B98: 4.907430735 | C98: 415.7111341 | D98: 416.2387866 | E98: 4 | F98: 420.2387866 | G98: 0.5276525649 | J98: 88 | K98: 8.963402786 | L98: 0.1755555556
A99: 89 | B99: 13.77319537 | C99: 429.4843294 | D99: 429.4843294 | E99: 4 | F99: 433.4843294 | G99: 0 | J99: 89 | K99: 7.129336512 | L99: 0.1844444444
A100: 90 | B100: 0.02025554485 | C100: 429.504585 | D100: 433.4843294 | E100: 4 | F100: 437.4843294 | G100: 3.979744455 | J100: 90 | K100: 7.03750336 | L100: 0.2266666667
A101: 91 | B101: 3.016673801 | C101: 432.5212588 | D101: 437.4843294 | E101: 4 | F101: 441.4843294 | G101: 4.963070654 | J101: 91 | K101: 15.20804562 | L101: 0.16
A102: 92 | B102: 5.062713355 | C102: 437.5839721 | D102: 441.4843294 | E102: 4 | F102: 445.4843294 | G102: 3.900357298 | J102: 92 | K102: 5.336140662 | L102: 0.2422222222
A103: 93 | B103: 7.308910407 | C103: 444.8928825 | D103: 445.4843294 | E103: 4 | F103: 449.4843294 | G103: 0.5914468918 | J103: 93 | K103: 6.817941875 | L103: 0.2622222222
A104: 94 | B104: 2.405386226 | C104: 447.2982688 | D104: 449.4843294 | E104: 4 | F104: 453.4843294 | G104: 2.186060666 | J104: 94 | K104: 9.043297653 | L104: 0.2244444444
A105: 95 | B105: 22.57327084 | C105: 469.8715396 | D105: 469.8715396 | E105: 4 | F105: 473.8715396 | G105: 0 | J105: 95 | K105: 8.497321184 | L105: 0.1911111111
A106: 96 | B106: 2.002450551 | C106: 471.8739901 | D106: 473.8715396 | E106: 4 | F106: 477.8715396 | G106: 1.997549449 | J106: 96 | K106: 6.672955466 | L106: 0.1911111111
A107: 97 | B107: 6.693132501 | C107: 478.5671226 | D107: 478.5671226 | E107: 4 | F107: 482.5671226 | G107: 0 | J107: 97 | K107: 6.856749133 | L107: 0.1555555556
A108: 98 | B108: 4.136943439 | C108: 482.7040661 | D108: 482.7040661 | E108: 4 | F108: 486.7040661 | G108: 0 | J108: 98 | K108: 7.690966264 | L108: 0.2022222222
A109: 99 | B109: 0.8305135226 | C109: 483.5345796 | D109: 486.7040661 | E109: 4 | F109: 490.7040661 | G109: 3.169486477 | J109: 99 | K109: 3.63296807 | L109: 0.2222222222
A110: 100 | B110: 8.277296525 | C110: 491.8118761 | D110: 491.8118761 | E110: 4 | F110: 495.8118761 | G110: 0 | J110: 100 | K110: 9.463378745 | L110: 0.14
A111: 101 | B111: 5.791443526 | C111: 497.6033197 | D111: 497.6033197 | E111: 4 | F111: 501.6033197 | G111: 0
A112: 102 | B112: 3.067077374 | C112: 500.670397 | D112: 501.6033197 | E112: 4 | F112: 505.6033197 | G112: 0.9329226257
A113: 103 | B113: 3.701384945 | C113: 504.371782 | D113: 505.6033197 | E113: 4 | F113: 509.6033197 | G113: 1.231537681
A114: 104 | B114: 3.63460049 | C114: 508.0063825 | D114: 509.6033197 | E114: 4 | F114: 513.6033197 | G114: 1.596937191
A115: 105 | B115: 0.7040129604 | C115: 508.7103954 | D115: 513.6033197 | E115: 4 | F115: 517.6033197 | G115: 4.892924231
A116: 106 | B116: 8.213337407 | C116: 516.9237328 | D116: 517.6033197 | E116: 4 | F116: 521.6033197 | G116: 0.6795868243
A117: 107 | B117: 1.673064824 | C117: 518.5967977 | D117: 521.6033197 | E117: 4 | F117: 525.6033197 | G117: 3.006522001
A118: 108 | B118: 1.359192969 | C118: 519.9559906 | D118: 525.6033197 | E118: 4 | F118: 529.6033197 | G118: 5.647329032
A119: 109 | B119: 2.370854049 | C119: 522.3268447 | D119: 529.6033197 | E119: 4 | F119: 533.6033197 | G119: 7.276474983
A120: 110 | B120: 4.687778119 | C120: 527.0146228 | D120: 533.6033197 | E120: 4 | F120: 537.6033197 | G120: 6.588696863
A121: 111 | B121: 12.41936189 | C121: 539.4339847 | D121: 539.4339847 | E121: 4 | F121: 543.4339847 | G121: 0
A122: 112 | B122: 2.811181456 | C122: 542.2451661 | D122: 543.4339847 | E122: 4 | F122: 547.4339847 | G122: 1.188818544
A123: 113 | B123: 0.4741738425 | C123: 542.71934 | D123: 547.4339847 | E123: 4 | F123: 551.4339847 | G123: 4.714644702
A124: 114 | B124: 0.273806319 | C124: 542.9931463 | D124: 551.4339847 | E124: 4 | F124: 555.4339847 | G124: 8.440838383
A125: 115 | B125: 13.22060832 | C125: 556.2137546 | D125: 556.2137546 | E125: 4 | F125: 560.2137546 | G125: 0
A126: 116 | B126: 5.208291922 | C126: 561.4220465 | D126: 561.4220465 | E126: 4 | F126: 565.4220465 | G126: 0
A127: 117 | B127: 3.793656115 | C127: 565.2157027 | D127: 565.4220465 | E127: 4 | F127: 569.4220465 | G127: 0.2063438849
A128: 118 | B128: 4.733843965 | C128: 569.9495466 | D128: 569.9495466 | E128: 4 | F128: 573.9495466 | G128: 0
A129: 119 | B129: 0.808875583 | C129: 570.7584222 | D129: 573.9495466 | E129: 4 | F129: 577.9495466 | G129: 3.191124417
A130: 120 | B130: 4.927232079 | C130: 575.6856543 | D130: 577.9495466 | E130: 4 | F130: 581.9495466 | G130: 2.263892338
A131: 121 | B131: 7.208544813 | C131: 582.8941991 | D131: 582.8941991 | E131: 4 | F131: 586.8941991 | G131: 0
A132: 122 | B132: 1.023698708 | C132: 583.9178978 | D132: 586.8941991 | E132: 4 | F132: 590.8941991 | G132: 2.976301292
A133: 123 | B133: 0.6755610605 | C133: 584.5934589 | D133: 590.8941991 | E133: 4 | F133: 594.8941991 | G133: 6.300740231
A134: 124 | B134: 0.3695683306 | C134: 584.9630272 | D134: 594.8941991 | E134: 4 | F134: 598.8941991 | G134: 9.931171901
A135: 125 | B135: 16.8371526 | C135: 601.8001798 | D135: 601.8001798 | E135: 4 | F135: 605.8001798 | G135: 0
A136: 126 | B136: 4.330625444 | C136: 606.1308052 | D136: 606.1308052 | E136: 4 | F136: 610.1308052 | G136: 0
A137: 127 | B137: 4.622956833 | C137: 610.7537621 | D137: 610.7537621 | E137: 4 | F137: 614.7537621 | G137: 0
A138: 128 | B138: 1.32912045 | C138: 612.0828825 | D138: 614.7537621 | E138: 4 | F138: 618.7537621 | G138: 2.67087955
A139: 129 | B139: 10.15083641 | C139: 622.2337189 | D139: 622.2337189 | E139: 4 | F139: 626.2337189 | G139: 0
A140: 130 | B140: 7.798391828 | C140: 630.0321107 | D140: 630.0321107 | E140: 4 | F140: 634.0321107 | G140: 0
A141: 131 | B141: =-1/$B$1*LN(1-RAND()) -> 0.2426005919 | C141: =C140+B141 -> 630.2747113 | D141: =MAX(C141,F140) -> 634.0321107 | E141: =1/$B$2 -> 4 | F141: =D141+E141 -> 638.0321107 | G141: =D141-C141 -> 3.757399408
A142: 132 | B142: 2.758432542 | C142: 633.0331439 | D142: 638.0321107 | E142: 4 | F142: 642.0321107 | G142: 4.998966866
A143: 133 | B143: 3.918154429 | C143: 636.9512983 | D143: 642.0321107 | E143: 4 | F143: 646.0321107 | G143: 5.080812437
A144: 134 | B144: 0.3901232873 | C144: 637.3414216 | D144: 646.0321107 | E144: 4 | F144: 650.0321107 | G144: 8.69068915
A145: 135 | B145: 4.866832265 | C145: 642.2082539 | D145: 650.0321107 | E145: 4 | F145: 654.0321107 | G145: 7.823856885
A146: 136 | B146: 3.339916856 | C146: 645.5481707 | D146: 654.0321107 | E146: 4 | F146: 658.0321107 | G146: 8.483940028
A147: 137 | B147: 6.149442215 | C147: 651.6976129 | D147: 658.0321107 | E147: 4 | F147: 662.0321107 | G147: 6.334497814
A148: 138 | B148: 1.156481067 | C148: 652.854094 | D148: 662.0321107 | E148: 4 | F148: 666.0321107 | G148: 9.178016747
A149: 139 | B149: 6.864892855 | C149: 659.7189869 | D149: 666.0321107 | E149: 4 | F149: 670.0321107 | G149: 6.313123893
A150: 140 | B150: 4.010051101 | C150: 663.729038 | D150: 670.0321107 | E150: 4 | F150: 674.0321107 | G150: 6.303072792
A151: 141 | B151: 9.866190712 | C151: 673.5952287 | D151: 674.0321107 | E151: 4 | F151: 678.0321107 | G151: 0.4368820796
A152: 142 | B152: 3.340847576 | C152: 676.9360762 | D152: 678.0321107 | E152: 4 | F152: 682.0321107 | G152: 1.096034504
A153: 143 | B153: 2.22689556 | C153: 679.1629718 | D153: 682.0321107 | E153: 4 | F153: 686.0321107 | G153: 2.869138944
A154: 144 | B154: 14.75004029 | C154: 693.9130121 | D154: 693.9130121 | E154: 4 | F154: 697.9130121 | G154: 0
A155: 145 | B155: 12.18501741 | C155: 706.0980295 | D155: 706.0980295 | E155: 4 | F155: 710.0980295 | G155: 0
A156: 146 | B156: 2.650801185 | C156: 708.7488307 | D156: 710.0980295 | E156: 4 | F156: 714.0980295 | G156: 1.349198815
A157: 147 | B157: 10.22453166 | C157: 718.9733623 | D157: 718.9733623 | E157: 4 | F157: 722.9733623 | G157: 0
A158: 148 | B158: 0.1344280027 | C158: 719.1077903 | D158: 722.9733623 | E158: 4 | F158: 726.9733623 | G158: 3.865571997
A159: 149 | B159: 11.75457291 | C159: 730.8623633 | D159: 730.8623633 | E159: 4 | F159: 734.8623633 | G159: 0
A160: 150 | B160: 1.822084004 | C160: 732.6844473 | D160: 734.8623633 | E160: 4 | F160: 738.8623633 | G160: 2.177915996
A161: 151 | B161: 2.67772533 | C161: 735.3621726 | D161: 738.8623633 | E161: 4 | F161: 742.8623633 | G161: 3.500190666
A162: 152 | B162: 4.159416625 | C162: 739.5215892 | D162: 742.8623633 | E162: 4 | F162: 746.8623633 | G162: 3.34077404
A163: 153 | B163: 0.4482993439 | C163: 739.9698886 | D163: 746.8623633 | E163: 4 | F163: 750.8623633 | G163: 6.892474697
A164: 154 | B164: 0.7206335759 | C164: 740.6905221 | D164: 750.8623633 | E164: 4 | F164: 754.8623633 | G164: 10.17184112
A165: 155 | B165: 0.04325339944 | C165: 740.7337755 | D165: 754.8623633 | E165: 4 | F165: 758.8623633 | G165: 14.12858772
A166: 156 | B166: 1.585706676 | C166: 742.3194822 | D166: 758.8623633 | E166: 4 | F166: 762.8623633 | G166: 16.54288105
A167: 157 | B167: 15.14180492 | C167: 757.4612871 | D167: 762.8623633 | E167: 4 | F167: 766.8623633 | G167: 5.401076122
A168: 158 | B168: 4.798305246 | C168: 762.2595924 | D168: 766.8623633 | E168: 4 | F168: 770.8623633 | G168: 4.602770876
A169: 159 | B169: 2.301775119 | C169: 764.5613675 | D169: 770.8623633 | E169: 4 | F169: 774.8623633 | G169: 6.300995757
A170: 160 | B170: 5.350508417 | C170: 769.9118759 | D170: 774.8623633 | E170: 4 | F170: 778.8623633 | G170: 4.95048734
A171: 161 | B171: 3.159750069 | C171: 773.071626 | D171: 778.8623633 | E171: 4 | F171: 782.8623633 | G171: 5.790737271
A172: 162 | B172: 6.026349058 | C172: 779.097975 | D172: 782.8623633 | E172: 4 | F172: 786.8623633 | G172: 3.764388213
A173: 163 | B173: 7.260643322 | C173: 786.3586184 | D173: 786.8623633 | E173: 4 | F173: 790.8623633 | G173: 0.5037448908
A174: 164 | B174: 4.499536726 | C174: 790.8581551 | D174: 790.8623633 | E174: 4 | F174: 794.8623633 | G174: 0.004208164668
A175: 165 | B175: 5.077291199 | C175: 795.9354463 | D175: 795.9354463 | E175: 4 | F175: 799.9354463 | G175: 0
A176: 166 | B176: 5.705547524 | C176: 801.6409938 | D176: 801.6409938 | E176: 4 | F176: 805.6409938 | G176: 0
A177: 167 | B177: 0.8004245554 | C177: 802.4414184 | D177: 805.6409938 | E177: 4 | F177: 809.6409938 | G177: 3.199575445
A178: 168 | B178: 11.83894437 | C178: 814.2803627 | D178: 814.2803627 | E178: 4 | F178: 818.2803627 | G178: 0
A179: 169 | B179: 2.421991891 | C179: 816.7023546 | D179: 818.2803627 | E179: 4 | F179: 822.2803627 | G179: 1.578008109
A180: 170 | B180: 4.321977733 | C180: 821.0243324 | D180: 822.2803627 | E180: 4 | F180: 826.2803627 | G180: 1.256030376
A181: 171 | B181: 1.808400448 | C181: 822.8327328 | D181: 826.2803627 | E181: 4 | F181: 830.2803627 | G181: 3.447629928
A182: 172 | B182: 6.102138003 | C182: 828.9348708 | D182: 830.2803627 | E182: 4 | F182: 834.2803627 | G182: 1.345491925
A183: 173 | B183: 1.46628394 | C183: 830.4011548 | D183: 834.2803627 | E183: 4 | F183: 838.2803627 | G183: 3.879207985
A184: 174 | B184: 17.99881416 | C184: 848.3999689 | D184: 848.3999689 | E184: 4 | F184: 852.3999689 | G184: 0
A185: 175 | B185: 3.048406062 | C185: 851.448375 | D185: 852.3999689 | E185: 4 | F185: 856.3999689 | G185: 0.9515939381
A186: 176 | B186: 0.40116817 | C186: 851.8495431 | D186: 856.3999689 | E186: 4 | F186: 860.3999689 | G186: 4.550425768
A187: 177 | B187: 1.112699159 | C187: 852.9622423 | D187: 860.3999689 | E187: 4 | F187: 864.3999689 | G187: 7.437726609
A188: 178 | B188: 2.879516513 | C188: 855.8417588 | D188: 864.3999689 | E188: 4 | F188: 868.3999689 | G188: 8.558210096
A189: 179 | B189: 6.25844383 | C189: 862.1002026 | D189: 868.3999689 | E189: 4 | F189: 872.3999689 | G189: 6.299766266
A190: 180 | B190: 1.505243226 | C190: 863.6054459 | D190: 872.3999689 | E190: 4 | F190: 876.3999689 | G190: 8.79452304
A191: 181 | B191: 4.017654288 | C191: 867.6231002 | D191: 876.3999689 | E191: 4 | F191: 880.3999689 | G191: 8.776868752
A192: 182 | B192: 0.568459009 | C192: 868.1915592 | D192: 880.3999689 | E192: 4 | F192: 884.3999689 | G192: 12.20840974
A193: 183 | B193: 0.0911621044 | C193: 868.2827213 | D193: 884.3999689 | E193: 4 | F193: 888.3999689 | G193: 16.11724764
A194: 184 | B194: 6.138127586 | C194: 874.4208489 | D194: 888.3999689 | E194: 4 | F194: 892.3999689 | G194: 13.97912005
A195: 185 | B195: 2.539844209 | C195: 876.9606931 | D195: 892.3999689 | E195: 4 | F195: 896.3999689 | G195: 15.43927584
A196: 186 | B196: 2.114036543 | C196: 879.0747296 | D196: 896.3999689 | E196: 4 | F196: 900.3999689 | G196: 17.3252393
A197: 187 | B197: 1.861015141 | C197: 880.9357448 | D197: 900.3999689 | E197: 4 | F197: 904.3999689 | G197: 19.46422416
A198: 188 | B198: 4.741590641 | C198: 885.6773354 | D198: 904.3999689 | E198: 4 | F198: 908.3999689 | G198: 18.72263352
A199: 189 | B199: 2.03545271 | C199: 887.7127881 | D199: 908.3999689 | E199: 4 | F199: 912.3999689 | G199: 20.68718081
A200: 190 | B200: 1.137639581 | C200: 888.8504277 | D200: 912.3999689 | E200: 4 | F200: 916.3999689 | G200: 23.54954123
... 310 more rows

Sheet 例題9-3_単一窓口待ち行列
A1: 到着率λ | B1: 0.2 | C1: 人/分
A2: サービス率μ | B2: 0.25 | C2: 人/分 | J2: LoopNum | K2: =COUNT(J:J) -> 100 | L2: =COUNT(J:J)
A3: 窓口の数 | B3: 1 | C3: 台
K4: 平均待ち時間 | L4: 待たない場合
A5: シミュレーション結果 | J5: 平均 | K5: =AVERAGE(K11:K110) -> 8.050001346 | L5: =AVERAGE(L11:L110) -> 0.2006888889 | M5: =AVERAGE(K11:K110)
A6: 平均待ち時間 | B6: =AVERAGE(G61:G510) -> 14.45202396 | C6: 分 | D6: =AVERAGE(G61:G510) | J6: 標準偏差 | K6: =_xlfn.STDEV.S(K11:K110) -> 2.794986197 | L6: =_xlfn.STDEV.S(L11:L110) -> 0.03455046137 | M6: =STDEV.S(K11:K110)
A7: 待たない割合 | B7: =COUNTIF(G61:G510,0)/COUNT(G61:G510) -> 0.2 | D7: =COUNTIF(G61:G510,0)/COUNT(G61:G510) | J7: 信頼区間下限値 | K7: =K5-2*K6/SQRT(K2) -> 7.491004106 | L7: =L5-2*L6/SQRT(K2) -> 0.1937787966 | M7: =K5-2*K6/SQRT(K2)
J8: 信頼区間上限値 | K8: =K5+2*K6/SQRT(K2) -> 8.608998585 | L8: =L5+2*L6/SQRT(K2) -> 0.2075989812 | M8: =K5+2*K6/SQRT(K2)
J9: 信頼区間上限値 | K9: =K5+2*K6/SQRT(K2) -> 8.608998585 | L9: =L5+2*L6/SQRT(K2) -> 0.2075989812 | M9: =K5+2*K6/SQRT(K2)
A10: 客番号 | B10: 到着間隔 | C10: 到着時間 | D10: サービス開始時刻 | E10: サービス時間 | F10: サービス完了時刻 | G10: 待ち時間 | J10: 反復結果
A11: 1 | C11: 0 | D11: 0 | E11: =-1/$B$2*LN(1-RAND()) -> 1.536766603 | F11: =D11+E11 -> 1.536766603 | G11: =D11-C11 -> 0 | J11: 1 | K11: 7.889909814 | L11: 0.1911111111
A12: 2 | B12: =-1/$B$1*LN(1-RAND()) -> 4.07374548 | C12: =C11+B12 -> 4.07374548 | D12: =MAX(C12,F11) -> 4.07374548 | E12: =-1/$B$2*LN(1-RAND()) -> 6.74673698 | F12: =D12+E12 -> 10.82048246 | G12: =D12-C12 -> 0 | J12: 2 | K12: 11.11905358 | L12: 0.1844444444
A13: 3 | B13: =-1/$B$1*LN(1-RAND()) -> 6.806394037 | C13: =C12+B13 -> 10.88013952 | D13: =MAX(C13,F12) -> 10.88013952 | E13: 5.05291888 | F13: =D13+E13 -> 15.9330584 | G13: =D13-C13 -> 0 | J13: 3 | K13: 5.667603877 | L13: 0.24
A14: 4 | B14: 8.830111108 | C14: 19.71025063 | D14: 19.71025063 | E14: 4.126582465 | F14: 23.83683309 | G14: 0 | J14: 4 | K14: 5.116075676 | L14: 0.2111111111
A15: 5 | B15: 3.846566179 | C15: 23.5568168 | D15: 23.83683309 | E15: 7.853326086 | F15: 31.69015918 | G15: 0.2800162859 | J15: 5 | K15: 14.87335186 | L15: 0.1755555556
A16: 6 | B16: 6.716963241 | C16: 30.27378005 | D16: 31.69015918 | E16: 1.307681567 | F16: 32.99784074 | G16: 1.416379131 | J16: 6 | K16: 5.96304335 | L16: 0.2044444444
A17: 7 | B17: 1.333955889 | C17: 31.60773593 | D17: 32.99784074 | E17: 8.941667056 | F17: 41.9395078 | G17: 1.390104809 | J17: 7 | K17: 5.877729421 | L17: 0.1533333333
A18: 8 | B18: 17.88279792 | C18: 49.49053386 | D18: 49.49053386 | E18: 1.453010651 | F18: 50.94354451 | G18: 0 | J18: 8 | K18: 9.45143626 | L18: 0.1933333333
A19: 9 | B19: 2.612405 | C19: 52.10293886 | D19: 52.10293886 | E19: 0.07353852792 | F19: 52.17647738 | G19: 0 | J19: 9 | K19: 4.962932467 | L19: 0.1866666667
A20: 10 | B20: 5.725490551 | C20: 57.82842941 | D20: 57.82842941 | E20: 0.3612749931 | F20: 58.1897044 | G20: 0 | J20: 10 | K20: 10.24232587 | L20: 0.1911111111
A21: 11 | B21: 6.543626984 | C21: 64.37205639 | D21: 64.37205639 | E21: 0.3541653247 | F21: 64.72622172 | G21: 0 | J21: 11 | K21: 6.335007503 | L21: 0.1533333333
A22: 12 | B22: 2.530291313 | C22: 66.9023477 | D22: 66.9023477 | E22: 0.1183245437 | F22: 67.02067225 | G22: 0 | J22: 12 | K22: 7.627455934 | L22: 0.1888888889
A23: 13 | B23: 7.149092771 | C23: 74.05144048 | D23: 74.05144048 | E23: 0.1875099852 | F23: 74.23895046 | G23: 0 | J23: 13 | K23: 6.641445313 | L23: 0.1733333333
A24: 14 | B24: 4.821744645 | C24: 78.87318512 | D24: 78.87318512 | E24: 8.345468032 | F24: 87.21865315 | G24: 0 | J24: 14 | K24: 5.274756212 | L24: 0.1533333333
A25: 15 | B25: 0.08305238762 | C25: 78.95623751 | D25: 87.21865315 | E25: 6.163055291 | F25: 93.38170844 | G25: 8.262415644 | J25: 15 | K25: 5.819552014 | L25: 0.1377777778
A26: 16 | B26: 0.3032424433 | C26: 79.25947995 | D26: 93.38170844 | E26: 3.788254392 | F26: 97.16996284 | G26: 14.12222849 | J26: 16 | K26: 9.204561998 | L26: 0.2044444444
A27: 17 | B27: 9.148495375 | C27: 88.40797533 | D27: 97.16996284 | E27: 5.545277181 | F27: 102.71524 | G27: 8.76198751 | J27: 17 | K27: 5.186298661 | L27: 0.2133333333
A28: 18 | B28: 2.581586548 | C28: 90.98956187 | D28: 102.71524 | E28: 0.7028031107 | F28: 103.4180431 | G28: 11.72567814 | J28: 18 | K28: 7.926297824 | L28: 0.1844444444
A29: 19 | B29: 2.546319698 | C29: 93.53588157 | D29: 103.4180431 | E29: 3.262730537 | F29: 106.6807737 | G29: 9.882161555 | J29: 19 | K29: 12.03263611 | L29: 0.1755555556
A30: 20 | B30: 3.641129881 | C30: 97.17701145 | D30: 106.6807737 | E30: 9.781434876 | F30: 116.4622085 | G30: 9.503762211 | J30: 20 | K30: 12.96719853 | L30: 0.2422222222
A31: 21 | B31: 2.946488529 | C31: 100.1235 | D31: 116.4622085 | E31: 1.776320829 | F31: 118.2385294 | G31: 16.33870856 | J31: 21 | K31: 4.890304887 | L31: 0.1644444444
A32: 22 | B32: 1.457780369 | C32: 101.5812804 | D32: 118.2385294 | E32: 2.630606038 | F32: 120.8691354 | G32: 16.65724902 | J32: 22 | K32: 6.398132251 | L32: 0.1911111111
A33: 23 | B33: 10.41864808 | C33: 111.9999284 | D33: 120.8691354 | E33: 5.994655034 | F33: 126.8637904 | G33: 8.869206979 | J33: 23 | K33: 6.330503335 | L33: 0.2488888889
A34: 24 | B34: 7.882725611 | C34: 119.882654 | D34: 126.8637904 | E34: 2.003647643 | F34: 128.8674381 | G34: 6.981136401 | J34: 24 | K34: 5.722168089 | L34: 0.2844444444
A35: 25 | B35: 0.8121708528 | C35: 120.6948249 | D35: 128.8674381 | E35: 2.719910392 | F35: 131.5873485 | G35: 8.172613192 | J35: 25 | K35: 10.30013889 | L35: 0.2133333333
A36: 26 | B36: 6.171553503 | C36: 126.8663784 | D36: 131.5873485 | E36: 6.210641835 | F36: 137.7979903 | G36: 4.720970081 | J36: 26 | K36: 7.047039737 | L36: 0.2533333333
A37: 27 | B37: 4.114920184 | C37: 130.9812986 | D37: 137.7979903 | E37: 1.47225388 | F37: 139.2702442 | G37: 6.816691733 | J37: 27 | K37: 13.17960356 | L37: 0.2111111111
A38: 28 | B38: 0.8956905523 | C38: 131.8769891 | D38: 139.2702442 | E38: 2.808318276 | F38: 142.0785625 | G38: 7.393255061 | J38: 28 | K38: 7.548885933 | L38: 0.2022222222
A39: 29 | B39: 1.951831262 | C39: 133.8288204 | D39: 142.0785625 | E39: 0.2764423765 | F39: 142.3550048 | G39: 8.249742075 | J39: 29 | K39: 5.263217072 | L39: 0.1933333333
A40: 30 | B40: 1.945192041 | C40: 135.7740124 | D40: 142.3550048 | E40: 2.495011184 | F40: 144.850016 | G40: 6.58099241 | J40: 30 | K40: 7.322166377 | L40: 0.2222222222
A41: 31 | B41: 1.771772815 | C41: 137.5457852 | D41: 144.850016 | E41: 2.900253659 | F41: 147.7502697 | G41: 7.304230779 | J41: 31 | K41: 6.390565758 | L41: 0.1622222222
A42: 32 | B42: 7.082875585 | C42: 144.6286608 | D42: 147.7502697 | E42: 1.776955721 | F42: 149.5272254 | G42: 3.121608853 | J42: 32 | K42: 5.596433068 | L42: 0.1888888889
A43: 33 | B43: 5.468718296 | C43: 150.0973791 | D43: 150.0973791 | E43: 4.906437886 | F43: 155.003817 | G43: 0 | J43: 33 | K43: 7.292203739 | L43: 0.1755555556
A44: 34 | B44: 0.9721573901 | C44: 151.0695365 | D44: 155.003817 | E44: 3.38662012 | F44: 158.3904371 | G44: 3.934280496 | J44: 34 | K44: 5.237234947 | L44: 0.2155555556
A45: 35 | B45: 2.608447297 | C45: 153.6779838 | D45: 158.3904371 | E45: 1.789096606 | F45: 160.1795337 | G45: 4.71245332 | J45: 35 | K45: 6.977965866 | L45: 0.2
A46: 36 | B46: 4.471625207 | C46: 158.149609 | D46: 160.1795337 | E46: 1.438461614 | F46: 161.6179954 | G46: 2.02992472 | J46: 36 | K46: 5.770416146 | L46: 0.2155555556
A47: 37 | B47: 0.2798305091 | C47: 158.4294395 | D47: 161.6179954 | E47: 11.65190553 | F47: 173.2699009 | G47: 3.188555824 | J47: 37 | K47: 8.799814413 | L47: 0.1977777778
A48: 38 | B48: 5.989345806 | C48: 164.4187853 | D48: 173.2699009 | E48: 3.214999571 | F48: 176.4849005 | G48: 8.851115549 | J48: 38 | K48: 15.61102282 | L48: 0.1888888889
A49: 39 | B49: 1.519565251 | C49: 165.9383506 | D49: 176.4849005 | E49: 2.987203272 | F49: 179.4721037 | G49: 10.54654987 | J49: 39 | K49: 13.40975168 | L49: 0.1933333333
A50: 40 | B50: 8.016912688 | C50: 173.9552633 | D50: 179.4721037 | E50: 11.89544259 | F50: 191.3675463 | G50: 5.516840453 | J50: 40 | K50: 5.71923852 | L50: 0.2066666667
A51: 41 | B51: 8.855243704 | C51: 182.810507 | D51: 191.3675463 | E51: 0.1984987147 | F51: 191.566045 | G51: 8.55703934 | J51: 41 | K51: 10.97165681 | L51: 0.1711111111
A52: 42 | B52: 11.71617928 | C52: 194.5266863 | D52: 194.5266863 | E52: 1.229209123 | F52: 195.7558954 | G52: 0 | J52: 42 | K52: 11.20098828 | L52: 0.2288888889
A53: 43 | B53: 5.939018604 | C53: 200.4657049 | D53: 200.4657049 | E53: 0.6502030347 | F53: 201.1159079 | G53: 0 | J53: 43 | K53: 7.06377265 | L53: 0.2088888889
A54: 44 | B54: 3.967892534 | C54: 204.4335974 | D54: 204.4335974 | E54: 2.106229484 | F54: 206.5398269 | G54: 0 | J54: 44 | K54: 6.183955173 | L54: 0.2022222222
A55: 45 | B55: 6.777703171 | C55: 211.2113006 | D55: 211.2113006 | E55: 0.2922687676 | F55: 211.5035693 | G55: 0 | J55: 45 | K55: 8.093179176 | L55: 0.2377777778
A56: 46 | B56: 8.391140561 | C56: 219.6024411 | D56: 219.6024411 | E56: 1.034786031 | F56: 220.6372272 | G56: 0 | J56: 46 | K56: 7.452939916 | L56: 0.2533333333
A57: 47 | B57: 0.5190187068 | C57: 220.1214598 | D57: 220.6372272 | E57: 4.613569317 | F57: 225.2507965 | G57: 0.5157673241 | J57: 47 | K57: 7.680838231 | L57: 0.2333333333
A58: 48 | B58: 1.431330226 | C58: 221.5527901 | D58: 225.2507965 | E58: 0.9797900541 | F58: 226.2305865 | G58: 3.698006415 | J58: 48 | K58: 7.54942981 | L58: 0.2555555556
A59: 49 | B59: 0.6119899491 | C59: 222.16478 | D59: 226.2305865 | E59: 8.053119004 | F59: 234.2837055 | G59: 4.06580652 | J59: 49 | K59: 12.50355644 | L59: 0.2288888889
A60: 50 | B60: 2.523835416 | C60: 224.6886154 | D60: 234.2837055 | E60: 1.475266601 | F60: 235.7589721 | G60: 9.595090108 | J60: 50 | K60: 9.919770121 | L60: 0.1555555556
A61: 51 | B61: 0.4789052301 | C61: 225.1675207 | D61: 235.7589721 | E61: 8.648996012 | F61: 244.4079681 | G61: 10.59145148 | J61: 51 | K61: 8.056515013 | L61: 0.2177777778
A62: 52 | B62: 12.70187096 | C62: 237.8693916 | D62: 244.4079681 | E62: 4.597200023 | F62: 249.0051682 | G62: 6.53857653 | J62: 52 | K62: 8.755547261 | L62: 0.1955555556
A63: 53 | B63: 1.711957427 | C63: 239.581349 | D63: 249.0051682 | E63: 3.581565517 | F63: 252.5867337 | G63: 9.423819126 | J63: 53 | K63: 5.532092913 | L63: 0.2622222222
A64: 54 | B64: 7.64443808 | C64: 247.2257871 | D64: 252.5867337 | E64: 3.959957122 | F64: 256.5466908 | G64: 5.360946563 | J64: 54 | K64: 6.496547842 | L64: 0.2044444444
A65: 55 | B65: 10.48639619 | C65: 257.7121833 | D65: 257.7121833 | E65: 7.800213153 | F65: 265.5123965 | G65: 0 | J65: 55 | K65: 9.038044641 | L65: 0.1844444444
A66: 56 | B66: 2.780041787 | C66: 260.4922251 | D66: 265.5123965 | E66: 1.683392257 | F66: 267.1957887 | G66: 5.020171367 | J66: 56 | K66: 6.698182397 | L66: 0.1688888889
A67: 57 | B67: 3.606698243 | C67: 264.0989233 | D67: 267.1957887 | E67: 5.62178776 | F67: 272.8175765 | G67: 3.09686538 | J67: 57 | K67: 6.421851462 | L67: 0.1933333333
A68: 58 | B68: 2.166060382 | C68: 266.2649837 | D68: 272.8175765 | E68: 5.898706755 | F68: 278.7162832 | G68: 6.552592757 | J68: 58 | K68: 5.776196701 | L68: 0.1355555556
A69: 59 | B69: 0.1714718159 | C69: 266.4364555 | D69: 278.7162832 | E69: 2.182453209 | F69: 280.8987364 | G69: 12.2798277 | J69: 59 | K69: 12.24930564 | L69: 0.2244444444
A70: 60 | B70: 2.226988231 | C70: 268.6634438 | D70: 280.8987364 | E70: 0.2999322553 | F70: 281.1986687 | G70: 12.23529267 | J70: 60 | K70: 9.597213134 | L70: 0.1711111111
A71: 61 | B71: 2.360588221 | C71: 271.024032 | D71: 281.1986687 | E71: 3.147231446 | F71: 284.3459001 | G71: 10.17463671 | J71: 61 | K71: 13.59362295 | L71: 0.1622222222
A72: 62 | B72: 1.969444738 | C72: 272.9934767 | D72: 284.3459001 | E72: 9.60982024 | F72: 293.9557204 | G72: 11.35242342 | J72: 62 | K72: 5.418854004 | L72: 0.1866666667
A73: 63 | B73: 3.475217853 | C73: 276.4686946 | D73: 293.9557204 | E73: 2.115549827 | F73: 296.0712702 | G73: 17.4870258 | J73: 63 | K73: 15.57279464 | L73: 0.1755555556
A74: 64 | B74: 8.651416786 | C74: 285.1201114 | D74: 296.0712702 | E74: 5.329777473 | F74: 301.4010477 | G74: 10.95115884 | J74: 64 | K74: 5.362212652 | L74: 0.1888888889
A75: 65 | B75: 2.846314604 | C75: 287.966426 | D75: 301.4010477 | E75: 1.651953667 | F75: 303.0530014 | G75: 13.43462171 | J75: 65 | K75: 6.241826348 | L75: 0.1888888889
A76: 66 | B76: 6.098514096 | C76: 294.0649401 | D76: 303.0530014 | E76: =-1/$B$2*LN(1-RAND()) -> 4.948251609 | F76: 308.001253 | G76: 8.988061284 | J76: 66 | K76: 6.19385096 | L76: 0.2044444444
A77: 67 | B77: =-1/$B$1*LN(1-RAND()) -> 1.267407846 | C77: =C76+B77 -> 295.3323479 | D77: =MAX(C77,F76) -> 308.001253 | E77: 3.709851755 | F77: =D77+E77 -> 311.7111047 | G77: =D77-C77 -> 12.66890505 | J77: 67 | K77: 11.25651446 | L77: 0.2377777778
A78: 68 | B78: 7.155970474 | C78: 302.4883184 | D78: 311.7111047 | E78: 3.125663115 | F78: 314.8367678 | G78: 9.222786328 | J78: 68 | K78: 5.443764401 | L78: 0.1866666667
A79: 69 | B79: 2.06697821 | C79: 304.5552966 | D79: 314.8367678 | E79: 1.538840043 | F79: 316.3756079 | G79: 10.28147123 | J79: 69 | K79: 7.25406723 | L79: 0.2044444444
A80: 70 | B80: 1.188543539 | C80: 305.7438401 | D80: 316.3756079 | E80: 0.638220517 | F80: 317.0138284 | G80: 10.63176774 | J80: 70 | K80: 8.413448385 | L80: 0.1644444444
A81: 71 | B81: 1.186295906 | C81: 306.930136 | D81: 317.0138284 | E81: 3.05662549 | F81: 320.0704539 | G81: 10.08369235 | J81: 71 | K81: 7.371474994 | L81: 0.1666666667
A82: 72 | B82: 15.57816279 | C82: 322.5082988 | D82: 322.5082988 | E82: 3.396875246 | F82: 325.9051741 | G82: 0 | J82: 72 | K82: 5.141870351 | L82: 0.2133333333
A83: 73 | B83: 11.18313549 | C83: 333.6914343 | D83: 333.6914343 | E83: 2.671314012 | F83: 336.3627483 | G83: 0 | J83: 73 | K83: 8.646632406 | L83: 0.1822222222
A84: 74 | B84: 2.875286378 | C84: 336.5667207 | D84: 336.5667207 | E84: 0.1799076398 | F84: 336.7466283 | G84: 0 | J84: 74 | K84: 8.63847826 | L84: 0.2377777778
A85: 75 | B85: 0.4582630238 | C85: 337.0249837 | D85: 337.0249837 | E85: 2.177615226 | F85: 339.2025989 | G85: 0 | J85: 75 | K85: 15.13297106 | L85: 0.2288888889
A86: 76 | B86: 1.059155945 | C86: 338.0841397 | D86: 339.2025989 | E86: 3.545177595 | F86: 342.7477765 | G86: 1.118459281 | J86: 76 | K86: 5.111172207 | L86: 0.2733333333
A87: 77 | B87: 12.86429617 | C87: 350.9484358 | D87: 350.9484358 | E87: 4.206778472 | F87: 355.1552143 | G87: 0 | J87: 77 | K87: 12.58445519 | L87: 0.16
A88: 78 | B88: 4.106825432 | C88: 355.0552613 | D88: 355.1552143 | E88: 5.209776736 | F88: 360.364991 | G88: 0.09995303968 | J88: 78 | K88: 8.127634499 | L88: 0.22
A89: 79 | B89: 1.951300305 | C89: 357.0065616 | D89: 360.364991 | E89: 0.9794545217 | F89: 361.3444456 | G89: 3.35842947 | J89: 79 | K89: 5.419413175 | L89: 0.1711111111
A90: 80 | B90: 0.09856743671 | C90: 357.105129 | D90: 361.3444456 | E90: 21.58994155 | F90: 382.9343871 | G90: 4.239316555 | J90: 80 | K90: 8.15100947 | L90: 0.1111111111
A91: 81 | B91: 2.926258197 | C91: 360.0313872 | D91: 382.9343871 | E91: 11.94697726 | F91: 394.8813644 | G91: 22.90299991 | J91: 81 | K91: 4.083784091 | L91: 0.1933333333
A92: 82 | B92: 1.292188543 | C92: 361.3235757 | D92: 394.8813644 | E92: 7.63955353 | F92: 402.5209179 | G92: 33.55778863 | J92: 82 | K92: 5.975291618 | L92: 0.2733333333
A93: 83 | B93: 3.603824059 | C93: 364.9273998 | D93: 402.5209179 | E93: 3.905908902 | F93: 406.4268268 | G93: 37.59351811 | J93: 83 | K93: 8.7649547 | L93: 0.2733333333
A94: 84 | B94: 0.8687484434 | C94: 365.7961483 | D94: 406.4268268 | E94: 4.391012551 | F94: 410.8178394 | G94: 40.63067856 | J94: 84 | K94: 9.879672857 | L94: 0.1755555556
A95: 85 | B95: 4.985511825 | C95: 370.7816601 | D95: 410.8178394 | E95: 6.923806084 | F95: 417.7416455 | G95: 40.03617929 | J95: 85 | K95: 10.06488177 | L95: 0.1777777778
A96: 86 | B96: 6.579123496 | C96: 377.3607836 | D96: 417.7416455 | E96: 0.3138849562 | F96: 418.0555304 | G96: 40.38086188 | J96: 86 | K96: 5.631163073 | L96: 0.2711111111
A97: 87 | B97: 24.2193728 | C97: 401.5801564 | D97: 418.0555304 | E97: 0.8129329365 | F97: 418.8684633 | G97: 16.47537404 | J97: 87 | K97: 6.947248525 | L97: 0.2422222222
A98: 88 | B98: 0.8380071143 | C98: 402.4181635 | D98: 418.8684633 | E98: 4.568123281 | F98: 423.4365866 | G98: 16.45029986 | J98: 88 | K98: 8.963402786 | L98: 0.1755555556
A99: 89 | B99: 16.74399372 | C99: 419.1621572 | D99: 423.4365866 | E99: 4.644916654 | F99: 428.0815033 | G99: 4.274429419 | J99: 89 | K99: 7.129336512 | L99: 0.1844444444
A100: 90 | B100: 4.894517001 | C100: 424.0566742 | D100: 428.0815033 | E100: 1.753486905 | F100: 429.8349902 | G100: 4.024829072 | J100: 90 | K100: 7.03750336 | L100: 0.2266666667
A101: 91 | B101: 2.534168277 | C101: 426.5908425 | D101: 429.8349902 | E101: 0.862787784 | F101: 430.697778 | G101: 3.2441477 | J101: 91 | K101: 15.20804562 | L101: 0.16
A102: 92 | B102: 7.735320995 | C102: 434.3261635 | D102: 434.3261635 | E102: 4.075639583 | F102: 438.4018031 | G102: 0 | J102: 92 | K102: 5.336140662 | L102: 0.2422222222
A103: 93 | B103: 2.989271182 | C103: 437.3154347 | D103: 438.4018031 | E103: 1.552316357 | F103: 439.9541194 | G103: 1.086368401 | J103: 93 | K103: 6.817941875 | L103: 0.2622222222
A104: 94 | B104: 3.851843412 | C104: 441.1672781 | D104: 441.1672781 | E104: 0.04480210252 | F104: 441.2120802 | G104: 0 | J104: 94 | K104: 9.043297653 | L104: 0.2244444444
A105: 95 | B105: 1.124781664 | C105: 442.2920597 | D105: 442.2920597 | E105: 4.572445131 | F105: 446.8645049 | G105: 0 | J105: 95 | K105: 8.497321184 | L105: 0.1911111111
A106: 96 | B106: 2.950567965 | C106: 445.2426277 | D106: 446.8645049 | E106: 2.733837893 | F106: 449.5983428 | G106: 1.621877165 | J106: 96 | K106: 6.672955466 | L106: 0.1911111111
A107: 97 | B107: 0.8748323241 | C107: 446.11746 | D107: 449.5983428 | E107: 0.6754535987 | F107: 450.2737964 | G107: 3.480882735 | J107: 97 | K107: 6.856749133 | L107: 0.1555555556
A108: 98 | B108: 7.277696954 | C108: 453.395157 | D108: 453.395157 | E108: 2.409677486 | F108: 455.8048345 | G108: 0 | J108: 98 | K108: 7.690966264 | L108: 0.2022222222
A109: 99 | B109: 2.127175486 | C109: 455.5223325 | D109: 455.8048345 | E109: 1.696550861 | F109: 457.5013853 | G109: 0.2825020002 | J109: 99 | K109: 3.63296807 | L109: 0.2222222222
A110: 100 | B110: 4.62167294 | C110: 460.1440054 | D110: 460.1440054 | E110: 0.5626154223 | F110: 460.7066208 | G110: 0 | J110: 100 | K110: 9.463378745 | L110: 0.14
A111: 101 | B111: 1.094913165 | C111: 461.2389186 | D111: 461.2389186 | E111: 3.179028991 | F111: 464.4179476 | G111: 0
A112: 102 | B112: 13.42082755 | C112: 474.6597461 | D112: 474.6597461 | E112: 2.73861955 | F112: 477.3983657 | G112: 0
A113: 103 | B113: 4.125631545 | C113: 478.7853777 | D113: 478.7853777 | E113: 2.048707303 | F113: 480.834085 | G113: 0
A114: 104 | B114: 1.492665839 | C114: 480.2780435 | D114: 480.834085 | E114: 0.3977210801 | F114: 481.231806 | G114: 0.5560414631
A115: 105 | B115: 0.1016064335 | C115: 480.3796499 | D115: 481.231806 | E115: 0.5072772878 | F115: 481.7390833 | G115: 0.8521561098
A116: 106 | B116: 10.28918028 | C116: 490.6688302 | D116: 490.6688302 | E116: 7.488877426 | F116: 498.1577076 | G116: 0
A117: 107 | B117: 1.218950099 | C117: 491.8877803 | D117: 498.1577076 | E117: 4.669870467 | F117: 502.8275781 | G117: 6.269927327
A118: 108 | B118: 8.688991158 | C118: 500.5767715 | D118: 502.8275781 | E118: 4.344959738 | F118: 507.1725378 | G118: 2.250806637
A119: 109 | B119: 0.03788385594 | C119: 500.6146553 | D119: 507.1725378 | E119: 0.4348923928 | F119: 507.6074302 | G119: 6.557882518
A120: 110 | B120: 1.248375134 | C120: 501.8630305 | D120: 507.6074302 | E120: 0.06521302876 | F120: 507.6726433 | G120: 5.744399777
A121: 111 | B121: 10.10822611 | C121: 511.9712566 | D121: 511.9712566 | E121: 1.344477776 | F121: 513.3157343 | G121: 0
A122: 112 | B122: 3.514924426 | C122: 515.486181 | D122: 515.486181 | E122: 1.861287347 | F122: 517.3474683 | G122: 0
A123: 113 | B123: 1.129508481 | C123: 516.6156895 | D123: 517.3474683 | E123: 4.552513093 | F123: 521.8999814 | G123: 0.7317788655
A124: 114 | B124: 2.973589354 | C124: 519.5892788 | D124: 521.8999814 | E124: 3.135069431 | F124: 525.0350509 | G124: 2.310702605
A125: 115 | B125: 2.289085065 | C125: 521.8783639 | D125: 525.0350509 | E125: 2.30101649 | F125: 527.3360674 | G125: 3.15668697
A126: 116 | B126: 6.111014312 | C126: 527.9893782 | D126: 527.9893782 | E126: 0.2399784776 | F126: 528.2293567 | G126: 0
A127: 117 | B127: 2.373535685 | C127: 530.3629139 | D127: 530.3629139 | E127: 10.22082775 | F127: 540.5837416 | G127: 0
A128: 118 | B128: 4.75381568 | C128: 535.1167296 | D128: 540.5837416 | E128: 2.923707244 | F128: 543.5074489 | G128: 5.467012065
A129: 119 | B129: 10.48275933 | C129: 545.5994889 | D129: 545.5994889 | E129: 1.485637737 | F129: 547.0851266 | G129: 0
A130: 120 | B130: 0.2107830996 | C130: 545.810272 | D130: 547.0851266 | E130: 5.691797034 | F130: 552.7769237 | G130: 1.274854637
A131: 121 | B131: 2.532641108 | C131: 548.3429131 | D131: 552.7769237 | E131: 8.117383453 | F131: 560.8943071 | G131: 4.434010563
A132: 122 | B132: 6.086419583 | C132: 554.4293327 | D132: 560.8943071 | E132: 0.2726947828 | F132: 561.1670019 | G132: 6.464974433
A133: 123 | B133: 19.96012653 | C133: 574.3894592 | D133: 574.3894592 | E133: 4.117262046 | F133: 578.5067213 | G133: 0
A134: 124 | B134: 15.26119971 | C134: 589.6506589 | D134: 589.6506589 | E134: 1.827353412 | F134: 591.4780123 | G134: 0
A135: 125 | B135: 0.02773658847 | C135: 589.6783955 | D135: 591.4780123 | E135: 1.574362959 | F135: 593.0523753 | G135: 1.799616824
A136: 126 | B136: 8.070425325 | C136: 597.7488208 | D136: 597.7488208 | E136: 0.2000120005 | F136: 597.9488328 | G136: 0
A137: 127 | B137: 5.266062888 | C137: 603.0148837 | D137: 603.0148837 | E137: 2.289570619 | F137: 605.3044544 | G137: 0
A138: 128 | B138: 12.82318326 | C138: 615.838067 | D138: 615.838067 | E138: 4.928832955 | F138: 620.7668999 | G138: 0
A139: 129 | B139: 0.06654731388 | C139: 615.9046143 | D139: 620.7668999 | E139: 4.239490368 | F139: 625.0063903 | G139: 4.862285641
A140: 130 | B140: 0.4065525084 | C140: 616.3111668 | D140: 625.0063903 | E140: =-1/$B$2*LN(1-RAND()) -> 0.5239664093 | F140: 625.5303567 | G140: 8.695223501
A141: 131 | B141: =-1/$B$1*LN(1-RAND()) -> 1.792138223 | C141: =C140+B141 -> 618.103305 | D141: =MAX(C141,F140) -> 625.5303567 | E141: 2.383059475 | F141: =D141+E141 -> 627.9134162 | G141: =D141-C141 -> 7.427051687
A142: 132 | B142: 9.839405378 | C142: 627.9427104 | D142: 627.9427104 | E142: 31.26212854 | F142: 659.204839 | G142: 0
A143: 133 | B143: 7.285779042 | C143: 635.2284895 | D143: 659.204839 | E143: 1.853379155 | F143: 661.0582181 | G143: 23.9763495
A144: 134 | B144: 0.5192381689 | C144: 635.7477276 | D144: 661.0582181 | E144: 5.002408497 | F144: 666.0606266 | G144: 25.31049049
A145: 135 | B145: 3.582341601 | C145: 639.3300692 | D145: 666.0606266 | E145: 0.5670480453 | F145: 666.6276747 | G145: 26.73055739
A146: 136 | B146: 11.70624799 | C146: 651.0363172 | D146: 666.6276747 | E146: 5.339853235 | F146: 671.9675279 | G146: 15.59135745
A147: 137 | B147: 7.470023859 | C147: 658.5063411 | D147: 671.9675279 | E147: 2.386003837 | F147: 674.3535317 | G147: 13.46118682
A148: 138 | B148: 9.781127428 | C148: 668.2874685 | D148: 674.3535317 | E148: 2.318549827 | F148: 676.6720816 | G148: 6.06606323
A149: 139 | B149: 7.743306998 | C149: 676.0307755 | D149: 676.6720816 | E149: 2.305493254 | F149: 678.9775748 | G149: 0.6413060591
A150: 140 | B150: 7.703292343 | C150: 683.7340678 | D150: 683.7340678 | E150: 6.851512914 | F150: 690.5855808 | G150: 0
A151: 141 | B151: 3.345461715 | C151: 687.0795296 | D151: 690.5855808 | E151: 0.3470234361 | F151: 690.9326042 | G151: 3.506051199
A152: 142 | B152: 3.184866319 | C152: 690.2643959 | D152: 690.9326042 | E152: 2.962315226 | F152: 693.8949194 | G152: 0.668208316
A153: 143 | B153: 0.01736600204 | C153: 690.2817619 | D153: 693.8949194 | E153: 0.3394493007 | F153: 694.2343687 | G153: 3.61315754
A154: 144 | B154: 1.918173947 | C154: 692.1999358 | D154: 694.2343687 | E154: 6.565691998 | F154: 700.8000607 | G154: 2.034432894
A155: 145 | B155: 0.4313048806 | C155: 692.6312407 | D155: 700.8000607 | E155: 8.488520802 | F155: 709.2885815 | G155: 8.168820012
A156: 146 | B156: 6.714660581 | C156: 699.3459013 | D156: 709.2885815 | E156: 0.7610786744 | F156: 710.0496602 | G156: 9.942680233
A157: 147 | B157: 2.200269417 | C157: 701.5461707 | D157: 710.0496602 | E157: 8.054644747 | F157: 718.1043049 | G157: 8.50348949
A158: 148 | B158: 5.472894285 | C158: 707.019065 | D158: 718.1043049 | E158: 2.826267217 | F158: 720.9305722 | G158: 11.08523995
A159: 149 | B159: 1.765353798 | C159: 708.7844188 | D159: 720.9305722 | E159: 1.432020862 | F159: 722.362593 | G159: 12.14615337
A160: 150 | B160: 6.361752918 | C160: 715.1461717 | D160: 722.362593 | E160: 0.4933768778 | F160: 722.8559699 | G160: 7.216421315
A161: 151 | B161: 6.916768164 | C161: 722.0629399 | D161: 722.8559699 | E161: 1.076566832 | F161: 723.9325367 | G161: 0.793030028
A162: 152 | B162: 15.04552202 | C162: 737.1084619 | D162: 737.1084619 | E162: 0.886208618 | F162: 737.9946705 | G162: 0
A163: 153 | B163: 3.801981996 | C163: 740.9104439 | D163: 740.9104439 | E163: 3.822342859 | F163: 744.7327867 | G163: 0
A164: 154 | B164: 3.080674401 | C164: 743.9911183 | D164: 744.7327867 | E164: 0.4610757876 | F164: 745.1938625 | G164: 0.741668458
A165: 155 | B165: 0.6893398996 | C165: 744.6804582 | D165: 745.1938625 | E165: 15.79338119 | F165: 760.9872437 | G165: 0.513404346
A166: 156 | B166: 5.731452223 | C166: 750.4119104 | D166: 760.9872437 | E166: 5.025090633 | F166: 766.0123344 | G166: 10.57533331
A167: 157 | B167: 9.061573001 | C167: 759.4734834 | D167: 766.0123344 | E167: 9.404816379 | F167: 775.4171507 | G167: 6.538850944
A168: 158 | B168: 0.4755491495 | C168: 759.9490326 | D168: 775.4171507 | E168: 0.4939251007 | F168: 775.9110758 | G168: 15.46811817
A169: 159 | B169: 3.201427719 | C169: 763.1504603 | D169: 775.9110758 | E169: 1.804421135 | F169: 777.715497 | G169: 12.76061556
A170: 160 | B170: 1.406208713 | C170: 764.556669 | D170: 777.715497 | E170: 3.101150929 | F170: 780.8166479 | G170: 13.15882798
A171: 161 | B171: 2.053269452 | C171: 766.6099384 | D171: 780.8166479 | E171: 3.316036816 | F171: 784.1326847 | G171: 14.20670945
A172: 162 | B172: 0.4341789508 | C172: 767.0441174 | D172: 784.1326847 | E172: 4.76974559 | F172: 788.9024303 | G172: 17.08856732
A173: 163 | B173: 12.50462125 | C173: 779.5487386 | D173: 788.9024303 | E173: 3.674740845 | F173: 792.5771711 | G173: 9.353691657
A174: 164 | B174: 4.667868966 | C174: 784.2166076 | D174: 792.5771711 | E174: 4.035357534 | F174: 796.6125287 | G174: 8.360563536
A175: 165 | B175: 1.656735297 | C175: 785.8733429 | D175: 796.6125287 | E175: 2.510726468 | F175: 799.1232552 | G175: 10.73918577
A176: 166 | B176: 5.626376695 | C176: 791.4997196 | D176: 799.1232552 | E176: 1.777824285 | F176: 800.9010794 | G176: 7.623535547
A177: 167 | B177: 1.925946985 | C177: 793.4256666 | D177: 800.9010794 | E177: 2.580520832 | F177: 803.4816003 | G177: 7.475412847
A178: 168 | B178: 8.496407563 | C178: 801.9220742 | D178: 803.4816003 | E178: 6.011551402 | F178: 809.4931517 | G178: 1.559526116
A179: 169 | B179: 10.30677847 | C179: 812.2288526 | D179: 812.2288526 | E179: 3.043123162 | F179: 815.2719758 | G179: 0
A180: 170 | B180: 1.781315191 | C180: 814.0101678 | D180: 815.2719758 | E180: 2.237192374 | F180: 817.5091682 | G180: 1.261807971
A181: 171 | B181: 0.6307258901 | C181: 814.6408937 | D181: 817.5091682 | E181: 0.4070069462 | F181: 817.9161751 | G181: 2.868274454
A182: 172 | B182: 11.51134832 | C182: 826.152242 | D182: 826.152242 | E182: 3.366443992 | F182: 829.518686 | G182: 0
A183: 173 | B183: 0.4835436189 | C183: 826.6357856 | D183: 829.518686 | E183: 6.718399037 | F183: 836.2370851 | G183: 2.882900374
A184: 174 | B184: 1.285874312 | C184: 827.92166 | D184: 836.2370851 | E184: 1.026053033 | F184: 837.2631381 | G184: 8.315425098
A185: 175 | B185: 4.237223077 | C185: 832.158883 | D185: 837.2631381 | E185: 9.899887212 | F185: 847.1630253 | G185: 5.104255054
A186: 176 | B186: 0.0612523495 | C186: 832.2201354 | D186: 847.1630253 | E186: 3.529714883 | F186: 850.6927402 | G186: 14.94288992
A187: 177 | B187: 15.70474071 | C187: 847.9248761 | D187: 850.6927402 | E187: 1.937359783 | F187: 852.6301 | G187: 2.767864092
A188: 178 | B188: 2.155452368 | C188: 850.0803285 | D188: 852.6301 | E188: 0.2074832626 | F188: 852.8375832 | G188: 2.549771508
A189: 179 | B189: 1.021312347 | C189: 851.1016408 | D189: 852.8375832 | E189: 0.3321389087 | F189: 853.1697221 | G189: 1.735942423
A190: 180 | B190: 0.8017976446 | C190: 851.9034385 | D190: 853.1697221 | E190: 17.58779955 | F190: 870.7575217 | G190: 1.266283688
A191: 181 | B191: 12.59327174 | C191: 864.4967102 | D191: 870.7575217 | E191: 1.223809896 | F191: 871.9813316 | G191: 6.260811504
A192: 182 | B192: 4.018953032 | C192: 868.5156632 | D192: 871.9813316 | E192: 14.72660927 | F192: 886.7079409 | G192: 3.465668367
A193: 183 | B193: 2.462871959 | C193: 870.9785352 | D193: 886.7079409 | E193: 6.266935084 | F193: 892.9748759 | G193: 15.72940567
A194: 184 | B194: 8.758710757 | C194: 879.7372459 | D194: 892.9748759 | E194: 1.88207529 | F194: 894.8569512 | G194: 13.23763
A195: 185 | B195: 0.5091227503 | C195: 880.2463687 | D195: 894.8569512 | E195: 4.324366304 | F195: 899.1813175 | G195: 14.61058254
A196: 186 | B196: 9.56397311 | C196: 889.8103418 | D196: 899.1813175 | E196: 1.350939679 | F196: 900.5322572 | G196: 9.370975734
A197: 187 | B197: 1.206880415 | C197: 891.0172222 | D197: 900.5322572 | E197: 6.353134552 | F197: 906.8853918 | G197: 9.515034998
A198: 188 | B198: 0.5993148896 | C198: 891.6165371 | D198: 906.8853918 | E198: 0.5273380112 | F198: 907.4127298 | G198: 15.26885466
A199: 189 | B199: 13.44145064 | C199: 905.0579877 | D199: 907.4127298 | E199: 5.399228326 | F199: 912.8119581 | G199: 2.354742028
A200: 190 | B200: 2.034880849 | C200: 907.0928686 | D200: 912.8119581 | E200: 2.319789941 | F200: 915.131748 | G200: 5.719089505
... 310 more rows

Sheet 例題9-4_単一窓口待ち行列
A1: 到着率λ | B1: 0.2 | C1: 人/分 | D1: 確率 | E1: 乱数用 | F1: サービス時間用
A2: サービス率μ | B2: 0.25 | C2: 人/分 | D2: 0.4 | E2: 0 | F2: 3 | J2: LoopNum | K2: =COUNT(J:J) -> 100 | L2: =COUNT(J:J)
A3: 窓口の数 | B3: 1 | C3: 台 | D3: 0.3 | E3: =E2+D2 -> 0.4 | F3: 5 | G3: =E2+D2
D4: 0.2 | E4: =E3+D3 -> 0.7 | F4: 1.5 | G4: =E3+D3 | K4: 平均待ち時間 | L4: 待たない場合
A5: シミュレーション結果 | D5: 0.1 | E5: =E4+D4 -> 0.9 | F5: 10 | G5: =E4+D4 | J5: 平均 | K5: =AVERAGE(K11:K110) -> 10.43081205 | L5: =AVERAGE(L11:L110) -> 0.1995333333 | M5: =AVERAGE(K11:K110)
A6: 平均待ち時間 | B6: =AVERAGE(G61:G510) -> 10.00785701 | C6: 分 | D6: =AVERAGE(G61:G510) | J6: 標準偏差 | K6: =_xlfn.STDEV.S(K11:K110) -> 3.81883046 | L6: =_xlfn.STDEV.S(L11:L110) -> 0.04518495888 | M6: =STDEV.S(K11:K110)
A7: 待たない割合 | B7: =COUNTIF(G61:G510,0)/COUNT(G61:G510) -> 0.1955555556 | D7: =COUNTIF(G61:G510,0)/COUNT(G61:G510) | J7: 信頼区間下限値 | K7: =K5-2*K6/SQRT(K2) -> 9.667045955 | L7: =L5-2*L6/SQRT(K2) -> 0.1904963416 | M7: =K5-2*K6/SQRT(K2)
J8: 信頼区間上限値 | K8: =K5+2*K6/SQRT(K2) -> 11.19457814 | L8: =L5+2*L6/SQRT(K2) -> 0.2085703251 | M8: =K5+2*K6/SQRT(K2)
J9: 信頼区間上限値 | K9: =K5+2*K6/SQRT(K2) -> 11.19457814 | L9: =L5+2*L6/SQRT(K2) -> 0.2085703251 | M9: =K5+2*K6/SQRT(K2)
A10: 客番号 | B10: 到着間隔 | C10: 到着時間 | D10: サービス開始時刻 | E10: サービス時間 | F10: サービス完了時刻 | G10: 待ち時間 | J10: 反復結果
A11: 1 | C11: 0 | D11: 0 | E11: =VLOOKUP(RAND(),$E$2:$F$5,2,TRUE) -> 1.5 | F11: =D11+E11 -> 1.5 | G11: =D11-C11 -> 0 | J11: 1 | K11: 9.018413237 | L11: 0.2288888889
A12: 2 | B12: =-1/$B$1*LN(1-RAND()) -> 1.393215084 | C12: =C11+B12 -> 1.393215084 | D12: =MAX(C12,F11) -> 1.5 | E12: =VLOOKUP(RAND(),$E$2:$F$5,2,TRUE) -> 5 | F12: =D12+E12 -> 6.5 | G12: =D12-C12 -> 0.1067849164 | J12: 2 | K12: 7.620043713 | L12: 0.24
A13: 3 | B13: =-1/$B$1*LN(1-RAND()) -> 5.453842998 | C13: =C12+B13 -> 6.847058081 | D13: =MAX(C13,F12) -> 6.847058081 | E13: 3 | F13: =D13+E13 -> 9.847058081 | G13: =D13-C13 -> 0 | J13: 3 | K13: 10.41256945 | L13: 0.1955555556
A14: 4 | B14: 14.03262482 | C14: 20.8796829 | D14: =MAX(C14,F13) -> 20.8796829 | E14: 3 | F14: 23.8796829 | G14: 0 | J14: 4 | K14: 9.96432137 | L14: 0.2422222222
A15: 5 | B15: 1.145055016 | C15: 22.02473791 | D15: 23.8796829 | E15: 3 | F15: 26.8796829 | G15: 1.854944984 | J15: 5 | K15: 10.16104689 | L15: 0.14
A16: 6 | B16: 1.376864725 | C16: 23.40160264 | D16: 26.8796829 | E16: 1.5 | F16: 28.3796829 | G16: 3.47808026 | J16: 6 | K16: 21.1305982 | L16: 0.2555555556
A17: 7 | B17: 0.2527968469 | C17: 23.65439948 | D17: 28.3796829 | E17: 3 | F17: 31.3796829 | G17: 4.725283413 | J17: 7 | K17: 12.65090263 | L17: 0.1577777778
A18: 8 | B18: 0.09330068098 | C18: 23.74770016 | D18: 31.3796829 | E18: 10 | F18: 41.3796829 | G18: 7.631982732 | J18: 8 | K18: 16.66240106 | L18: 0.2555555556
A19: 9 | B19: 8.534061194 | C19: 32.28176136 | D19: 41.3796829 | E19: 5 | F19: 46.3796829 | G19: 9.097921538 | J19: 9 | K19: 9.913452251 | L19: 0.2377777778
A20: 10 | B20: 2.175857017 | C20: 34.45761838 | D20: 46.3796829 | E20: 3 | F20: 49.3796829 | G20: 11.92206452 | J20: 10 | K20: 9.578937284 | L20: 0.2888888889
A21: 11 | B21: 1.521794903 | C21: 35.97941328 | D21: 49.3796829 | E21: 5 | F21: 54.3796829 | G21: 13.40026962 | J21: 11 | K21: 8.023193236 | L21: 0.1844444444
A22: 12 | B22: 11.11261575 | C22: 47.09202903 | D22: 54.3796829 | E22: 3 | F22: 57.3796829 | G22: 7.287653863 | J22: 12 | K22: 6.666952128 | L22: 0.1466666667
A23: 13 | B23: 1.327408689 | C23: 48.41943772 | D23: 57.3796829 | E23: 3 | F23: 60.3796829 | G23: 8.960245174 | J23: 13 | K23: 8.126873618 | L23: 0.2466666667
A24: 14 | B24: 14.06701252 | C24: 62.48645024 | D24: 62.48645024 | E24: 3 | F24: 65.48645024 | G24: 0 | J24: 14 | K24: 6.106319381 | L24: 0.1377777778
A25: 15 | B25: 2.971113435 | C25: 65.45756368 | D25: 65.48645024 | E25: 3 | F25: 68.48645024 | G25: 0.02888656529 | J25: 15 | K25: 9.021105039 | L25: 0.1533333333
A26: 16 | B26: 9.613325914 | C26: 75.07088959 | D26: 75.07088959 | E26: 5 | F26: 80.07088959 | G26: 0 | J26: 16 | K26: 13.38878313 | L26: 0.2
A27: 17 | B27: 1.043259331 | C27: 76.11414892 | D27: 80.07088959 | E27: 1.5 | F27: 81.57088959 | G27: 3.956740669 | J27: 17 | K27: 7.808543585 | L27: 0.2555555556
A28: 18 | B28: 0.232517323 | C28: 76.34666624 | D28: 81.57088959 | E28: 1.5 | F28: 83.07088959 | G28: 5.224223346 | J28: 18 | K28: 8.338285218 | L28: 0.2177777778
A29: 19 | B29: 0.03648376282 | C29: 76.38315001 | D29: 83.07088959 | E29: 1.5 | F29: 84.57088959 | G29: 6.687739583 | J29: 19 | K29: 11.26043892 | L29: 0.1066666667
A30: 20 | B30: 1.921612656 | C30: 78.30476266 | D30: 84.57088959 | E30: 1.5 | F30: 86.07088959 | G30: 6.266126927 | J30: 20 | K30: 13.23570716 | L30: 0.1666666667
A31: 21 | B31: 4.40458462 | C31: 82.70934728 | D31: 86.07088959 | E31: 5 | F31: 91.07088959 | G31: 3.361542307 | J31: 21 | K31: 9.165493153 | L31: 0.1488888889
A32: 22 | B32: 5.201505416 | C32: 87.9108527 | D32: 91.07088959 | E32: 3 | F32: 94.07088959 | G32: 3.160036891 | J32: 22 | K32: 5.802174374 | L32: 0.2377777778
A33: 23 | B33: 1.310302853 | C33: 89.22115555 | D33: 94.07088959 | E33: 1.5 | F33: 95.57088959 | G33: 4.849734037 | J33: 23 | K33: 8.5926358 | L33: 0.2066666667
A34: 24 | B34: 13.75084433 | C34: 102.9719999 | D34: 102.9719999 | E34: 10 | F34: 112.9719999 | G34: 0 | J34: 24 | K34: 12.59920175 | L34: 0.2244444444
A35: 25 | B35: 1.202673214 | C35: 104.1746731 | D35: 112.9719999 | E35: 5 | F35: 117.9719999 | G35: 8.797326786 | J35: 25 | K35: 11.07115156 | L35: 0.22
A36: 26 | B36: 2.495926051 | C36: 106.6705991 | D36: 117.9719999 | E36: 5 | F36: 122.9719999 | G36: 11.30140073 | J36: 26 | K36: 6.043577415 | L36: 0.2155555556
A37: 27 | B37: 1.039853893 | C37: 107.710453 | D37: 122.9719999 | E37: 3 | F37: 125.9719999 | G37: 15.26154684 | J37: 27 | K37: 7.440553694 | L37: 0.24
A38: 28 | B38: 8.624635903 | C38: 116.3350889 | D38: 125.9719999 | E38: 3 | F38: 128.9719999 | G38: 9.636910939 | J38: 28 | K38: 11.09393734 | L38: 0.2222222222
A39: 29 | B39: 3.713859143 | C39: 120.0489481 | D39: 128.9719999 | E39: 3 | F39: 131.9719999 | G39: 8.923051796 | J39: 29 | K39: 15.46731143 | L39: 0.1155555556
A40: 30 | B40: 0.9138964608 | C40: 120.9628445 | D40: 131.9719999 | E40: 5 | F40: 136.9719999 | G40: 11.00915534 | J40: 30 | K40: 6.542361546 | L40: 0.2044444444
A41: 31 | B41: 3.675192237 | C41: 124.6380368 | D41: 136.9719999 | E41: 3 | F41: 139.9719999 | G41: 12.3339631 | J41: 31 | K41: 4.743140936 | L41: 0.2222222222
A42: 32 | B42: 4.627156476 | C42: 129.2651933 | D42: 139.9719999 | E42: 1.5 | F42: 141.4719999 | G42: 10.70680662 | J42: 32 | K42: 10.25633673 | L42: 0.1866666667
A43: 33 | B43: 0.3312970231 | C43: 129.5964903 | D43: 141.4719999 | E43: 3 | F43: 144.4719999 | G43: 11.8755096 | J43: 33 | K43: 13.76508718 | L43: 0.07777777778
A44: 34 | B44: 2.532124449 | C44: 132.1286147 | D44: 144.4719999 | E44: 3 | F44: 147.4719999 | G44: 12.34338515 | J44: 34 | K44: 9.341501699 | L44: 0.2222222222
A45: 35 | B45: 1.30436327 | C45: 133.432978 | D45: 147.4719999 | E45: 3 | F45: 150.4719999 | G45: 14.03902188 | J45: 35 | K45: 16.98951526 | L45: 0.1333333333
A46: 36 | B46: 4.347752408 | C46: 137.7807304 | D46: 150.4719999 | E46: 5 | F46: 155.4719999 | G46: 12.69126947 | J46: 36 | K46: 8.256209872 | L46: 0.1355555556
A47: 37 | B47: 0.3492526424 | C47: 138.1299831 | D47: 155.4719999 | E47: 3 | F47: 158.4719999 | G47: 17.34201683 | J47: 37 | K47: 5.387972588 | L47: 0.1533333333
A48: 38 | B48: 3.099318466 | C48: 141.2293015 | D48: 158.4719999 | E48: 1.5 | F48: 159.9719999 | G48: 17.24269836 | J48: 38 | K48: 8.444714616 | L48: 0.1866666667
A49: 39 | B49: 3.777858603 | C49: 145.0071601 | D49: 159.9719999 | E49: 1.5 | F49: 161.4719999 | G49: 14.96483976 | J49: 39 | K49: 7.012189561 | L49: 0.2355555556
A50: 40 | B50: 3.107909337 | C50: 148.1150695 | D50: 161.4719999 | E50: 3 | F50: 164.4719999 | G50: 13.35693042 | J50: 40 | K50: 5.962162075 | L50: 0.2533333333
A51: 41 | B51: 9.087046036 | C51: 157.2021155 | D51: 164.4719999 | E51: 1.5 | F51: 165.9719999 | G51: 7.269884388 | J51: 41 | K51: 7.262117082 | L51: 0.2711111111
A52: 42 | B52: 0.1181708551 | C52: 157.3202864 | D52: 165.9719999 | E52: 3 | F52: 168.9719999 | G52: 8.651713533 | J52: 42 | K52: 16.60896277 | L52: 0.2111111111
A53: 43 | B53: 12.30498618 | C53: 169.6252725 | D53: 169.6252725 | E53: 5 | F53: 174.6252725 | G53: 0 | J53: 43 | K53: 8.913950595 | L53: 0.1933333333
A54: 44 | B54: 0.831082626 | C54: 170.4563552 | D54: 174.6252725 | E54: 1.5 | F54: 176.1252725 | G54: 4.168917374 | J54: 44 | K54: 14.51668893 | L54: 0.1777777778
A55: 45 | B55: 5.974839471 | C55: 176.4311946 | D55: 176.4311946 | E55: 5 | F55: 181.4311946 | G55: 0 | J55: 45 | K55: 13.97777805 | L55: 0.1977777778
A56: 46 | B56: 15.3049039 | C56: 191.7360985 | D56: 191.7360985 | E56: 5 | F56: 196.7360985 | G56: 0 | J56: 46 | K56: 6.548012566 | L56: 0.2466666667
A57: 47 | B57: 6.942154659 | C57: 198.6782532 | D57: 198.6782532 | E57: 1.5 | F57: 200.1782532 | G57: 0 | J57: 47 | K57: 12.15844492 | L57: 0.2311111111
A58: 48 | B58: 9.501143952 | C58: 208.1793971 | D58: 208.1793971 | E58: 5 | F58: 213.1793971 | G58: 0 | J58: 48 | K58: 8.729801161 | L58: 0.1666666667
A59: 49 | B59: 2.77884812 | C59: 210.9582453 | D59: 213.1793971 | E59: 3 | F59: 216.1793971 | G59: 2.22115188 | J59: 49 | K59: 23.94132643 | L59: 0.1422222222
A60: 50 | B60: 3.495011476 | C60: 214.4532567 | D60: 216.1793971 | E60: 3 | F60: 219.1793971 | G60: 1.726140404 | J60: 50 | K60: 7.14378068 | L60: 0.1777777778
A61: 51 | B61: 1.865492298 | C61: 216.318749 | D61: 219.1793971 | E61: 3 | F61: 222.1793971 | G61: 2.860648107 | J61: 51 | K61: 14.93156863 | L61: 0.1911111111
A62: 52 | B62: 11.25107679 | C62: 227.5698258 | D62: 227.5698258 | E62: 3 | F62: 230.5698258 | G62: 0 | J62: 52 | K62: 6.436504818 | L62: 0.1933333333
A63: 53 | B63: 5.775515892 | C63: 233.3453417 | D63: 233.3453417 | E63: 3 | F63: 236.3453417 | G63: 0 | J63: 53 | K63: 10.40443517 | L63: 0.2444444444
A64: 54 | B64: 1.413683466 | C64: 234.7590252 | D64: 236.3453417 | E64: 3 | F64: 239.3453417 | G64: 1.586316534 | J64: 54 | K64: 12.24949721 | L64: 0.1933333333
A65: 55 | B65: 0.3868967454 | C65: 235.1459219 | D65: 239.3453417 | E65: 3 | F65: 242.3453417 | G65: 4.199419789 | J65: 55 | K65: 8.930972804 | L65: 0.1666666667
A66: 56 | B66: 0.05978373155 | C66: 235.2057057 | D66: 242.3453417 | E66: 5 | F66: 247.3453417 | G66: 7.139636057 | J66: 56 | K66: 12.29908766 | L66: 0.1822222222
A67: 57 | B67: 0.3956683132 | C67: 235.601374 | D67: 247.3453417 | E67: 1.5 | F67: 248.8453417 | G67: 11.74396774 | J67: 57 | K67: 9.473530666 | L67: 0.1466666667
A68: 58 | B68: 7.761153729 | C68: 243.3625277 | D68: 248.8453417 | E68: 5 | F68: 253.8453417 | G68: 5.482814015 | J68: 58 | K68: 6.903971934 | L68: 0.1133333333
A69: 59 | B69: 0.4075130984 | C69: 243.7700408 | D69: 253.8453417 | E69: 5 | F69: 258.8453417 | G69: 10.07530092 | J69: 59 | K69: 10.62593429 | L69: 0.1844444444
A70: 60 | B70: 9.909472928 | C70: 253.6795137 | D70: 258.8453417 | E70: 1.5 | F70: 260.3453417 | G70: 5.165827989 | J70: 60 | K70: 8.522778853 | L70: 0.1066666667
A71: 61 | B71: 1.762420278 | C71: 255.441934 | D71: 260.3453417 | E71: 10 | F71: 270.3453417 | G71: 4.903407711 | J71: 61 | K71: 10.22742629 | L71: 0.2177777778
A72: 62 | B72: 2.215203408 | C72: 257.6571374 | D72: 270.3453417 | E72: 10 | F72: 280.3453417 | G72: 12.6882043 | J72: 62 | K72: 10.56585814 | L72: 0.1577777778
A73: 63 | B73: 0.6137481224 | C73: 258.2708855 | D73: 280.3453417 | E73: 1.5 | F73: 281.8453417 | G73: 22.07445618 | J73: 63 | K73: 9.636703071 | L73: 0.1355555556
A74: 64 | B74: 4.408756737 | C74: 262.6796423 | D74: 281.8453417 | E74: 3 | F74: 284.8453417 | G74: 19.16569944 | J74: 64 | K74: 12.22341777 | L74: 0.1977777778
A75: 65 | B75: 3.70041541 | C75: 266.3800577 | D75: 284.8453417 | E75: 5 | F75: 289.8453417 | G75: 18.46528403 | J75: 65 | K75: 8.57198316 | L75: 0.2022222222
A76: 66 | B76: 0.5140177633 | C76: 266.8940754 | D76: 289.8453417 | E76: =VLOOKUP(RAND(),$E$2:$F$5,2,TRUE) -> 3 | F76: 292.8453417 | G76: 22.95126627 | J76: 66 | K76: 7.539348253 | L76: 0.2044444444
A77: 67 | B77: =-1/$B$1*LN(1-RAND()) -> 1.156902028 | C77: =C76+B77 -> 268.0509775 | D77: =MAX(C77,F76) -> 292.8453417 | E77: 5 | F77: =D77+E77 -> 297.8453417 | G77: =D77-C77 -> 24.79436424 | J77: 67 | K77: 22.64659704 | L77: 0.1977777778
A78: 68 | B78: 10.2581029 | C78: 278.3090804 | D78: 297.8453417 | E78: 3 | F78: 300.8453417 | G78: 19.53626135 | J78: 68 | K78: 11.8802389 | L78: 0.1688888889
A79: 69 | B79: 30.14861308 | C79: 308.4576934 | D79: 308.4576934 | E79: 3 | F79: 311.4576934 | G79: 0 | J79: 69 | K79: 6.346069582 | L79: 0.1755555556
A80: 70 | B80: 9.570378192 | C80: 318.0280716 | D80: 318.0280716 | E80: 3 | F80: 321.0280716 | G80: 0 | J80: 70 | K80: 5.283831862 | L80: 0.2711111111
A81: 71 | B81: 7.948840583 | C81: 325.9769122 | D81: 325.9769122 | E81: 1.5 | F81: 327.4769122 | G81: 0 | J81: 71 | K81: 8.935283477 | L81: 0.16
A82: 72 | B82: 2.04592829 | C82: 328.0228405 | D82: 328.0228405 | E82: 3 | F82: 331.0228405 | G82: 0 | J82: 72 | K82: 9.018658068 | L82: 0.1866666667
A83: 73 | B83: 10.27587038 | C83: 338.2987109 | D83: 338.2987109 | E83: 1.5 | F83: 339.7987109 | G83: 0 | J83: 73 | K83: 13.94742325 | L83: 0.2844444444
A84: 74 | B84: 1.510394206 | C84: 339.8091051 | D84: 339.8091051 | E84: 3 | F84: 342.8091051 | G84: 0 | J84: 74 | K84: 10.97051056 | L84: 0.1333333333
A85: 75 | B85: 1.273129204 | C85: 341.0822343 | D85: 342.8091051 | E85: 3 | F85: 345.8091051 | G85: 1.726870796 | J85: 75 | K85: 11.11186592 | L85: 0.2222222222
A86: 76 | B86: 0.3140496214 | C86: 341.3962839 | D86: 345.8091051 | E86: 3 | F86: 348.8091051 | G86: 4.412821175 | J86: 76 | K86: 8.226239024 | L86: 0.2355555556
A87: 77 | B87: 0.9355772676 | C87: 342.3318612 | D87: 348.8091051 | E87: 3 | F87: 351.8091051 | G87: 6.477243907 | J87: 77 | K87: 9.311716831 | L87: 0.1822222222
A88: 78 | B88: 5.831452837 | C88: 348.163314 | D88: 351.8091051 | E88: 1.5 | F88: 353.3091051 | G88: 3.64579107 | J88: 78 | K88: 10.04724911 | L88: 0.2666666667
A89: 79 | B89: 1.221709786 | C89: 349.3850238 | D89: 353.3091051 | E89: 3 | F89: 356.3091051 | G89: 3.924081284 | J89: 79 | K89: 8.962097979 | L89: 0.1822222222
A90: 80 | B90: 0.2195179771 | C90: 349.6045418 | D90: 356.3091051 | E90: 5 | F90: 361.3091051 | G90: 6.704563307 | J90: 80 | K90: 7.900068737 | L90: 0.22
A91: 81 | B91: 5.600888686 | C91: 355.2054305 | D91: 361.3091051 | E91: 5 | F91: 366.3091051 | G91: 6.103674622 | J91: 81 | K91: 6.726988448 | L91: 0.2488888889
A92: 82 | B92: 1.279692006 | C92: 356.4851225 | D92: 366.3091051 | E92: 5 | F92: 371.3091051 | G92: 9.823982616 | J92: 82 | K92: 11.52602163 | L92: 0.2377777778
A93: 83 | B93: 3.648551435 | C93: 360.1336739 | D93: 371.3091051 | E93: 3 | F93: 374.3091051 | G93: 11.17543118 | J93: 83 | K93: 6.885556718 | L93: 0.2288888889
A94: 84 | B94: 7.410960054 | C94: 367.544634 | D94: 374.3091051 | E94: 10 | F94: 384.3091051 | G94: 6.764471128 | J94: 84 | K94: 8.199925718 | L94: 0.2688888889
A95: 85 | B95: 2.384607991 | C95: 369.929242 | D95: 384.3091051 | E95: 1.5 | F95: 385.8091051 | G95: 14.37986314 | J95: 85 | K95: 13.06901748 | L95: 0.1644444444
A96: 86 | B96: 6.369195817 | C96: 376.2984378 | D96: 385.8091051 | E96: 5 | F96: 390.8091051 | G96: 9.510667319 | J96: 86 | K96: 10.87135644 | L96: 0.1355555556
A97: 87 | B97: 0.1956649772 | C97: 376.4941028 | D97: 390.8091051 | E97: 10 | F97: 400.8091051 | G97: 14.31500234 | J97: 87 | K97: 6.497756907 | L97: 0.1755555556
A98: 88 | B98: 4.647361533 | C98: 381.1414643 | D98: 400.8091051 | E98: 3 | F98: 403.8091051 | G98: 19.66764081 | J98: 88 | K98: 9.678743448 | L98: 0.2422222222
A99: 89 | B99: 0.9667195256 | C99: 382.1081838 | D99: 403.8091051 | E99: 3 | F99: 406.8091051 | G99: 21.70092128 | J99: 89 | K99: 13.52887414 | L99: 0.1955555556
A100: 90 | B100: 0.5519861011 | C100: 382.6601699 | D100: 406.8091051 | E100: 1.5 | F100: 408.3091051 | G100: 24.14893518 | J100: 90 | K100: 18.14433849 | L100: 0.2155555556
A101: 91 | B101: 4.301022568 | C101: 386.9611925 | D101: 408.3091051 | E101: 3 | F101: 411.3091051 | G101: 21.34791262 | J101: 91 | K101: 9.239823455 | L101: 0.1555555556
A102: 92 | B102: 3.3113741 | C102: 390.2725666 | D102: 411.3091051 | E102: 3 | F102: 414.3091051 | G102: 21.03653852 | J102: 92 | K102: 7.099167242 | L102: 0.1866666667
A103: 93 | B103: 0.3266373791 | C103: 390.599204 | D103: 414.3091051 | E103: 5 | F103: 419.3091051 | G103: 23.70990114 | J103: 93 | K103: 8.135711119 | L103: 0.2733333333
A104: 94 | B104: 4.664110776 | C104: 395.2633147 | D104: 419.3091051 | E104: 10 | F104: 429.3091051 | G104: 24.04579036 | J104: 94 | K104: 23.30369368 | L104: 0.2444444444
A105: 95 | B105: 0.2138288493 | C105: 395.4771436 | D105: 429.3091051 | E105: 1.5 | F105: 430.8091051 | G105: 33.83196151 | J105: 95 | K105: 9.082607129 | L105: 0.2133333333
A106: 96 | B106: 1.565759464 | C106: 397.0429031 | D106: 430.8091051 | E106: 3 | F106: 433.8091051 | G106: 33.76620205 | J106: 96 | K106: 11.42059636 | L106: 0.1977777778
A107: 97 | B107: 2.254413285 | C107: 399.2973163 | D107: 433.8091051 | E107: 3 | F107: 436.8091051 | G107: 34.51178876 | J107: 97 | K107: 11.2636517 | L107: 0.2711111111
A108: 98 | B108: 3.981661558 | C108: 403.2789779 | D108: 436.8091051 | E108: 3 | F108: 439.8091051 | G108: 33.5301272 | J108: 98 | K108: 14.59568372 | L108: 0.1733333333
A109: 99 | B109: 6.234966124 | C109: 409.513944 | D109: 439.8091051 | E109: 3 | F109: 442.8091051 | G109: 30.29516108 | J109: 99 | K109: 13.68893815 | L109: 0.2488888889
A110: 100 | B110: 10.25065705 | C110: 419.7646011 | D110: 442.8091051 | E110: 5 | F110: 447.8091051 | G110: 23.04450403 | J110: 100 | K110: 13.12490435 | L110: 0.2355555556
A111: 101 | B111: 0.6624225096 | C111: 420.4270236 | D111: 447.8091051 | E111: 1.5 | F111: 449.3091051 | G111: 27.38208152
A112: 102 | B112: 2.446683056 | C112: 422.8737066 | D112: 449.3091051 | E112: 3 | F112: 452.3091051 | G112: 26.43539846
A113: 103 | B113: 10.44873593 | C113: 433.3224426 | D113: 452.3091051 | E113: 10 | F113: 462.3091051 | G113: 18.98666253
A114: 104 | B114: 2.710408138 | C114: 436.0328507 | D114: 462.3091051 | E114: 5 | F114: 467.3091051 | G114: 26.27625439
A115: 105 | B115: 5.623162236 | C115: 441.6560129 | D115: 467.3091051 | E115: 5 | F115: 472.3091051 | G115: 25.65309215
A116: 106 | B116: 1.95409652 | C116: 443.6101095 | D116: 472.3091051 | E116: 3 | F116: 475.3091051 | G116: 28.69899563
A117: 107 | B117: 6.17010399 | C117: 449.7802135 | D117: 475.3091051 | E117: 10 | F117: 485.3091051 | G117: 25.52889164
A118: 108 | B118: 0.4420551043 | C118: 450.2222686 | D118: 485.3091051 | E118: 1.5 | F118: 486.8091051 | G118: 35.08683654
A119: 109 | B119: 12.45807826 | C119: 462.6803468 | D119: 486.8091051 | E119: 10 | F119: 496.8091051 | G119: 24.12875828
A120: 110 | B120: 2.894393044 | C120: 465.5747399 | D120: 496.8091051 | E120: 1.5 | F120: 498.3091051 | G120: 31.23436523
A121: 111 | B121: 11.26743419 | C121: 476.8421741 | D121: 498.3091051 | E121: 5 | F121: 503.3091051 | G121: 21.46693104
A122: 112 | B122: 2.03677386 | C122: 478.8789479 | D122: 503.3091051 | E122: 1.5 | F122: 504.8091051 | G122: 24.43015718
A123: 113 | B123: 10.06967777 | C123: 488.9486257 | D123: 504.8091051 | E123: 5 | F123: 509.8091051 | G123: 15.86047941
A124: 114 | B124: 3.66529945 | C124: 492.6139251 | D124: 509.8091051 | E124: 5 | F124: 514.8091051 | G124: 17.19517997
A125: 115 | B125: 4.770601559 | C125: 497.3845267 | D125: 514.8091051 | E125: 5 | F125: 519.8091051 | G125: 17.42457841
A126: 116 | B126: 5.51832016 | C126: 502.9028469 | D126: 519.8091051 | E126: 1.5 | F126: 521.3091051 | G126: 16.90625825
A127: 117 | B127: 2.251905861 | C127: 505.1547527 | D127: 521.3091051 | E127: 1.5 | F127: 522.8091051 | G127: 16.15435239
A128: 118 | B128: 4.562341369 | C128: 509.7170941 | D128: 522.8091051 | E128: 5 | F128: 527.8091051 | G128: 13.09201102
A129: 119 | B129: 1.680524049 | C129: 511.3976181 | D129: 527.8091051 | E129: 1.5 | F129: 529.3091051 | G129: 16.41148697
A130: 120 | B130: 3.430574206 | C130: 514.8281923 | D130: 529.3091051 | E130: 5 | F130: 534.3091051 | G130: 14.48091276
A131: 121 | B131: 0.9247113095 | C131: 515.7529036 | D131: 534.3091051 | E131: 3 | F131: 537.3091051 | G131: 18.55620145
A132: 122 | B132: 0.7985272733 | C132: 516.5514309 | D132: 537.3091051 | E132: 5 | F132: 542.3091051 | G132: 20.75767418
A133: 123 | B133: 1.575693227 | C133: 518.1271241 | D133: 542.3091051 | E133: 5 | F133: 547.3091051 | G133: 24.18198095
A134: 124 | B134: 3.547040539 | C134: 521.6741647 | D134: 547.3091051 | E134: 3 | F134: 550.3091051 | G134: 25.63494041
A135: 125 | B135: 8.1821513 | C135: 529.856316 | D135: 550.3091051 | E135: 1.5 | F135: 551.8091051 | G135: 20.45278911
A136: 126 | B136: 9.786426449 | C136: 539.6427424 | D136: 551.8091051 | E136: 3 | F136: 554.8091051 | G136: 12.16636266
A137: 127 | B137: 3.833658378 | C137: 543.4764008 | D137: 554.8091051 | E137: 5 | F137: 559.8091051 | G137: 11.33270429
A138: 128 | B138: 3.247858739 | C138: 546.7242596 | D138: 559.8091051 | E138: 3 | F138: 562.8091051 | G138: 13.08484555
A139: 129 | B139: 7.906875433 | C139: 554.631135 | D139: 562.8091051 | E139: 10 | F139: 572.8091051 | G139: 8.177970114
A140: 130 | B140: 2.275832736 | C140: 556.9069677 | D140: 572.8091051 | E140: =VLOOKUP(RAND(),$E$2:$F$5,2,TRUE) -> 3 | F140: 575.8091051 | G140: 15.90213738
A141: 131 | B141: =-1/$B$1*LN(1-RAND()) -> 1.073555271 | C141: =C140+B141 -> 557.980523 | D141: =MAX(C141,F140) -> 575.8091051 | E141: 3 | F141: =D141+E141 -> 578.8091051 | G141: =D141-C141 -> 17.82858211
A142: 132 | B142: 0.011633293 | C142: 557.9921563 | D142: 578.8091051 | E142: 3 | F142: 581.8091051 | G142: 20.81694881
A143: 133 | B143: 2.230596839 | C143: 560.2227531 | D143: 581.8091051 | E143: 1.5 | F143: 583.3091051 | G143: 21.58635197
A144: 134 | B144: 3.836631241 | C144: 564.0593844 | D144: 583.3091051 | E144: 3 | F144: 586.3091051 | G144: 19.24972073
A145: 135 | B145: 3.402882056 | C145: 567.4622664 | D145: 586.3091051 | E145: 3 | F145: 589.3091051 | G145: 18.84683868
A146: 136 | B146: 2.666494633 | C146: 570.1287611 | D146: 589.3091051 | E146: 5 | F146: 594.3091051 | G146: 19.18034404
A147: 137 | B147: 3.335198723 | C147: 573.4639598 | D147: 594.3091051 | E147: 3 | F147: 597.3091051 | G147: 20.84514532
A148: 138 | B148: 5.975836351 | C148: 579.4397961 | D148: 597.3091051 | E148: 3 | F148: 600.3091051 | G148: 17.86930897
A149: 139 | B149: 2.858653466 | C149: 582.2984496 | D149: 600.3091051 | E149: 5 | F149: 605.3091051 | G149: 18.0106555
A150: 140 | B150: 4.856282196 | C150: 587.1547318 | D150: 605.3091051 | E150: 1.5 | F150: 606.8091051 | G150: 18.15437331
A151: 141 | B151: 26.92128446 | C151: 614.0760163 | D151: 614.0760163 | E151: 3 | F151: 617.0760163 | G151: 0
A152: 142 | B152: 0.1945094591 | C152: 614.2705257 | D152: 617.0760163 | E152: 10 | F152: 627.0760163 | G152: 2.805490541
A153: 143 | B153: 1.51066365 | C153: 615.7811894 | D153: 627.0760163 | E153: 5 | F153: 632.0760163 | G153: 11.29482689
A154: 144 | B154: 13.21702248 | C154: 628.9982118 | D154: 632.0760163 | E154: 1.5 | F154: 633.5760163 | G154: 3.077804408
A155: 145 | B155: 2.856709145 | C155: 631.854921 | D155: 633.5760163 | E155: 3 | F155: 636.5760163 | G155: 1.721095262
A156: 146 | B156: 3.640338083 | C156: 635.4952591 | D156: 636.5760163 | E156: 3 | F156: 639.5760163 | G156: 1.08075718
A157: 147 | B157: 0.8465289708 | C157: 636.341788 | D157: 639.5760163 | E157: 3 | F157: 642.5760163 | G157: 3.234228209
A158: 148 | B158: 6.172172369 | C158: 642.5139604 | D158: 642.5760163 | E158: 5 | F158: 647.5760163 | G158: 0.06205584012
A159: 149 | B159: 7.685494911 | C159: 650.1994553 | D159: 650.1994553 | E159: 3 | F159: 653.1994553 | G159: 0
A160: 150 | B160: 2.991611923 | C160: 653.1910672 | D160: 653.1994553 | E160: 5 | F160: 658.1994553 | G160: 0.008388077498
A161: 151 | B161: 3.319057429 | C161: 656.5101247 | D161: 658.1994553 | E161: 1.5 | F161: 659.6994553 | G161: 1.689330648
A162: 152 | B162: 2.21938371 | C162: 658.7295084 | D162: 659.6994553 | E162: 3 | F162: 662.6994553 | G162: 0.969946939
A163: 153 | B163: 1.026891247 | C163: 659.7563996 | D163: 662.6994553 | E163: 3 | F163: 665.6994553 | G163: 2.943055692
A164: 154 | B164: 2.592012523 | C164: 662.3484122 | D164: 665.6994553 | E164: 5 | F164: 670.6994553 | G164: 3.351043169
A165: 155 | B165: 10.71712237 | C165: 673.0655345 | D165: 673.0655345 | E165: 3 | F165: 676.0655345 | G165: 0
A166: 156 | B166: 4.316154943 | C166: 677.3816895 | D166: 677.3816895 | E166: 1.5 | F166: 678.8816895 | G166: 0
A167: 157 | B167: 15.19187716 | C167: 692.5735666 | D167: 692.5735666 | E167: 5 | F167: 697.5735666 | G167: 0
A168: 158 | B168: 0.1908250182 | C168: 692.7643917 | D168: 697.5735666 | E168: 3 | F168: 700.5735666 | G168: 4.809174982
A169: 159 | B169: 1.593087887 | C169: 694.3574795 | D169: 700.5735666 | E169: 5 | F169: 705.5735666 | G169: 6.216087095
A170: 160 | B170: 10.23158515 | C170: 704.5890647 | D170: 705.5735666 | E170: 5 | F170: 710.5735666 | G170: 0.984501946
A171: 161 | B171: 6.116607987 | C171: 710.7056727 | D171: 710.7056727 | E171: 1.5 | F171: 712.2056727 | G171: 0
A172: 162 | B172: 18.93721165 | C172: 729.6428843 | D172: 729.6428843 | E172: 5 | F172: 734.6428843 | G172: 0
A173: 163 | B173: 0.572334044 | C173: 730.2152184 | D173: 734.6428843 | E173: 3 | F173: 737.6428843 | G173: 4.427665956
A174: 164 | B174: 3.969867122 | C174: 734.1850855 | D174: 737.6428843 | E174: 3 | F174: 740.6428843 | G174: 3.457798834
A175: 165 | B175: 0.2479511837 | C175: 734.4330367 | D175: 740.6428843 | E175: 3 | F175: 743.6428843 | G175: 6.20984765
A176: 166 | B176: 7.305904259 | C176: 741.7389409 | D176: 743.6428843 | E176: 3 | F176: 746.6428843 | G176: 1.903943391
A177: 167 | B177: 2.408822338 | C177: 744.1477633 | D177: 746.6428843 | E177: 5 | F177: 751.6428843 | G177: 2.495121053
A178: 168 | B178: 5.783802969 | C178: 749.9315662 | D178: 751.6428843 | E178: 3 | F178: 754.6428843 | G178: 1.711318083
A179: 169 | B179: 8.193537047 | C179: 758.1251033 | D179: 758.1251033 | E179: 3 | F179: 761.1251033 | G179: 0
A180: 170 | B180: 1.644413826 | C180: 759.7695171 | D180: 761.1251033 | E180: 3 | F180: 764.1251033 | G180: 1.355586174
A181: 171 | B181: 1.802434329 | C181: 761.5719514 | D181: 764.1251033 | E181: 5 | F181: 769.1251033 | G181: 2.553151846
A182: 172 | B182: 10.82004169 | C182: 772.3919931 | D182: 772.3919931 | E182: 5 | F182: 777.3919931 | G182: 0
A183: 173 | B183: 2.604008501 | C183: 774.9960016 | D183: 777.3919931 | E183: 5 | F183: 782.3919931 | G183: 2.395991499
A184: 174 | B184: 0.5935315209 | C184: 775.5895332 | D184: 782.3919931 | E184: 3 | F184: 785.3919931 | G184: 6.802459978
A185: 175 | B185: 0.9320890414 | C185: 776.5216222 | D185: 785.3919931 | E185: 3 | F185: 788.3919931 | G185: 8.870370937
A186: 176 | B186: 0.6481260198 | C186: 777.1697482 | D186: 788.3919931 | E186: 3 | F186: 791.3919931 | G186: 11.22224492
A187: 177 | B187: 10.17043294 | C187: 787.3401812 | D187: 791.3919931 | E187: 3 | F187: 794.3919931 | G187: 4.051811978
A188: 178 | B188: 7.550687198 | C188: 794.8908684 | D188: 794.8908684 | E188: 5 | F188: 799.8908684 | G188: 0
A189: 179 | B189: 3.392395539 | C189: 798.2832639 | D189: 799.8908684 | E189: 3 | F189: 802.8908684 | G189: 1.607604461
A190: 180 | B190: 3.235205792 | C190: 801.5184697 | D190: 802.8908684 | E190: 1.5 | F190: 804.3908684 | G190: 1.372398669
A191: 181 | B191: 1.682067092 | C191: 803.2005368 | D191: 804.3908684 | E191: 1.5 | F191: 805.8908684 | G191: 1.190331577
A192: 182 | B192: 10.66992967 | C192: 813.8704665 | D192: 813.8704665 | E192: 1.5 | F192: 815.3704665 | G192: 0
A193: 183 | B193: 0.8288502286 | C193: 814.6993167 | D193: 815.3704665 | E193: 5 | F193: 820.3704665 | G193: 0.6711497714
A194: 184 | B194: 1.281432855 | C194: 815.9807495 | D194: 820.3704665 | E194: 5 | F194: 825.3704665 | G194: 4.389716916
A195: 185 | B195: 5.678794993 | C195: 821.6595445 | D195: 825.3704665 | E195: 3 | F195: 828.3704665 | G195: 3.710921923
A196: 186 | B196: 7.068481946 | C196: 828.7280265 | D196: 828.7280265 | E196: 3 | F196: 831.7280265 | G196: 0
A197: 187 | B197: 12.12368933 | C197: 840.8517158 | D197: 840.8517158 | E197: 5 | F197: 845.8517158 | G197: 0
A198: 188 | B198: 7.366109979 | C198: 848.2178258 | D198: 848.2178258 | E198: 1.5 | F198: 849.7178258 | G198: 0
A199: 189 | B199: 3.358261904 | C199: 851.5760877 | D199: 851.5760877 | E199: 3 | F199: 854.5760877 | G199: 0
A200: 190 | B200: 3.604637994 | C200: 855.1807257 | D200: 855.1807257 | E200: 3 | F200: 858.1807257 | G200: 0
... 310 more rows

Sheet 例題9-5_MM1型待ち行列システム
A2: λ | B2: 到着率 | C2: 30 | D2: 名/時間
A3: μ | B3: サービス率 | C3: 40 | D3: 名/時間
A4: ρ | B4: 利用率 | C4: =C2/C3 -> 0.75 | G4: =C2/C3
A5: Lq | B5: 平均待ち人数 | C5: =(C4^2)/(1-C4) -> 2.25 | D5: 人 | G5: =(C4^2)/(1-C4)
A6: Wq | B6: 平均待ち時間 | C6: =C5/C2 -> 0.075 | D6: 時間 | E6: =C6*60 -> 4.5 | F6: 分 | G6: =C5/C2
A7: L | B7: 平均滞在客数 | C7: =C5+C4 -> 3 | D7: 人 | G7: =C5+C4
A8: W | B8: 平均滞在時間 | C8: =C7/C2 -> 0.1 | D8: 時間 | E8: =C8*60 -> 6 | F8: 分 | G8: =C7/C2

Sheet 例題11-8_期待値原理
B2: 代替案 | C2: 上昇 | D2: 横ばい | E2: 下降 | F2: 期待利得
A3: dummy | B3: 確率 | C3: 0.7 | D3: 0.2 | E3: 0.1
A4: =F4:F6 -> 79.5 | B4: オフィスビル | C4: 100 | D4: 50 | E4: -5 | F4: =SUMPRODUCT($C$3:$E$3,C4:E4) -> 79.5 | G4: =SUMPRODUCT($C$3:$E$3,C4:E4)
A5: 74 | B5: 店舗用ビル | C5: 85 | D5: 60 | E5: 25 | F5: =SUMPRODUCT($C$3:$E$3,C5:E5) -> 74 | G5: =SUMPRODUCT($C$3:$E$3,C5:E5)
A6: 67 | B6: 住居用ビル | C6: 70 | D6: 65 | E6: 50 | F6: =SUMPRODUCT($C$3:$E$3,C6:E6) -> 67 | G6: =SUMPRODUCT($C$3:$E$3,C6:E6)
F7: =VLOOKUP(MAX(F4:F6),A4:B6,2,FALSE) -> オフィスビル | G7: =VLOOKUP(MAX(F4:F6),A4:B6,2,FALSE)

Sheet 例題11-9_期待値分散原理
B2: 代替案 | C2: 上昇 | D2: 横ばい | E2: 下降 | F2: 期待利得 | G2: 分散
B3: 確率 | C3: 0.5 | D3: 0.3 | E3: 0.2
B4: オフィスビル | C4: 100 | D4: 50 | E4: -5 | F4: =SUMPRODUCT($C$3:$E$3,C4:E4) -> 64 | G4: =SUMPRODUCT($C$3:$E$3,(C4:E4-F4)^2) -> 1659 | H4: =SUMPRODUCT($C$3:$E$3,C4:E4) | J4: =SUMPRODUCT($C$3:$E$3,(C4:E4-F4)^2)
B5: 店舗用ビル | C5: 85 | D5: 60 | E5: 25 | F5: =SUMPRODUCT($C$3:$E$3,C5:E5) -> 65.5 | G5: =SUMPRODUCT($C$3:$E$3,(C5:E5-F5)^2) -> 527.25 | H5: =SUMPRODUCT($C$3:$E$3,C5:E5) | J5: =SUMPRODUCT($C$3:$E$3,(C5:E5-F5)^2)
B6: 住居用ビル | C6: 70 | D6: 65 | E6: 50 | F6: =SUMPRODUCT($C$3:$E$3,C6:E6) -> 64.5 | G6: =SUMPRODUCT($C$3:$E$3,(C6:E6-F6)^2) -> 57.25 | H6: =SUMPRODUCT($C$3:$E$3,C6:E6) | J6: =SUMPRODUCT($C$3:$E$3,(C6:E6-F6)^2)

Sheet 例題13-7_代替案の評価
C2: 年収 | D2: 仕事内容 | E2: 将来性 | F2: 総合評価点
B3: 配分 | C3: 0.3 | D3: 0.5 | E3: 0.2
B4: A社 | C4: 0.4 | D4: 0.1 | E4: 0.45 | F4: =SUMPRODUCT($C$3:$E$3,C4:E4) -> 0.26 | G4: =SUMPRODUCT($C$3:$E$3,C4:E4)
B5: B社 | C5: 0.35 | D5: 0.4 | E5: 0.2 | F5: =SUMPRODUCT($C$3:$E$3,C5:E5) -> 0.345 | G5: =SUMPRODUCT($C$3:$E$3,C5:E5)
B6: C社 | C6: 0.2 | D6: 0.2 | E6: 0.25 | F6: =SUMPRODUCT($C$3:$E$3,C6:E6) -> 0.21 | G6: =SUMPRODUCT($C$3:$E$3,C6:E6)
B7: D社 | C7: 0.05 | D7: 0.3 | E7: 0.1 | F7: =SUMPRODUCT($C$3:$E$3,C7:E7) -> 0.185 | G7: =SUMPRODUCT($C$3:$E$3,C7:E7)

Sheet 例題13-8_一対比較
B1: 年収 | C1: 仕事内容 | D1: 将来性 | G1: 幾何平均 | H1: 固有ベクトル
A2: 年収 | B2: 1 | C2: =1/5 -> 0.2 | D2: 5 | G2: =GEOMEAN(B2:D2) -> 1 | H2: =G2/$G$5 -> 0.206695379 | I2: =GEOMEAN(B2:D2) | J2: =G2/$G$5
A3: 仕事内容 | B3: 5 | C3: 1 | D3: 9 | G3: =GEOMEAN(B3:D3) -> 3.556893304 | H3: =G3/$G$5 -> 0.7351934096 | I3: =GEOMEAN(B3:D3) | J3: =G3/$G$5
A4: 将来性 | B4: =1/5 -> 0.2 | C4: =1/9 -> 0.1111111111 | D4: 1 | G4: =GEOMEAN(B4:D4) -> 0.2811442218 | H4: =G4/$G$5 -> 0.05811121147 | I4: =GEOMEAN(B4:D4) | J4: '=GEOMEAN(B4:D4)
G5: =SUM(G2:G4) -> 4.838037526 | I5: =SUM(G2:G4)
A7: 年収 | B7: A社 | C7: B社 | D7: C社 | E7: D社 | G7: 機械平均 | H7: 固有ベクトル
A8: A社 | B8: 1 | C8: 3 | D8: 5 | E8: 9 | G8: =GEOMEAN(B8:E8) -> 3.408658099 | H8: =G8/$G$12 -> 0.5574189163 | I8: =GEOMEAN(B8:E8) | J8: =G8/$G$12
A9: B社 | B9: =1/3 -> 0.3333333333 | C9: 1 | D9: 5 | E9: 7 | G9: =GEOMEAN(B9:E9) -> 1.84814779 | H9: =G9/$G$12 -> 0.3022281814 | I9: =GEOMEAN(B9:E9) | J9: =G9/$G$12
A10: C社 | B10: =1/5 -> 0.2 | C10: =1/5 -> 0.2 | D10: 1 | E10: 3 | G10: =GEOMEAN(B10:E10) -> 0.5885661913 | H10: =G10/$G$12 -> 0.09624841182 | I10: =GEOMEAN(B10:E10) | J10: =G10/$G$12
A11: D社 | B11: =1/9 -> 0.1111111111 | C11: =1/7 -> 0.1428571429 | D11: =1/3 -> 0.3333333333 | E11: 1 | G11: =GEOMEAN(B11:E11) -> 0.2697022372 | H11: =G11/$G$12 -> 0.0441044905 | I11: =GEOMEAN(B11:E11) | J11: =G11/$G$12
G12: =SUM(G8:G11) -> 6.115074318 | I12: =SUM(G8:G11)
A13: 仕事内容 | B13: A社 | C13: B社 | D13: C社 | E13: D社 | G13: 機械平均 | H13: 固有ベクトル
A14: A社 | B14: 1 | C14: =1/5 -> 0.2 | D14: =1/3 -> 0.3333333333 | E14: =1/3 -> 0.3333333333 | G14: =GEOMEAN(B14:E14) -> 0.3860973951 | H14: =G14/$G$18 -> 0.07906298847 | I14: =GEOMEAN(B14:E14) | J14: =G14/$G$18
A15: B社 | B15: 5 | C15: 1 | D15: 2 | E15: 3 | G15: =GEOMEAN(B15:E15) -> 2.340347319 | H15: =G15/$G$18 -> 0.4792439821 | I15: =GEOMEAN(B15:E15) | J15: =G15/$G$18
A16: C社 | B16: 3 | C16: =1/2 -> 0.5 | D16: 1 | E16: 2 | G16: =GEOMEAN(B16:E16) -> 1.316074013 | H16: =G16/$G$18 -> 0.269498696 | I16: =GEOMEAN(B16:E16) | J16: =G16/$G$18
A17: D社 | B17: 3 | C17: =1/3 -> 0.3333333333 | D17: =1/2 -> 0.5 | E17: 1 | G17: =GEOMEAN(B17:E17) -> 0.8408964153 | H17: =G17/$G$18 -> 0.1721943334 | I17: =GEOMEAN(B17:E17) | J17: =G17/$G$18
G18: =SUM(G14:G17) -> 4.883415143 | I18: =SUM(G14:G17)
A19: 将来性 | B19: A社 | C19: B社 | D19: C社 | E19: D社 | G19: 機械平均 | H19: 固有ベクトル
A20: A社 | B20: 1 | C20: 3 | D20: 9 | E20: 5 | G20: =GEOMEAN(B20:E20) -> 3.408658099 | H20: =G20/$G$24 -> 0.5755883549 | I20: =GEOMEAN(B20:E20) | J20: =G20/$G$24
A21: B社 | B21: =1/3 -> 0.3333333333 | C21: 1 | D21: 5 | E21: 3 | G21: =GEOMEAN(B21:E21) -> 1.495348781 | H21: =G21/$G$24 -> 0.2525056254 | I21: =GEOMEAN(B21:E21) | J21: =G21/$G$24
A22: C社 | B22: =1/9 -> 0.1111111111 | C22: =1/5 -> 0.2 | D22: 1 | E22: =1/5 -> 0.2 | G22: =GEOMEAN(B22:E22) -> 0.2581988897 | H22: =G22/$G$24 -> 0.0435996424 | I22: =GEOMEAN(B22:E22) | J22: =G22/$G$24
A23: D社 | B23: =1/5 -> 0.2 | C23: =1/3 -> 0.3333333333 | D23: 5 | E23: 1 | G23: =GEOMEAN(B23:E23) -> 0.7598356857 | H23: =G23/$G$24 -> 0.1283063773 | I23: =GEOMEAN(B23:E23) | J23: =G23/$G$24
G24: =SUM(G20:G23) -> 5.922041456 | I24: =SUM(G20:G23)
B25: 年収 | C25: 仕事内容 | D25: 将来性 | E25: 総合評価点
A26: 重要度 | B26: =H2 -> 0.206695379 | C26: =H3 -> 0.7351934096 | D26: =H4 -> 0.05811121147
A27: A社 | B27: =H8 -> 0.5574189163 | C27: =H14 -> 0.07906298847 | D27: =H20 -> 0.5755883549 | E27: =SUMPRODUCT(B27:D27,$B$26:$D$26) -> 0.2067906388 | F27: =SUMPRODUCT(B27:D27,$B$26:$D$26)
A28: B社 | B28: =H9 -> 0.3022281814 | C28: =H15 -> 0.4792439821 | D28: =H21 -> 0.2525056254 | E28: =SUMPRODUCT(B28:D28,$B$26:$D$26) -> 0.4294795935 | F28: =SUMPRODUCT(B28:D28,$B$26:$D$26)
A29: C社 | B29: =H10 -> 0.09624841182 | C29: =H16 -> 0.269498696 | D29: =H22 -> 0.0435996424 | E29: =SUMPRODUCT(B29:D29,$B$26:$D$26) -> 0.2205613952 | F29: =SUMPRODUCT(B29:D29,$B$26:$D$26)
A30: D社 | B30: =H11 -> 0.0441044905 | C30: =H17 -> 0.1721943334 | D30: =H23 -> 0.1283063773 | E30: =SUMPRODUCT(B30:D30,$B$26:$D$26) -> 0.1431683725 | F30: =SUMPRODUCT(B30:D30,$B$26:$D$26)
K32: =MINVERSE(B2:D4) -> 1.776356839e-16 | L32: 0.3125 | M32: -2.8125 | O32: =MMULT(B2:D4,_xlfn.ANCHORARRAY(K32)) -> 1 | P32: 0 | Q32: 0
B33: λ | C33: 3.1171 | K33: -2.8125 | L33: 0 | M33: 14.0625 | O33: 0 | P33: 1 | Q33: 0
B34: =B2-C33 -> -2.1171 | C34: =C2 -> 0.2 | D34: =D2 -> 5 | K34: 0.3125 | L34: -0.0625 | M34: 0 | O34: 0 | P34: 0 | Q34: 1
B35: =B3 -> 5 | C35: =C3-C33 -> -2.1171 | D35: =D3 -> 9
B36: =B4 -> 0.2 | C36: =C4 -> 0.1111111111 | D36: =D4-C33 -> -2.1171
B37: =B34*C35*D36-B34*C36*D35-B35*C34*D36+B36*C34*D35+D34*B35*C36 -> -2.117102405
B38: https://matrixcalc.org/ja/vectors.html#eigenvectors%28%7B%7B1,0%2e2,5%7D,%7B5,1,9%7D,%7B0%2e2,1/9,1%7D%7D%29
